Workbook

Sheet menuy (hidden)
J1: 01. JEDNOPÓLOVÉ ŘADOVÉ SVORKY RSA
J2: 02. JEDNOPÓLOVÉ ŘADOVÉ SVORKY RSA PE
J3: 03. ŘADOVÉ SVORKY PATROVÉ
J4: 04. POJISTKOVÉ SVORKY
J5: 05. VARISTOROVÉ SVORKY
J6: 06. MINI SVORKY
J7: 07. SVORKY ROZPOJOVACÍ, PRO NULOVÉ VODIČE
J8: 08. KONCOVÉ SVĚRKY
J9: 09. KRABICOVÉ SVORKY
J10: 10. BEZŠROUBOVÉ SVORKY PYK, EURO Q
J11: 11. SILOVÉ ŘADOVÉ SVORKY BNP
J12: 12. UNIVERZÁLNÍ ŘADOVÉ SVORKY ETB, OTL
J13: 13. UNIVERZÁLNÍ ŘADOVÉ SVORKY UTB
J14: 14. UNIVERZÁLNÍ ŘADOVÉ SVORKY UTB – S
J15: 15. DISTRIBUČNÍ BLOKY
J16: 16. STOŽÁROVÉ VÝZBROJE
J17: 17. EKVIPOTENCIÁLNÍ SVORKOVNICE
J18: 18. ZEMNICÍ SVORKY
J19: 19. PRŮCHOZÍ IZOLOVANÉ SVORKY HPS, BD
J20: 20. STOUPAČKOVÉ SVORKOVNICE
J21: 21. SBĚRNICOVÉ SVORKY
J22: 22. PRŮCHODKY, PRŮCHODKOVÉ DESKY A VODĚODOLNÉ KONEKTORY
J23: 23. DOPLŇUJÍCÍ MATERIÁL
J24: 24. ELEKTRONICKÉ MODULY
J25: 25. ZNAČENÍ
J27: 30. INSTALAČNÍ SKŘÍNĚ
A32: Verze: 2026-1.1, Platnost od 1.1.2026

Sheet menu
K1: 01. JEDNOPÓLOVÉ ŘADOVÉ SVORKY RSA
K2: 02. JEDNOPÓLOVÉ ŘADOVÉ SVORKY RSA PE
K3: 03. ŘADOVÉ SVORKY PATROVÉ
K4: 04. POJISTKOVÉ SVORKY
K5: 05. VARISTOROVÉ SVORKY
D6: Vyhledávání v kapitolách | K6: 06. MINI SVORKY
K7: 07. SVORKY ROZPOJOVACÍ, PRO NULOVÉ VODIČE
D8: 1. Šroubové svorky RSA, RSA PE, RSP, EB, MINI, WGO, EURO | J8: 1. Šroubové řadové svorky | K8: 08. KONCOVÉ SVĚRKY
D9: 2. Bezšroubové svorky PYK, PS, EURO Q | J9: 2. Bezšroubové řadové svorky | K9: 09. KRABICOVÉ SVORKY
D10: 3. Koncové svěrky šroubové, bezšroubové | J10: 3. Koncové svěrky | K10: 10. BEZŠROUBOVÉ SVORKY PYK, EURO Q
D11: 4. Univerzální řadové svorky ETB, UTB, UTB-S, OTL | J11: 4. Univerzální řadové svorky | K11: 11. SILOVÉ ŘADOVÉ SVORKY BNP
D12: 5. Distribuční bloky DTS, DTB, LK DTB, UK DTB, odbočovací a zkušební svorkovnice | J12: 5. Distribuční bloky, odbočovací a zkušební svorkovnice | K12: 12. UNIVERZÁLNÍ ŘADOVÉ SVORKY ETB, OTL
D13: 6. Rozbočovací svorky UTB-P | J13: 6. Rozbočovací svorky | K13: 13. UNIVERZÁLNÍ ŘADOVÉ SVORKY UTB
D14: 7. Silové svorky BNP, V-TŘMENY, V-PRAPORCE | J14: 7. Silové svorky BNP, V-TŘMENY, V-PRAPORCE | K14: 14. UNIVERZÁLNÍ ŘADOVÉ SVORKY UTB – S
D15: 8. Stožárové výzbroje SV, SV-A, SV-B, SV-D, SV MINI, SV/P, SI | J15: 8. Stožárové výzbroje | K15: 15. DISTRIBUČNÍ BLOKY
D16: 9. Ekvipotenciální svorkovnice EPS 1,2,3, EPS 4, 5 Zemnicí svorky ZSA 16, ZS 16 VK, ZS 4 | J16: 9. Ekvipotenciální svorkovnice, zemnicí svorky | K16: 16. STOŽÁROVÉ VÝZBROJE
D17: 10. Průchozí izolované svorky HPS, BD Stoupačkové svorkovnice HVS, BDS, S-DTB | J17: 10. Průchozí izolované svorky a stoupačkové svorkovnice | K17: 17. EKVIPOTENCIÁLNÍ SVORKOVNICE
D18: 11. Sběrnicové svorky BKS, BKNA, BKEA, BS, odbočné můstky | J18: 11. Sběrnicové svorky | K18: 18. ZEMNICÍ SVORKY
D19: 12. Průchodky HSS, HTL, HTT, MET Vývodky PG Průchodkové desky HTC, SCH, RIT, KUPO, HIK | J19: 12. Průchodky, vývodky a průchodkové desky | K19: 19. PRŮCHOZÍ IZOLOVANÉ SVORKY HPS, BD
D20: 13. Konektory solární, voděodolné, přístrojové | J20: 13. Konektory | K20: 20. STOUPAČKOVÉ SVORKOVNICE
D21: 14. Krabicové svorky vícepólové MT, porcelánové PT, stáčecí konektory, bezšroubové ST | J21: 14. Krabicové svorky | K21: 21. SBĚRNICOVÉ SVORKY
D22: 15. Rozváděčové příslušenství - žlaby, skříně, DIN lišty TS, LED kontrolky, zámky | J22: 15. Rozváděčové příslušenství | K22: 22. PRŮCHODKY, PRŮCHODKOVÉ DESKY A VODĚODOLNÉ KONEKTORY
D23: 16. Doplňující materiál - plombovací šrouby, chrániče hran, el. vodivá pasta | J23: 16. Doplňující materiál | K23: 23. DOPLŇUJÍCÍ MATERIÁL
D24: 17. Elektronické moduly RSE jednopatrové / dvoupatrové, RSA AV (varistorové) | J24: 17. Elektronické moduly | K24: 24. ELEKTRONICKÉ MODULY
D25: 18. Značení | J25: 18. Značení | K25: 25. ZNAČENÍ
K27: 30. INSTALAČNÍ SKŘÍNĚ
A32: Platnost od | B32: 2026-01-01

Sheet cenik
A1: Kategorie | B1: Objednací číslo | C1: Typ výrobku | D1: Prodejní cena bez DPH za 1 ks | E1: Balení výrobků (malé) | F1: Balení výrobků (velké) | G1: Hmotnost výrobku (g) | H1: EAN | I1: Celní kód | J1: Skupina položek | K1: řazení | L1: Rabat % | M1: Cena po slevě bez DPH
A2: 1. Šroubové řadové svorky | B2: A121111 | C2: Svorka RSA 2,5 A - bílá | D2: 14.15 | E2: 100 ks v krabici | F2: 800 ks v krabici | G2: 7 | H2: 8595155003133 | I2: 85389099 | J2: =IF(OR(N2="",N2=0,N2="#NENÍ_K_DISPOZICI"),"",N2) -> RSA 2,5A | K2: 11001000 | L2: 0 | M2: =D2-D2*L2 -> 14.15 | N2: =VLOOKUP(C2,'cenik-BEZ-duplicitnich položek'!C:J,8,FALSE) -> RSA 2,5A
A3: 1. Šroubové řadové svorky | B3: A121121 | C3: Svorka RSA 2,5 A - světle modrá | D3: 14.15 | E3: 100 ks v krabici | F3: 800 ks v krabici | G3: 7 | H3: 8595155003140 | I3: 85389099 | J3: =IF(OR(N3="",N3=0,N3="#NENÍ_K_DISPOZICI"),"",N3) -> RSA 2,5A | K3: 11001000 | L3: 0 | M3: 14.15 | N3: =VLOOKUP(C3,'cenik-BEZ-duplicitnich položek'!C:J,8,FALSE) -> RSA 2,5A
A4: 1. Šroubové řadové svorky | B4: A121131 | C4: Svorka RSA 2,5 A - tmavě modrá | D4: 14.15 | E4: 100 ks v krabici | F4: 800 ks v krabici | G4: 7 | H4: 8595155003157 | I4: 85389099 | J4: RSA 2,5A | K4: 11001000 | L4: 0 | M4: 14.15 | N4: =VLOOKUP(C4,'cenik-BEZ-duplicitnich položek'!C:J,8,FALSE) -> RSA 2,5A
A5: 1. Šroubové řadové svorky | B5: A121141 | C5: Svorka RSA 2,5 A - gobi | D5: 14.15 | E5: 100 ks v krabici | F5: 800 ks v krabici | G5: 7 | H5: 8595155003164 | I5: 85389099 | J5: RSA 2,5A | K5: 11001000 | L5: 0 | M5: 14.15 | N5: =VLOOKUP(C5,'cenik-BEZ-duplicitnich položek'!C:J,8,FALSE) -> RSA 2,5A
A6: 1. Šroubové řadové svorky | B6: A121151 | C6: Svorka RSA 2,5 A - hnědá | D6: 14.15 | E6: 100 ks v krabici | F6: 800 ks v krabici | G6: 7 | H6: 8595155003171 | I6: 85389099 | J6: RSA 2,5A | K6: 11001000 | L6: 0 | M6: 14.15 | N6: =VLOOKUP(C6,'cenik-BEZ-duplicitnich položek'!C:J,8,FALSE) -> RSA 2,5A
A7: 1. Šroubové řadové svorky | B7: A121161 | C7: Svorka RSA 2,5 A - červená | D7: 14.15 | E7: 100 ks v krabici | F7: 800 ks v krabici | G7: 7 | H7: 8595155003188 | I7: 85389099 | J7: RSA 2,5A | K7: 11001000 | L7: 0 | M7: 14.15 | N7: =VLOOKUP(C7,'cenik-BEZ-duplicitnich položek'!C:J,8,FALSE) -> RSA 2,5A
A8: 1. Šroubové řadové svorky | B8: A121171 | C8: Svorka RSA 2,5 A - oranžová | D8: 14.15 | E8: 100 ks v krabici | F8: 800 ks v krabici | G8: 7 | H8: 8595155003195 | I8: 85389099 | J8: RSA 2,5A | K8: 11001000 | L8: 0 | M8: 14.15 | N8: =VLOOKUP(C8,'cenik-BEZ-duplicitnich položek'!C:J,8,FALSE) -> RSA 2,5A
A9: 1. Šroubové řadové svorky | B9: A121181 | C9: Svorka RSA 2,5 A - černá | D9: 14.15 | E9: 100 ks v krabici | F9: 800 ks v krabici | G9: 7 | H9: 8595155003201 | I9: 85389099 | J9: RSA 2,5A | K9: 11001000 | L9: 0 | M9: 14.15 | N9: =VLOOKUP(C9,'cenik-BEZ-duplicitnich položek'!C:J,8,FALSE) -> RSA 2,5A
A10: 1. Šroubové řadové svorky | B10: A121191 | C10: Svorka RSA 2,5 A - fialová | D10: 14.15 | E10: 100 ks v krabici | F10: 800 ks v krabici | G10: 7 | H10: 8595155003218 | I10: 85389099 | J10: RSA 2,5A | K10: 11001000 | L10: 0 | M10: 14.15 | N10: =VLOOKUP(C10,'cenik-BEZ-duplicitnich položek'!C:J,8,FALSE) -> RSA 2,5A
A11: 1. Šroubové řadové svorky | B11: A121211 | C11: Svorka RSA 2,5 A - šedá | D11: 14.15 | E11: 100 ks v krabici | F11: 800 ks v krabici | G11: 7 | H11: 8595155003225 | I11: 85389099 | J11: RSA 2,5A | K11: 11001000 | L11: 0 | M11: 14.15 | N11: =VLOOKUP(C11,'cenik-BEZ-duplicitnich položek'!C:J,8,FALSE) -> RSA 2,5A
A12: 1. Šroubové řadové svorky | B12: A821255 | C12: Svorka RSA 2,5 A - zelená | D12: 14.15 | E12: 100 ks v krabici | F12: 800 ks v krabici | G12: 7 | H12: 8595155003263 | I12: 85389099 | J12: RSA 2,5A | K12: 11001000 | L12: 0 | M12: 14.15 | N12: =VLOOKUP(C12,'cenik-BEZ-duplicitnich položek'!C:J,8,FALSE) -> RSA 2,5A
A13: 1. Šroubové řadové svorky | B13: A821265 | C13: Svorka RSA 2,5 A - žlutá | D13: 14.15 | E13: 100 ks v krabici | F13: 800 ks v krabici | G13: 7 | H13: 8595155003270 | I13: 85389099 | J13: RSA 2,5A | K13: 11001000 | L13: 0 | M13: 14.15 | N13: =VLOOKUP(C13,'cenik-BEZ-duplicitnich položek'!C:J,8,FALSE) -> RSA 2,5A
A14: 1. Šroubové řadové svorky | B14: C427100 | C14: Hřeben RSA 2,5 A a RSA 2,5 A P3H / 2-násobný | D14: 8.75 | E14: 10 ks v PE sáčku | F14: - | G14: 1 | H14: 8595155015563 | I14: 85389099 | K14: 11001001 | L14: 0 | M14: 8.75 | N14: =VLOOKUP(C14,'cenik-BEZ-duplicitnich položek'!C:J,8,FALSE) -> 0
A15: 1. Šroubové řadové svorky | B15: C427200 | C15: Hřeben RSA 2,5 A a RSA 2,5 A P3H / 3-násobný | D15: 11.05 | E15: 10 ks v PE sáčku | F15: - | G15: 2 | H15: 8595155015556 | I15: 85389099 | K15: 11001001 | L15: 0 | M15: 11.05 | N15: =VLOOKUP(C15,'cenik-BEZ-duplicitnich položek'!C:J,8,FALSE) -> 
A16: 1. Šroubové řadové svorky | B16: C427300 | C16: Hřeben RSA 2,5 A a RSA 2,5 A P3H / 4-násobný | D16: 12.45 | E16: 10 ks v PE sáčku | F16: - | G16: 3 | H16: 8595155015570 | I16: 85389099 | K16: 11001001 | L16: 0 | M16: 12.45 | N16: =VLOOKUP(C16,'cenik-BEZ-duplicitnich položek'!C:J,8,FALSE) -> 
A17: 1. Šroubové řadové svorky | B17: B621111 | C17: Koncová přepážka RSA 2,5 A / RS 4 - bílá | D17: 4.95 | E17: 50 ks v PE sáčku | F17: - | G17: 1 | H17: 8595155012579 | I17: 85389099 | K17: 11001002 | L17: 0 | M17: 4.95 | N17: =VLOOKUP(C17,'cenik-BEZ-duplicitnich položek'!C:J,8,FALSE) -> 
A18: 1. Šroubové řadové svorky | B18: B621121 | C18: Koncová přepážka RSA 2,5 A / RS 4 - světle modrá | D18: 4.95 | E18: 50 ks v PE sáčku | F18: - | G18: 1 | H18: 8595155012586 | I18: 85389099 | K18: 11001002 | L18: 0 | M18: 4.95 | N18: =VLOOKUP(C18,'cenik-BEZ-duplicitnich položek'!C:J,8,FALSE) -> 
A19: 1. Šroubové řadové svorky | B19: B621131 | C19: Koncová přepážka RSA 2,5 A / RS 4 - tmavě modrá | D19: 4.95 | E19: 50 ks v PE sáčku | F19: - | G19: 1 | H19: 8595155012593 | I19: 85389099 | K19: 11001002 | L19: 0 | M19: 4.95 | N19: =VLOOKUP(C19,'cenik-BEZ-duplicitnich položek'!C:J,8,FALSE) -> 
A20: 1. Šroubové řadové svorky | B20: B621141 | C20: Koncová přepážka RSA 2,5 A / RS 4 - gobi | D20: 4.95 | E20: 50 ks v PE sáčku | F20: - | G20: 1 | H20: 8595155012609 | I20: 85389099 | K20: 11001002 | L20: 0 | M20: 4.95 | N20: =VLOOKUP(C20,'cenik-BEZ-duplicitnich položek'!C:J,8,FALSE) -> 
A21: 1. Šroubové řadové svorky | B21: B621151 | C21: Koncová přepážka RSA 2,5 A / RS 4 - hnědá | D21: 4.95 | E21: 50 ks v PE sáčku | F21: - | G21: 1 | H21: 8595155012616 | I21: 85389099 | K21: 11001002 | L21: 0 | M21: 4.95 | N21: =VLOOKUP(C21,'cenik-BEZ-duplicitnich položek'!C:J,8,FALSE) -> 
A22: 1. Šroubové řadové svorky | B22: B621161 | C22: Koncová přepážka RSA 2,5 A / RS 4 - červená | D22: 4.95 | E22: 50 ks v PE sáčku | F22: - | G22: 1 | H22: 8595155012623 | I22: 85389099 | K22: 11001002 | L22: 0 | M22: 4.95 | N22: =VLOOKUP(C22,'cenik-BEZ-duplicitnich položek'!C:J,8,FALSE) -> 
A23: 1. Šroubové řadové svorky | B23: B621171 | C23: Koncová přepážka RSA 2,5 A / RS 4 - oranžová | D23: 4.95 | E23: 50 ks v PE sáčku | F23: - | G23: 1 | H23: 8595155012630 | I23: 85389099 | K23: 11001002 | L23: 0 | M23: 4.95 | N23: =VLOOKUP(C23,'cenik-BEZ-duplicitnich položek'!C:J,8,FALSE) -> 
A24: 1. Šroubové řadové svorky | B24: B621181 | C24: Koncová přepážka RSA 2,5 A / RS 4- černá | D24: 4.95 | E24: 50 ks v PE sáčku | F24: - | G24: 1 | H24: 8595155012647 | I24: 85389099 | K24: 11001002 | L24: 0 | M24: 4.95 | N24: =VLOOKUP(C24,'cenik-BEZ-duplicitnich položek'!C:J,8,FALSE) -> 
A25: 1. Šroubové řadové svorky | B25: B621191 | C25: Koncová přepážka RSA 2,5 A / RS 4 - fialová | D25: 4.95 | E25: 50 ks v PE sáčku | F25: - | G25: 1 | H25: 8595155012654 | I25: 85389099 | K25: 11001002 | L25: 0 | M25: 4.95 | N25: =VLOOKUP(C25,'cenik-BEZ-duplicitnich položek'!C:J,8,FALSE) -> 
A26: 1. Šroubové řadové svorky | B26: B621211 | C26: Koncová přepážka RSA 2,5 A / RS 4 - šedá | D26: 4.95 | E26: 50 ks v PE sáčku | F26: - | G26: 1 | H26: 8595155012661 | I26: 85389099 | K26: 11001002 | L26: 0 | M26: 4.95 | N26: =VLOOKUP(C26,'cenik-BEZ-duplicitnich položek'!C:J,8,FALSE) -> 
A27: 1. Šroubové řadové svorky | B27: B921251 | C27: Koncová přepážka RSA 2,5 A / RS 4 - zelená | D27: 4.95 | E27: 50 ks v PE sáčku | F27: - | G27: 1 | H27: 8595155012975 | I27: 85389099 | K27: 11001002 | L27: 0 | M27: 4.95 | N27: =VLOOKUP(C27,'cenik-BEZ-duplicitnich položek'!C:J,8,FALSE) -> 
A28: 1. Šroubové řadové svorky | B28: B921261 | C28: Koncová přepážka RSA 2,5 A / RS 4 - žlutá | D28: 4.95 | E28: 50 ks v PE sáčku | F28: - | G28: 1 | H28: 8595155012982 | I28: 85389099 | K28: 11001002 | L28: 0 | M28: 4.95 | N28: =VLOOKUP(C28,'cenik-BEZ-duplicitnich položek'!C:J,8,FALSE) -> 
A29: 1. Šroubové řadové svorky | B29: B621112 | C29: Středová přepážka RSA 2,5 A / RS 4 - bílá | D29: 5.45 | E29: 50 ks v PE sáčku | F29: - | G29: 2 | H29: 8595155012678 | I29: 85389099 | K29: 11001003 | L29: 0 | M29: 5.45 | N29: =VLOOKUP(C29,'cenik-BEZ-duplicitnich položek'!C:J,8,FALSE) -> 
A30: 1. Šroubové řadové svorky | B30: B621122 | C30: Středová přepážka RSA 2,5 A / RS 4 - světle modrá | D30: 5.45 | E30: 50 ks v PE sáčku | F30: - | G30: 2 | H30: 8595155012685 | I30: 85389099 | K30: 11001003 | L30: 0 | M30: 5.45 | N30: =VLOOKUP(C30,'cenik-BEZ-duplicitnich položek'!C:J,8,FALSE) -> 
A31: 1. Šroubové řadové svorky | B31: B621132 | C31: Středová přepážka RSA 2,5 A / RS 4- tmavě modrá | D31: 5.45 | E31: 50 ks v PE sáčku | F31: - | G31: 2 | H31: 8595155012692 | I31: 85389099 | K31: 11001003 | L31: 0 | M31: 5.45 | N31: =VLOOKUP(C31,'cenik-BEZ-duplicitnich položek'!C:J,8,FALSE) -> 
A32: 1. Šroubové řadové svorky | B32: B621142 | C32: Středová přepážka RSA 2,5 A / RS 4 - gobi | D32: 5.45 | E32: 50 ks v PE sáčku | F32: - | G32: 2 | H32: 8595155012708 | I32: 85389099 | K32: 11001003 | L32: 0 | M32: 5.45 | N32: =VLOOKUP(C32,'cenik-BEZ-duplicitnich položek'!C:J,8,FALSE) -> 
A33: 1. Šroubové řadové svorky | B33: B621152 | C33: Středová přepážka RSA 2,5 A / RS 4 - hnědá | D33: 5.45 | E33: 50 ks v PE sáčku | F33: - | G33: 2 | H33: 8595155012715 | I33: 85389099 | K33: 11001003 | L33: 0 | M33: 5.45 | N33: =VLOOKUP(C33,'cenik-BEZ-duplicitnich položek'!C:J,8,FALSE) -> 
A34: 1. Šroubové řadové svorky | B34: B621162 | C34: Středová přepážka RSA 2,5 A / RS 4 - červená | D34: 5.45 | E34: 50 ks v PE sáčku | F34: - | G34: 2 | H34: 8595155012722 | I34: 85389099 | K34: 11001003 | L34: 0 | M34: 5.45 | N34: =VLOOKUP(C34,'cenik-BEZ-duplicitnich položek'!C:J,8,FALSE) -> 
A35: 1. Šroubové řadové svorky | B35: B621172 | C35: Středová přepážka RSA 2,5 A / RS 4 - oranžová | D35: 5.45 | E35: 50 ks v PE sáčku | F35: - | G35: 2 | H35: 8595155012739 | I35: 85389099 | K35: 11001003 | L35: 0 | M35: 5.45 | N35: =VLOOKUP(C35,'cenik-BEZ-duplicitnich položek'!C:J,8,FALSE) -> 
A36: 1. Šroubové řadové svorky | B36: B621182 | C36: Středová přepážka RSA 2,5 A / RS 4 - černá | D36: 5.45 | E36: 50 ks v PE sáčku | F36: - | G36: 2 | H36: 8595155012746 | I36: 85389099 | K36: 11001003 | L36: 0 | M36: 5.45 | N36: =VLOOKUP(C36,'cenik-BEZ-duplicitnich položek'!C:J,8,FALSE) -> 
A37: 1. Šroubové řadové svorky | B37: B621192 | C37: Středová přepážka RSA 2,5 A / RS 4 - fialová | D37: 5.45 | E37: 50 ks v PE sáčku | F37: - | G37: 2 | H37: 8595155012753 | I37: 85389099 | K37: 11001003 | L37: 0 | M37: 5.45 | N37: =VLOOKUP(C37,'cenik-BEZ-duplicitnich položek'!C:J,8,FALSE) -> 
A38: 1. Šroubové řadové svorky | B38: B621212 | C38: Středová přepážka RSA 2,5 A / RS 4 - šedá | D38: 5.45 | E38: 50 ks v PE sáčku | F38: - | G38: 2 | H38: 8595155012760 | I38: 85389099 | K38: 11001003 | L38: 0 | M38: 5.45 | N38: =VLOOKUP(C38,'cenik-BEZ-duplicitnich položek'!C:J,8,FALSE) -> 
A39: 1. Šroubové řadové svorky | B39: A131111 | C39: Svorka RSA 4 A - bílá | D39: 14.15 | E39: 100 ks v krabici | F39: 1000 ks v krabici | G39: 8 | H39: 8595155000613 | I39: 85389099 | J39: RSA 4A | K39: 11002000 | L39: 0 | M39: 14.15 | N39: =VLOOKUP(C39,'cenik-BEZ-duplicitnich položek'!C:J,8,FALSE) -> RSA 4A
A40: 1. Šroubové řadové svorky | B40: A131118 | C40: Multipack Bečovská 200 (200 ks RSA 4 A bílá + šroubovák 1000V) | D40: 2912.85 | E40: 1 balení | F40: 10 balení | G40: 1734 | H40: 8595155000767 | I40: 85389099 | J40: RSA 4A | K40: 11002000 | L40: 0 | M40: 2912.85 | N40: =VLOOKUP(C40,'cenik-BEZ-duplicitnich položek'!C:J,8,FALSE) -> RSA 4A
A41: 1. Šroubové řadové svorky | B41: A131121 | C41: Svorka RSA 4 A - světle modrá | D41: 14.15 | E41: 100 ks v krabici | F41: 1000 ks v krabici | G41: 8 | H41: 8595155000736 | I41: 85389099 | J41: RSA 4A | K41: 11002000 | L41: 0 | M41: 14.15 | N41: =VLOOKUP(C41,'cenik-BEZ-duplicitnich položek'!C:J,8,FALSE) -> RSA 4A
A42: 1. Šroubové řadové svorky | B42: A131131 | C42: Svorka RSA 4 A - tmavě modrá | D42: 14.15 | E42: 100 ks v krabici | F42: 1000 ks v krabici | G42: 8 | H42: 8595155000637 | I42: 85389099 | J42: RSA 4A | K42: 11002000 | L42: 0 | M42: 14.15 | N42: =VLOOKUP(C42,'cenik-BEZ-duplicitnich položek'!C:J,8,FALSE) -> RSA 4A
A43: 1. Šroubové řadové svorky | B43: A131141 | C43: Svorka RSA 4 A - gobi | D43: 14.15 | E43: 100 ks v krabici | F43: 1000 ks v krabici | G43: 8 | H43: 8595155000644 | I43: 85389099 | J43: RSA 4A | K43: 11002000 | L43: 0 | M43: 14.15 | N43: =VLOOKUP(C43,'cenik-BEZ-duplicitnich položek'!C:J,8,FALSE) -> RSA 4A
A44: 1. Šroubové řadové svorky | B44: A131151 | C44: Svorka RSA 4 A - hnědá | D44: 14.15 | E44: 100 ks v krabici | F44: 1000 ks v krabici | G44: 8 | H44: 8595155000651 | I44: 85389099 | J44: RSA 4A | K44: 11002000 | L44: 0 | M44: 14.15 | N44: =VLOOKUP(C44,'cenik-BEZ-duplicitnich položek'!C:J,8,FALSE) -> RSA 4A
A45: 1. Šroubové řadové svorky | B45: A131161 | C45: Svorka RSA 4 A - červená | D45: 14.15 | E45: 100 ks v krabici | F45: 1000 ks v krabici | G45: 8 | H45: 8595155000668 | I45: 85389099 | J45: RSA 4A | K45: 11002000 | L45: 0 | M45: 14.15 | N45: =VLOOKUP(C45,'cenik-BEZ-duplicitnich položek'!C:J,8,FALSE) -> RSA 4A
A46: 1. Šroubové řadové svorky | B46: A131171 | C46: Svorka RSA 4 A - oranžová | D46: 14.15 | E46: 100 ks v krabici | F46: 1000 ks v krabici | G46: 8 | H46: 8595155000675 | I46: 85389099 | J46: RSA 4A | K46: 11002000 | L46: 0 | M46: 14.15 | N46: =VLOOKUP(C46,'cenik-BEZ-duplicitnich položek'!C:J,8,FALSE) -> RSA 4A
A47: 1. Šroubové řadové svorky | B47: A131181 | C47: Svorka RSA 4 A - černá | D47: 14.15 | E47: 100 ks v krabici | F47: 1000 ks v krabici | G47: 8 | H47: 8595155000682 | I47: 85389099 | J47: RSA 4A | K47: 11002000 | L47: 0 | M47: 14.15 | N47: =VLOOKUP(C47,'cenik-BEZ-duplicitnich položek'!C:J,8,FALSE) -> RSA 4A
A48: 1. Šroubové řadové svorky | B48: A131191 | C48: Svorka RSA 4 A - fialová | D48: 14.15 | E48: 100 ks v krabici | F48: 1000 ks v krabici | G48: 8 | H48: 8595155000743 | I48: 85389099 | J48: RSA 4A | K48: 11002000 | L48: 0 | M48: 14.15 | N48: =VLOOKUP(C48,'cenik-BEZ-duplicitnich položek'!C:J,8,FALSE) -> RSA 4A
A49: 1. Šroubové řadové svorky | B49: A131211 | C49: Svorka RSA 4 A - šedá | D49: 14.15 | E49: 100 ks v krabici | F49: 1000 ks v krabici | G49: 8 | H49: 8595155000750 | I49: 85389099 | J49: RSA 4A | K49: 11002000 | L49: 0 | M49: 14.15 | N49: =VLOOKUP(C49,'cenik-BEZ-duplicitnich položek'!C:J,8,FALSE) -> RSA 4A
A50: 1. Šroubové řadové svorky | B50: A131218 | C50: Multipack Bečovská 200 (200 ks RSA 4 A šedá + šroubovák 1000V) | D50: 2912.85 | E50: 1 balení | F50: 10 balení | G50: 1734 | H50: 8595155000774 | I50: 85389099 | J50: RSA 4A | K50: 11002000 | L50: 0 | M50: 2912.85 | N50: =VLOOKUP(C50,'cenik-BEZ-duplicitnich položek'!C:J,8,FALSE) -> RSA 4A
A51: 1. Šroubové řadové svorky | B51: A831255 | C51: Svorka RSA 4 A - žlutá | D51: 14.15 | E51: 100 ks v krabici | F51: 1000 ks v krabici | G51: 8 | H51: 8595155002723 | I51: 85389099 | J51: RSA 4A | K51: 11002000 | L51: 0 | M51: 14.15 | N51: =VLOOKUP(C51,'cenik-BEZ-duplicitnich položek'!C:J,8,FALSE) -> RSA 4A
A52: 1. Šroubové řadové svorky | B52: A831265 | C52: Svorka RSA 4 A - zelená | D52: 14.15 | E52: 100 ks v krabici | F52: 1000 ks v krabici | G52: 8 | H52: 8595155002716 | I52: 85389099 | J52: RSA 4A | K52: 11002000 | L52: 0 | M52: 14.15 | N52: =VLOOKUP(C52,'cenik-BEZ-duplicitnich položek'!C:J,8,FALSE) -> RSA 4A
A53: 1. Šroubové řadové svorky | B53: C131112 | C53: Propojka plochá 2 RSA 4 A | D53: 1.5 | E53: 50 ks v PE sáčku | F53: - | G53: 1 | H53: 8595155013910 | I53: 85389099 | K53: 11002001 | L53: 0 | M53: 1.5 | N53: =VLOOKUP(C53,'cenik-BEZ-duplicitnich položek'!C:J,8,FALSE) -> 
A54: 1. Šroubové řadové svorky | B54: C131212 | C54: Propojka plochá 3 RSA 4 A | D54: 2.2 | E54: 50 ks v PE sáčku | F54: - | G54: 2 | H54: 8595155013927 | I54: 85389099 | K54: 11002001 | L54: 0 | M54: 2.2 | N54: =VLOOKUP(C54,'cenik-BEZ-duplicitnich položek'!C:J,8,FALSE) -> 
A55: 1. Šroubové řadové svorky | B55: C135312 | C55: Propojka plochá 4 RSA 4 A | D55: 3.55 | E55: 10 ks v PE sáčku | F55: - | G55: 2 | H55: 8595155014856 | I55: 85389099 | K55: 11002001 | L55: 0 | M55: 3.55 | N55: =VLOOKUP(C55,'cenik-BEZ-duplicitnich položek'!C:J,8,FALSE) -> 
A56: 1. Šroubové řadové svorky | B56: C135412 | C56: Propojka plochá 5 RSA 4 A | D56: 4.45 | E56: 10 ks v PE sáčku | F56: - | G56: 3 | H56: 8595155014863 | I56: 85389099 | K56: 11002001 | L56: 0 | M56: 4.45 | N56: =VLOOKUP(C56,'cenik-BEZ-duplicitnich položek'!C:J,8,FALSE) -> 
A57: 1. Šroubové řadové svorky | B57: C135512 | C57: Propojka plochá 6 RSA 4 A | D57: 5.25 | E57: 10 ks v PE sáčku | F57: - | G57: 3 | H57: 8595155014870 | I57: 85389099 | K57: 11002001 | L57: 0 | M57: 5.25 | N57: =VLOOKUP(C57,'cenik-BEZ-duplicitnich položek'!C:J,8,FALSE) -> 
A58: 1. Šroubové řadové svorky | B58: C135612 | C58: Propojka plochá 7 RSA 4 A | D58: 5.95 | E58: 10 ks v PE sáčku | F58: - | G58: 4 | H58: 8595155014887 | I58: 85389099 | K58: 11002001 | L58: 0 | M58: 5.95 | N58: =VLOOKUP(C58,'cenik-BEZ-duplicitnich položek'!C:J,8,FALSE) -> 
A59: 1. Šroubové řadové svorky | B59: C135712 | C59: Propojka plochá 8 RSA 4 A | D59: 6.55 | E59: 10 ks v PE sáčku | F59: - | G59: 4 | H59: 8595155014894 | I59: 85389099 | K59: 11002001 | L59: 0 | M59: 6.55 | N59: =VLOOKUP(C59,'cenik-BEZ-duplicitnich položek'!C:J,8,FALSE) -> 
A60: 1. Šroubové řadové svorky | B60: C135812 | C60: Propojka plochá 9 RSA 4 A | D60: 7.25 | E60: 10 ks v PE sáčku | F60: - | G60: 5 | H60: 8595155014900 | I60: 85389099 | K60: 11002001 | L60: 0 | M60: 7.25 | N60: =VLOOKUP(C60,'cenik-BEZ-duplicitnich položek'!C:J,8,FALSE) -> 
A61: 1. Šroubové řadové svorky | B61: C135912 | C61: Propojka plochá 10 RSA 4 A | D61: 7.95 | E61: 10 ks v PE sáčku | F61: - | G61: 6 | H61: 8595155014917 | I61: 85389099 | K61: 11002001 | L61: 0 | M61: 7.95 | N61: =VLOOKUP(C61,'cenik-BEZ-duplicitnich položek'!C:J,8,FALSE) -> 
A62: 1. Šroubové řadové svorky | B62: C137112 | C62: Propojka horní RSA 4 A/2-násobná | D62: 9.9 | E62: 10 ks v PE sáčku | F62: - | G62: 4 | H62: 8595155014924 | I62: 85389099 | K62: 11002001 | L62: 0 | M62: 9.9 | N62: =VLOOKUP(C62,'cenik-BEZ-duplicitnich položek'!C:J,8,FALSE) -> 
A63: 1. Šroubové řadové svorky | B63: C137212 | C63: Propojka horní RSA 4 A/3-násobná | D63: 13.85 | E63: 10 ks v PE sáčku | F63: - | G63: 6 | H63: 8595155014931 | I63: 85389099 | K63: 11002001 | L63: 0 | M63: 13.85 | N63: =VLOOKUP(C63,'cenik-BEZ-duplicitnich položek'!C:J,8,FALSE) -> 
A64: 1. Šroubové řadové svorky | B64: C137312 | C64: Propojka horní RSA 4 A/4-násobná | D64: 17.65 | E64: 10 ks v PE sáčku | F64: - | G64: 8 | H64: 8595155014948 | I64: 85389099 | K64: 11002001 | L64: 0 | M64: 17.65 | N64: =VLOOKUP(C64,'cenik-BEZ-duplicitnich položek'!C:J,8,FALSE) -> 
A65: 1. Šroubové řadové svorky | B65: C137912 | C65: Propojka horní RSA 4 A/10-násobná | D65: 39.85 | E65: 10 ks v PE sáčku | F65: - | G65: 20 | H65: 8595155014955 | I65: 85389099 | K65: 11002001 | L65: 0 | M65: 39.85 | N65: =VLOOKUP(C65,'cenik-BEZ-duplicitnich položek'!C:J,8,FALSE) -> 
A66: 1. Šroubové řadové svorky | B66: C431911 | C66: Hřeben RSA 4 A/10-násobný | D66: 20.5 | E66: 5 ks v PE sáčku | F66: - | G66: 6 | H66: 8595155015518 | I66: 85389099 | K66: 11002002 | L66: 0 | M66: =D66-D66*L66 -> 20.5 | N66: =VLOOKUP(C66,'cenik-BEZ-duplicitnich položek'!C:J,8,FALSE) -> 
A67: 1. Šroubové řadové svorky | B67: C337120 | C67: Zkratovací propojka ZP 4 A pro RSA 4 A | D67: 16.2 | E67: 10 ks v PE sáčku | F67: 100 ks v PE sáčku | G67: 5 | H67: 8595155015136 | I67: 85389099 | J67: =IF(OR(N67="",N67=0,N67="#NENÍ_K_DISPOZICI"),"",N67) ->  | K67: 11002003 | L67: 0 | M67: 16.2 | N67: =VLOOKUP(C67,'cenik-BEZ-duplicitnich položek'!C:J,8,FALSE) -> 
A68: 1. Šroubové řadové svorky | B68: C235010 | C68: Měřící zdířka RSA 4 A / RS 4 | D68: 13.95 | E68: 10 ks v PE sáčku | F68: 100 ks v PE sáčku | G68: 1 | H68: 8595155017628 | I68: 85389099 | K68: 11002004 | L68: 0 | M68: 13.95 | N68: =VLOOKUP(C68,'cenik-BEZ-duplicitnich položek'!C:J,8,FALSE) -> 
A69: 1. Šroubové řadové svorky | B69: B631111 | C69: Koncová přepážka RSA 4 A - bílá | D69: 5.6 | E69: 50 ks v PE sáčku | F69: - | G69: 1 | H69: 8595155010612 | I69: 85389099 | K69: 11002005 | L69: 0 | M69: 5.6 | N69: =VLOOKUP(C69,'cenik-BEZ-duplicitnich položek'!C:J,8,FALSE) -> 
A70: 1. Šroubové řadové svorky | B70: B631121 | C70: Koncová přepážka RSA 4 A - světle modrá | D70: 5.6 | E70: 50 ks v PE sáčku | F70: - | G70: 1 | H70: 8595155010636 | I70: 85389099 | K70: 11002005 | L70: 0 | M70: 5.6 | N70: =VLOOKUP(C70,'cenik-BEZ-duplicitnich položek'!C:J,8,FALSE) -> 
A71: 1. Šroubové řadové svorky | B71: B631131 | C71: Koncová přepážka RSA 4 A - tmavě modrá | D71: 5.6 | E71: 50 ks v PE sáčku | F71: - | G71: 1 | H71: 8595155010643 | I71: 85389099 | K71: 11002005 | L71: 0 | M71: 5.6 | N71: =VLOOKUP(C71,'cenik-BEZ-duplicitnich položek'!C:J,8,FALSE) -> 
A72: 1. Šroubové řadové svorky | B72: B631141 | C72: Koncová přepážka RSA 4 A - gobi | D72: 5.6 | E72: 50 ks v PE sáčku | F72: - | G72: 1 | H72: 8595155010650 | I72: 85389099 | K72: 11002005 | L72: 0 | M72: 5.6 | N72: =VLOOKUP(C72,'cenik-BEZ-duplicitnich položek'!C:J,8,FALSE) -> 
A73: 1. Šroubové řadové svorky | B73: B631151 | C73: Koncová přepážka RSA 4 A - hnědá | D73: 5.6 | E73: 50 ks v PE sáčku | F73: - | G73: 1 | H73: 8595155010667 | I73: 85389099 | K73: 11002005 | L73: 0 | M73: 5.6 | N73: =VLOOKUP(C73,'cenik-BEZ-duplicitnich položek'!C:J,8,FALSE) -> 
A74: 1. Šroubové řadové svorky | B74: B631161 | C74: Koncová přepážka RSA 4 A - červená | D74: 5.6 | E74: 50 ks v PE sáčku | F74: - | G74: 1 | H74: 8595155010674 | I74: 85389099 | K74: 11002005 | L74: 0 | M74: 5.6 | N74: =VLOOKUP(C74,'cenik-BEZ-duplicitnich položek'!C:J,8,FALSE) -> 
A75: 1. Šroubové řadové svorky | B75: B631171 | C75: Koncová přepážka RSA 4 A - oranžová | D75: 5.6 | E75: 50 ks v PE sáčku | F75: - | G75: 1 | H75: 8595155010681 | I75: 85389099 | K75: 11002005 | L75: 0 | M75: 5.6 | N75: =VLOOKUP(C75,'cenik-BEZ-duplicitnich položek'!C:J,8,FALSE) -> 
A76: 1. Šroubové řadové svorky | B76: B631181 | C76: Koncová přepážka RSA 4 A - černá | D76: 5.6 | E76: 50 ks v PE sáčku | F76: - | G76: 1 | H76: 8595155010698 | I76: 85389099 | K76: 11002005 | L76: 0 | M76: 5.6 | N76: =VLOOKUP(C76,'cenik-BEZ-duplicitnich položek'!C:J,8,FALSE) -> 
A77: 1. Šroubové řadové svorky | B77: B631191 | C77: Koncová přepážka RSA 4 A - fialová | D77: 5.6 | E77: 50 ks v PE sáčku | F77: - | G77: 1 | H77: 8595155010704 | I77: 85389099 | K77: 11002005 | L77: 0 | M77: 5.6 | N77: =VLOOKUP(C77,'cenik-BEZ-duplicitnich položek'!C:J,8,FALSE) -> 
A78: 1. Šroubové řadové svorky | B78: B631211 | C78: Koncová přepážka RSA 4 A - šedá | D78: 5.6 | E78: 50 ks v PE sáčku | F78: - | G78: 1 | H78: 8595155010711 | I78: 85389099 | K78: 11002005 | L78: 0 | M78: 5.6 | N78: =VLOOKUP(C78,'cenik-BEZ-duplicitnich položek'!C:J,8,FALSE) -> 
A79: 1. Šroubové řadové svorky | B79: B931251 | C79: Koncová přepážka RSA 4 A - zelená | D79: 5.6 | E79: 50 ks v PE sáčku | F79: - | G79: 1 | H79: 8595155012968 | I79: 85389099 | K79: 11002005 | L79: 0 | M79: 5.6 | N79: =VLOOKUP(C79,'cenik-BEZ-duplicitnich položek'!C:J,8,FALSE) -> 
A80: 1. Šroubové řadové svorky | B80: B931261 | C80: Koncová přepážka RSA 4 A - žlutá | D80: 5.6 | E80: 50 ks v PE sáčku | F80: - | G80: 1 | H80: 8595155012951 | I80: 85389099 | K80: 11002005 | L80: 0 | M80: 5.6 | N80: =VLOOKUP(C80,'cenik-BEZ-duplicitnich položek'!C:J,8,FALSE) -> 
A81: 1. Šroubové řadové svorky | B81: B631112 | C81: Středová přepážka RSA 4 A - bílá | D81: 7.25 | E81: 50 ks v PE sáčku | F81: - | G81: 2 | H81: 8595155010629 | I81: 85389099 | K81: 11002006 | L81: 0 | M81: 7.25 | N81: =VLOOKUP(C81,'cenik-BEZ-duplicitnich položek'!C:J,8,FALSE) -> 
A82: 1. Šroubové řadové svorky | B82: B631122 | C82: Středová přepážka RSA 4 A - světle modrá | D82: 7.25 | E82: 50 ks v PE sáčku | F82: - | G82: 2 | H82: 8595155010728 | I82: 85389099 | K82: 11002006 | L82: 0 | M82: 7.25 | N82: =VLOOKUP(C82,'cenik-BEZ-duplicitnich položek'!C:J,8,FALSE) -> 
A83: 1. Šroubové řadové svorky | B83: B631132 | C83: Středová přepážka RSA 4 A - tmavě modrá | D83: 7.25 | E83: 50 ks v PE sáčku | F83: - | G83: 2 | H83: 8595155010735 | I83: 85389099 | K83: 11002006 | L83: 0 | M83: 7.25 | N83: =VLOOKUP(C83,'cenik-BEZ-duplicitnich položek'!C:J,8,FALSE) -> 
A84: 1. Šroubové řadové svorky | B84: B631142 | C84: Středová přepážka RSA 4 A - gobi | D84: 7.25 | E84: 50 ks v PE sáčku | F84: - | G84: 2 | H84: 8595155010742 | I84: 85389099 | K84: 11002006 | L84: 0 | M84: 7.25 | N84: =VLOOKUP(C84,'cenik-BEZ-duplicitnich položek'!C:J,8,FALSE) -> 
A85: 1. Šroubové řadové svorky | B85: B631152 | C85: Středová přepážka RSA 4 A - hnědá | D85: 7.25 | E85: 50 ks v PE sáčku | F85: - | G85: 2 | H85: 8595155010759 | I85: 85389099 | K85: 11002006 | L85: 0 | M85: 7.25 | N85: =VLOOKUP(C85,'cenik-BEZ-duplicitnich položek'!C:J,8,FALSE) -> 
A86: 1. Šroubové řadové svorky | B86: B631162 | C86: Středová přepážka RSA 4 A - červená | D86: 7.25 | E86: 50 ks v PE sáčku | F86: - | G86: 2 | H86: 8595155010766 | I86: 85389099 | K86: 11002006 | L86: 0 | M86: 7.25 | N86: =VLOOKUP(C86,'cenik-BEZ-duplicitnich položek'!C:J,8,FALSE) -> 
A87: 1. Šroubové řadové svorky | B87: B631172 | C87: Středová přepážka RSA 4 A - oranžová | D87: 7.25 | E87: 50 ks v PE sáčku | F87: - | G87: 2 | H87: 8595155010773 | I87: 85389099 | K87: 11002006 | L87: 0 | M87: 7.25 | N87: =VLOOKUP(C87,'cenik-BEZ-duplicitnich položek'!C:J,8,FALSE) -> 
A88: 1. Šroubové řadové svorky | B88: B631182 | C88: Středová přepážka RSA 4 A - černá | D88: 7.25 | E88: 50 ks v PE sáčku | F88: - | G88: 2 | H88: 8595155010780 | I88: 85389099 | K88: 11002006 | L88: 0 | M88: 7.25 | N88: =VLOOKUP(C88,'cenik-BEZ-duplicitnich položek'!C:J,8,FALSE) -> 
A89: 1. Šroubové řadové svorky | B89: B631192 | C89: Středová přepážka RSA 4 A - fialová | D89: 7.25 | E89: 50 ks v PE sáčku | F89: - | G89: 2 | H89: 8595155010797 | I89: 85389099 | K89: 11002006 | L89: 0 | M89: 7.25 | N89: =VLOOKUP(C89,'cenik-BEZ-duplicitnich položek'!C:J,8,FALSE) -> 
A90: 1. Šroubové řadové svorky | B90: B631212 | C90: Středová přepážka RSA 4 A - šedá | D90: 7.25 | E90: 50 ks v PE sáčku | F90: - | G90: 2 | H90: 8595155010803 | I90: 85389099 | K90: 11002006 | L90: 0 | M90: 7.25 | N90: =VLOOKUP(C90,'cenik-BEZ-duplicitnich položek'!C:J,8,FALSE) -> 
A91: 1. Šroubové řadové svorky | B91: C431015 | C91: Koncovka krycího profilu propojovacího hřebenu pro RSA 4 a RSP 4 a RSE | D91: 4.7 | E91: 10 ks v PE sáčku | F91: - | G91: 0.15 | H91: 8595155015532 | I91: 85389099 | K91: 11002007 | L91: 0 | M91: 4.7 | N91: =VLOOKUP(C91,'cenik-BEZ-duplicitnich položek'!C:J,8,FALSE) -> 
A92: 1. Šroubové řadové svorky | B92: G420025 | C92: Krycí štítek RSA 4 A | D92: 4.55 | E92: 10 ks v PE sáčku | F92: - | G92: 1 | H92: 8595155028068 | I92: 85472000 | K92: 11002007 | L92: 0 | M92: 4.55 | N92: =VLOOKUP(C92,'cenik-BEZ-duplicitnich položek'!C:J,8,FALSE) -> 
A93: 1. Šroubové řadové svorky | B93: G512126 | C93: Krytka RSA 4 A pro 4 svorky (žlutá - text POD NAPĚTÍM Z CIZÍHO ZDROJE) | D93: 11.5 | E93: 10 ks v PE sáčku | F93: - | G93: 1 | H93: 8595155028372 | I93: 85472000 | K93: 11002007 | L93: 0 | M93: 11.5 | N93: =VLOOKUP(C93,'cenik-BEZ-duplicitnich položek'!C:J,8,FALSE) -> 
A94: 1. Šroubové řadové svorky | B94: G512426 | C94: Krytka RSA 4 A pro 4 svorky (žlutá - text POD NAPĚTÍM I PŘI VYPNUTÉM HLAVNÍM VYPÍNAČI) | D94: 11.5 | E94: 10 ks v PE sáčku | F94: - | G94: 1 | H94: 8595155028358 | I94: 85472000 | K94: 11002007 | L94: 0 | M94: 11.5 | N94: =VLOOKUP(C94,'cenik-BEZ-duplicitnich položek'!C:J,8,FALSE) -> 
A95: 1. Šroubové řadové svorky | B95: G520026 | C95: Krytka RSA 4 A pro 4 svorky (žlutá s bleskem) | D95: 11.5 | E95: 10 ks v PE sáčku | F95: - | G95: 1 | H95: 8595155028419 | I95: 85472000 | K95: 11002007 | L95: 0 | M95: 11.5 | N95: =VLOOKUP(C95,'cenik-BEZ-duplicitnich položek'!C:J,8,FALSE) -> 
A96: 1. Šroubové řadové svorky | B96: G612126 | C96: Krytka RSA 4 A pro 5 svorek (žlutá - text POD NAPĚTÍM Z CIZÍHO ZDROJE) | D96: 11.8 | E96: 10 ks v PE sáčku | F96: - | G96: 1 | H96: 8595155028389 | I96: 85389099 | K96: 11002007 | L96: 0 | M96: 11.8 | N96: =VLOOKUP(C96,'cenik-BEZ-duplicitnich položek'!C:J,8,FALSE) -> 
A97: 1. Šroubové řadové svorky | B97: G612426 | C97: Krytka RSA 4 A pro 5 svorek (žlutá - text POD NAPĚTÍM I PŘI VYPNUTÉM HLAVNÍM VYPÍNAČI) | D97: 11.8 | E97: 10 ks v PE sáčku | F97: - | G97: 1 | H97: 8595155028365 | I97: 85389099 | K97: 11002007 | L97: 0 | M97: 11.8 | N97: =VLOOKUP(C97,'cenik-BEZ-duplicitnich položek'!C:J,8,FALSE) -> 
A98: 1. Šroubové řadové svorky | B98: G620026 | C98: Krytka RSA 4 A pro 5 svorek (žlutá s bleskem) | D98: 11.8 | E98: 10 ks v PE sáčku | F98: - | G98: 1 | H98: 8595155028433 | I98: 85389099 | K98: 11002007 | L98: 0 | M98: 11.8 | N98: =VLOOKUP(C98,'cenik-BEZ-duplicitnich položek'!C:J,8,FALSE) -> 
A99: 1. Šroubové řadové svorky | B99: A431111 | C99: Svorka RS 4 - bílá | D99: 14.15 | E99: 100 ks v krabici | F99: 1000 ks v krabici | G99: 8 | H99: 8595155005045 | I99: 85389099 | K99: 11002100 | L99: 0 | M99: 14.15 | N99: =VLOOKUP(C99,'cenik-BEZ-duplicitnich položek'!C:J,8,FALSE) -> 
A100: 1. Šroubové řadové svorky | B100: A431121 | C100: Svorka RS 4 - světle modrá | D100: 14.15 | E100: 100 ks v krabici | F100: 1000 ks v krabici | G100: 8 | H100: 8595155005083 | I100: 85389099 | K100: 11002100 | L100: 0 | M100: 14.15 | N100: =VLOOKUP(C100,'cenik-BEZ-duplicitnich položek'!C:J,8,FALSE) -> 
A101: 1. Šroubové řadové svorky | B101: A431131 | C101: Svorka RS 4 - tmavě modrá | D101: 14.15 | E101: 100 ks v krabici | F101: 1000 ks v krabici | G101: 8 | H101: 8595155005090 | I101: 85389099 | K101: 11002100 | L101: 0 | M101: 14.15 | N101: =VLOOKUP(C101,'cenik-BEZ-duplicitnich položek'!C:J,8,FALSE) -> 
A102: 1. Šroubové řadové svorky | B102: A431141 | C102: Svorka RS 4 - gobi | D102: 14.15 | E102: 100 ks v krabici | F102: 1000 ks v krabici | G102: 8 | H102: 8595155005106 | I102: 85389099 | K102: 11002100 | L102: 0 | M102: 14.15 | N102: =VLOOKUP(C102,'cenik-BEZ-duplicitnich položek'!C:J,8,FALSE) -> 
A103: 1. Šroubové řadové svorky | B103: A431151 | C103: Svorka RS 4 - hnědá | D103: 14.15 | E103: 100 ks v krabici | F103: 1000 ks v krabici | G103: 8 | H103: 8595155005328 | I103: 85389099 | K103: 11002100 | L103: 0 | M103: 14.15 | N103: =VLOOKUP(C103,'cenik-BEZ-duplicitnich položek'!C:J,8,FALSE) -> 
A104: 1. Šroubové řadové svorky | B104: A431161 | C104: Svorka RS 4 - červená | D104: 14.15 | E104: 100 ks v krabici | F104: 1000 ks v krabici | G104: 8 | H104: 8595155005342 | I104: 85389099 | K104: 11002100 | L104: 0 | M104: 14.15 | N104: =VLOOKUP(C104,'cenik-BEZ-duplicitnich položek'!C:J,8,FALSE) -> 
A105: 1. Šroubové řadové svorky | B105: A431171 | C105: Svorka RS 4 - oranžová | D105: 14.15 | E105: 100 ks v krabici | F105: 1000 ks v krabici | G105: 8 | H105: 8595155005359 | I105: 85389099 | K105: 11002100 | L105: 0 | M105: 14.15 | N105: =VLOOKUP(C105,'cenik-BEZ-duplicitnich položek'!C:J,8,FALSE) -> 
A106: 1. Šroubové řadové svorky | B106: A431181 | C106: Svorka RS 4 - černá | D106: 14.15 | E106: 100 ks v krabici | F106: 1000 ks v krabici | G106: 8 | H106: 8595155005366 | I106: 85389099 | K106: 11002100 | L106: 0 | M106: 14.15 | N106: =VLOOKUP(C106,'cenik-BEZ-duplicitnich položek'!C:J,8,FALSE) -> 
A107: 1. Šroubové řadové svorky | B107: A431191 | C107: Svorka RS 4 - fialová | D107: 14.15 | E107: 100 ks v krabici | F107: 1000 ks v krabici | G107: 8 | H107: 8595155005373 | I107: 85389099 | K107: 11002100 | L107: 0 | M107: 14.15 | N107: =VLOOKUP(C107,'cenik-BEZ-duplicitnich položek'!C:J,8,FALSE) -> 
A108: 1. Šroubové řadové svorky | B108: A431211 | C108: Svorka RS 4 - šedá | D108: 14.15 | E108: 100 ks v krabici | F108: 1000 ks v krabici | G108: 8 | H108: 8595155005380 | I108: 85389099 | K108: 11002100 | L108: 0 | M108: 14.15 | N108: =VLOOKUP(C108,'cenik-BEZ-duplicitnich položek'!C:J,8,FALSE) -> 
A109: 1. Šroubové řadové svorky | B109: A431251 | C109: Svorka RS 4 - zelená | D109: 14.15 | E109: 100 ks v krabici | F109: 1000 ks v krabici | G109: 8 | H109: 8595155005397 | I109: 85389099 | K109: 11002100 | L109: 0 | M109: 14.15 | N109: =VLOOKUP(C109,'cenik-BEZ-duplicitnich položek'!C:J,8,FALSE) -> 
A110: 1. Šroubové řadové svorky | B110: A431261 | C110: Svorka RS 4 - žlutá | D110: 14.15 | E110: 100 ks v krabici | F110: 1000 ks v krabici | G110: 8 | H110: 8595155005403 | I110: 85389099 | K110: 11002100 | L110: 0 | M110: 14.15 | N110: =VLOOKUP(C110,'cenik-BEZ-duplicitnich položek'!C:J,8,FALSE) -> 
A111: 1. Šroubové řadové svorky | B111: C134112 | C111: Propojka plochá 2 RS 4 | D111: 1.5 | E111: 50 ks v PE sáčku | F111: - | G111: 1 | H111: 8595155013507 | I111: 85389099 | K111: 11002101 | L111: 0 | M111: 1.5 | N111: =VLOOKUP(C111,'cenik-BEZ-duplicitnich položek'!C:J,8,FALSE) -> 
A112: 1. Šroubové řadové svorky | B112: C134212 | C112: Propojka plochá 3 RS 4 | D112: 2.2 | E112: 50 ks v PE sáčku | F112: - | G112: 2 | H112: 8595155013514 | I112: 85389099 | K112: 11002101 | L112: 0 | M112: 2.2 | N112: =VLOOKUP(C112,'cenik-BEZ-duplicitnich položek'!C:J,8,FALSE) -> 
A113: 1. Šroubové řadové svorky | B113: C134312 | C113: Propojka plochá 4 RS 4 | D113: 3.55 | E113: 10 ks v PE sáčku | F113: - | G113: 2 | H113: 8595155013521 | I113: 85389099 | K113: 11002101 | L113: 0 | M113: 3.55 | N113: =VLOOKUP(C113,'cenik-BEZ-duplicitnich položek'!C:J,8,FALSE) -> 
A114: 1. Šroubové řadové svorky | B114: C134912 | C114: Propojka plochá 10 RS 4 | D114: 7.95 | E114: 10 ks v PE sáčku | F114: - | G114: 6 | H114: 8595155013538 | I114: 85389099 | K114: 11002101 | L114: 0 | M114: 7.95 | N114: =VLOOKUP(C114,'cenik-BEZ-duplicitnich položek'!C:J,8,FALSE) -> 
A115: 1. Šroubové řadové svorky | B115: C431117 | C115: Hřeben EURO (Mini) D4 a RS 4 / 2-násobný | D115: 10.15 | E115: 100 ks v PE sáčku | F115: - | G115: 1 | H115: 8595155015716 | I115: 85389099 | J115: EU D Přís | K115: 11002102 | L115: 0 | M115: 10.15 | N115: =VLOOKUP(C115,'cenik-BEZ-duplicitnich položek'!C:J,8,FALSE) -> EU D Přís
A116: 1. Šroubové řadové svorky | B116: C431217 | C116: Hřeben EURO (Mini) D4 a RS 4 / 3-násobný | D116: 16.5 | E116: 100 ks v PE sáčku | F116: - | G116: 1 | H116: 8595155015723 | I116: 85389099 | J116: EU D Přís | K116: 11002102 | L116: 0 | M116: 16.5 | N116: =VLOOKUP(C116,'cenik-BEZ-duplicitnich položek'!C:J,8,FALSE) -> EU D Přís
A117: 1. Šroubové řadové svorky | B117: C344116 | C117: Zkratovací propojka ZP 4 pro RS 4 | D117: 16.2 | E117: 10 ks v PE sáčku | F117: 100 ks v PE sáčku | G117: 5 | H117: 8595155015013 | I117: 85389099 | K117: 11002103 | L117: 0 | M117: 16.2 | N117: =VLOOKUP(C117,'cenik-BEZ-duplicitnich položek'!C:J,8,FALSE) -> 
A118: 1. Šroubové řadové svorky | B118: C634010 | C118: Zdířka pro zkratovací propojku ZP 4 | D118: 13.95 | E118: 10 ks v PE sáčku | F118: 100 ks v PE sáčku | G118: 1 | H118: 8595155017673 | I118: 85389099 | K118: 11002104 | L118: 0 | M118: 13.95 | N118: =VLOOKUP(C118,'cenik-BEZ-duplicitnich položek'!C:J,8,FALSE) -> 
A119: 1. Šroubové řadové svorky | B119: C235010 | C119: Měřící zdířka RSA 4 A / RS 4 | D119: 13.95 | E119: 10 ks v PE sáčku | F119: 100 ks v PE sáčku | G119: 1 | H119: 8595155017628 | I119: 85389099 | K119: 11002105 | L119: 0 | M119: 13.95 | N119: =VLOOKUP(C119,'cenik-BEZ-duplicitnich položek'!C:J,8,FALSE) -> 
A120: 1. Šroubové řadové svorky | B120: B621111 | C120: Koncová přepážka RSA 2,5 A / RS 4 - bílá | D120: 4.95 | E120: 50 ks v PE sáčku | F120: - | G120: 1 | H120: 8595155012579 | I120: 85389099 | K120: 11002106 | L120: 0 | M120: 4.95 | N120: =VLOOKUP(C120,'cenik-BEZ-duplicitnich položek'!C:J,8,FALSE) -> 
A121: 1. Šroubové řadové svorky | B121: B621121 | C121: Koncová přepážka RSA 2,5 A / RS 4 - světle modrá | D121: 4.95 | E121: 50 ks v PE sáčku | F121: - | G121: 1 | H121: 8595155012586 | I121: 85389099 | K121: 11002106 | L121: 0 | M121: 4.95 | N121: =VLOOKUP(C121,'cenik-BEZ-duplicitnich položek'!C:J,8,FALSE) -> 
A122: 1. Šroubové řadové svorky | B122: B621131 | C122: Koncová přepážka RSA 2,5 A / RS 4- tmavě modrá | D122: 4.95 | E122: 50 ks v PE sáčku | F122: - | G122: 1 | H122: 8595155012593 | I122: 85389099 | K122: 11002106 | L122: 0 | M122: 4.95 | N122: =VLOOKUP(C122,'cenik-BEZ-duplicitnich položek'!C:J,8,FALSE) -> 
A123: 1. Šroubové řadové svorky | B123: B621141 | C123: Koncová přepážka RSA 2,5 A / RS 4 - gobi | D123: 4.95 | E123: 50 ks v PE sáčku | F123: - | G123: 1 | H123: 8595155012609 | I123: 85389099 | K123: 11002106 | L123: 0 | M123: 4.95 | N123: =VLOOKUP(C123,'cenik-BEZ-duplicitnich položek'!C:J,8,FALSE) -> 
A124: 1. Šroubové řadové svorky | B124: B621151 | C124: Koncová přepážka RSA 2,5 A / RS 4- hnědá | D124: 4.95 | E124: 50 ks v PE sáčku | F124: - | G124: 1 | H124: 8595155012616 | I124: 85389099 | K124: 11002106 | L124: 0 | M124: 4.95 | N124: =VLOOKUP(C124,'cenik-BEZ-duplicitnich položek'!C:J,8,FALSE) -> 
A125: 1. Šroubové řadové svorky | B125: B621161 | C125: Koncová přepážka RSA 2,5 A / RS 4 - červená | D125: 4.95 | E125: 50 ks v PE sáčku | F125: - | G125: 1 | H125: 8595155012623 | I125: 85389099 | K125: 11002106 | L125: 0 | M125: 4.95 | N125: =VLOOKUP(C125,'cenik-BEZ-duplicitnich položek'!C:J,8,FALSE) -> 
A126: 1. Šroubové řadové svorky | B126: B621171 | C126: Koncová přepážka RSA 2,5 A / RS 4 - oranžová | D126: 4.95 | E126: 50 ks v PE sáčku | F126: - | G126: 1 | H126: 8595155012630 | I126: 85389099 | K126: 11002106 | L126: 0 | M126: 4.95 | N126: =VLOOKUP(C126,'cenik-BEZ-duplicitnich položek'!C:J,8,FALSE) -> 
A127: 1. Šroubové řadové svorky | B127: B621181 | C127: Koncová přepážka RSA 2,5 A / RS 4- černá | D127: 4.95 | E127: 50 ks v PE sáčku | F127: - | G127: 1 | H127: 8595155012647 | I127: 85389099 | K127: 11002106 | L127: 0 | M127: 4.95 | N127: =VLOOKUP(C127,'cenik-BEZ-duplicitnich položek'!C:J,8,FALSE) -> 
A128: 1. Šroubové řadové svorky | B128: B621191 | C128: Koncová přepážka RSA 2,5 A / RS 4 - fialová | D128: 4.95 | E128: 50 ks v PE sáčku | F128: - | G128: 1 | H128: 8595155012654 | I128: 85389099 | K128: 11002106 | L128: 0 | M128: 4.95 | N128: =VLOOKUP(C128,'cenik-BEZ-duplicitnich položek'!C:J,8,FALSE) -> 
A129: 1. Šroubové řadové svorky | B129: B621211 | C129: Koncová přepážka RSA 2,5 A / RS 4 - šedá | D129: 4.95 | E129: 50 ks v PE sáčku | F129: - | G129: 1 | H129: 8595155012661 | I129: 85389099 | K129: 11002106 | L129: 0 | M129: 4.95 | N129: =VLOOKUP(C129,'cenik-BEZ-duplicitnich položek'!C:J,8,FALSE) -> 
A130: 1. Šroubové řadové svorky | B130: B921251 | C130: Koncová přepážka RSA 2,5 A / RS 4 - zelená | D130: 4.95 | E130: 50 ks v PE sáčku | F130: - | G130: 1 | H130: 8595155012975 | I130: 85389099 | K130: 11002106 | L130: 0 | M130: =D130-D130*L130 -> 4.95 | N130: =VLOOKUP(C130,'cenik-BEZ-duplicitnich položek'!C:J,8,FALSE) -> 
A131: 1. Šroubové řadové svorky | B131: B921261 | C131: Koncová přepážka RSA 2,5 A / RS 4 - žlutá | D131: 4.95 | E131: 50 ks v PE sáčku | F131: - | G131: 1 | H131: 8595155012982 | I131: 85389099 | J131: =IF(OR(N131="",N131=0,N131="#NENÍ_K_DISPOZICI"),"",N131) ->  | K131: 11002106 | L131: 0 | M131: 4.95 | N131: =VLOOKUP(C131,'cenik-BEZ-duplicitnich položek'!C:J,8,FALSE) -> 
A132: 1. Šroubové řadové svorky | B132: B621112 | C132: Středová přepážka RSA 2,5 A / RS 4 - bílá | D132: 5.45 | E132: 50 ks v PE sáčku | F132: - | G132: 2 | H132: 8595155012678 | I132: 85389099 | K132: 11002107 | L132: 0 | M132: 5.45 | N132: =VLOOKUP(C132,'cenik-BEZ-duplicitnich položek'!C:J,8,FALSE) -> 
A133: 1. Šroubové řadové svorky | B133: B621122 | C133: Středová přepážka RSA 2,5 A / RS 4 - světle modrá | D133: 5.45 | E133: 50 ks v PE sáčku | F133: - | G133: 2 | H133: 8595155012685 | I133: 85389099 | K133: 11002107 | L133: 0 | M133: 5.45 | N133: =VLOOKUP(C133,'cenik-BEZ-duplicitnich položek'!C:J,8,FALSE) -> 
A134: 1. Šroubové řadové svorky | B134: B621132 | C134: Středová přepážka RSA 2,5 A / RS 4 - tmavě modrá | D134: 5.45 | E134: 50 ks v PE sáčku | F134: - | G134: 2 | H134: 8595155012692 | I134: 85389099 | K134: 11002107 | L134: 0 | M134: 5.45 | N134: =VLOOKUP(C134,'cenik-BEZ-duplicitnich položek'!C:J,8,FALSE) -> 
A135: 1. Šroubové řadové svorky | B135: B621142 | C135: Středová přepážka RSA 2,5 A / RS 4 - gobi | D135: 5.45 | E135: 50 ks v PE sáčku | F135: - | G135: 2 | H135: 8595155012708 | I135: 85389099 | K135: 11002107 | L135: 0 | M135: 5.45 | N135: =VLOOKUP(C135,'cenik-BEZ-duplicitnich položek'!C:J,8,FALSE) -> 
A136: 1. Šroubové řadové svorky | B136: B621152 | C136: Středová přepážka RSA 2,5 A / RS 4 - hnědá | D136: 5.45 | E136: 50 ks v PE sáčku | F136: - | G136: 2 | H136: 8595155012715 | I136: 85389099 | K136: 11002107 | L136: 0 | M136: 5.45 | N136: =VLOOKUP(C136,'cenik-BEZ-duplicitnich položek'!C:J,8,FALSE) -> 
A137: 1. Šroubové řadové svorky | B137: B621162 | C137: Středová přepážka RSA 2,5 A / RS 4 - červená | D137: 5.45 | E137: 50 ks v PE sáčku | F137: - | G137: 2 | H137: 8595155012722 | I137: 85389099 | K137: 11002107 | L137: 0 | M137: 5.45 | N137: =VLOOKUP(C137,'cenik-BEZ-duplicitnich položek'!C:J,8,FALSE) -> 
A138: 1. Šroubové řadové svorky | B138: B621172 | C138: Středová přepážka RSA 2,5 A / RS 4- oranžová | D138: 5.45 | E138: 50 ks v PE sáčku | F138: - | G138: 2 | H138: 8595155012739 | I138: 85389099 | K138: 11002107 | L138: 0 | M138: 5.45 | N138: =VLOOKUP(C138,'cenik-BEZ-duplicitnich položek'!C:J,8,FALSE) -> 
A139: 1. Šroubové řadové svorky | B139: B621182 | C139: Středová přepážka RSA 2,5 A / RS 4 - černá | D139: 5.45 | E139: 50 ks v PE sáčku | F139: - | G139: 2 | H139: 8595155012746 | I139: 85389099 | K139: 11002107 | L139: 0 | M139: 5.45 | N139: =VLOOKUP(C139,'cenik-BEZ-duplicitnich položek'!C:J,8,FALSE) -> 
A140: 1. Šroubové řadové svorky | B140: B621192 | C140: Středová přepážka RSA 2,5 A / RS 4 - fialová | D140: 5.45 | E140: 50 ks v PE sáčku | F140: - | G140: 2 | H140: 8595155012753 | I140: 85389099 | K140: 11002107 | L140: 0 | M140: 5.45 | N140: =VLOOKUP(C140,'cenik-BEZ-duplicitnich položek'!C:J,8,FALSE) -> 
A141: 1. Šroubové řadové svorky | B141: B621212 | C141: Středová přepážka RSA 2,5 A / RS 4 - šedá | D141: 5.45 | E141: 50 ks v PE sáčku | F141: - | G141: 2 | H141: 8595155012760 | I141: 85389099 | K141: 11002107 | L141: 0 | M141: 5.45 | N141: =VLOOKUP(C141,'cenik-BEZ-duplicitnich položek'!C:J,8,FALSE) -> 
A142: 1. Šroubové řadové svorky | B142: G412509 | C142: Krycí štítek RS 4 | D142: 4.55 | E142: 10 ks v PE sáčku | F142: - | G142: 1 | H142: 8595155003881 | I142: 85472000 | K142: 11002108 | L142: 0 | M142: 4.55 | N142: =VLOOKUP(C142,'cenik-BEZ-duplicitnich položek'!C:J,8,FALSE) -> 
A143: 1. Šroubové řadové svorky | B143: A141111 | C143: Svorka RSA 6 A - bílá | D143: 18.45 | E143: 100 ks v krabici | F143: 500 ks v krabici | G143: 14 | H143: 8595155003638 | I143: 85389099 | J143: RSA 6A | K143: 11003000 | L143: 0 | M143: 18.45 | N143: =VLOOKUP(C143,'cenik-BEZ-duplicitnich položek'!C:J,8,FALSE) -> RSA 6A
A144: 1. Šroubové řadové svorky | B144: A141121 | C144: Svorka RSA 6 A - světle modrá | D144: 18.45 | E144: 100 ks v krabici | F144: 500 ks v krabici | G144: 14 | H144: 8595155003645 | I144: 85389099 | J144: RSA 6A | K144: 11003000 | L144: 0 | M144: 18.45 | N144: =VLOOKUP(C144,'cenik-BEZ-duplicitnich položek'!C:J,8,FALSE) -> RSA 6A
A145: 1. Šroubové řadové svorky | B145: A141131 | C145: Svorka RSA 6 A - tmavě modrá | D145: 18.45 | E145: 100 ks v krabici | F145: 500 ks v krabici | G145: 14 | H145: 8595155003652 | I145: 85389099 | J145: RSA 6A | K145: 11003000 | L145: 0 | M145: 18.45 | N145: =VLOOKUP(C145,'cenik-BEZ-duplicitnich položek'!C:J,8,FALSE) -> RSA 6A
A146: 1. Šroubové řadové svorky | B146: A141141 | C146: Svorka RSA 6 A - gobi | D146: 18.45 | E146: 100 ks v krabici | F146: 500 ks v krabici | G146: 14 | H146: 8595155003669 | I146: 85389099 | J146: RSA 6A | K146: 11003000 | L146: 0 | M146: 18.45 | N146: =VLOOKUP(C146,'cenik-BEZ-duplicitnich položek'!C:J,8,FALSE) -> RSA 6A
A147: 1. Šroubové řadové svorky | B147: A141151 | C147: Svorka RSA 6 A - hnědá | D147: 18.45 | E147: 100 ks v krabici | F147: 500 ks v krabici | G147: 14 | H147: 8595155003676 | I147: 85389099 | J147: RSA 6A | K147: 11003000 | L147: 0 | M147: 18.45 | N147: =VLOOKUP(C147,'cenik-BEZ-duplicitnich položek'!C:J,8,FALSE) -> RSA 6A
A148: 1. Šroubové řadové svorky | B148: A141161 | C148: Svorka RSA 6 A - červená | D148: 18.45 | E148: 100 ks v krabici | F148: 500 ks v krabici | G148: 14 | H148: 8595155003683 | I148: 85389099 | J148: RSA 6A | K148: 11003000 | L148: 0 | M148: 18.45 | N148: =VLOOKUP(C148,'cenik-BEZ-duplicitnich položek'!C:J,8,FALSE) -> RSA 6A
A149: 1. Šroubové řadové svorky | B149: A141171 | C149: Svorka RSA 6 A - oranžová | D149: 18.45 | E149: 100 ks v krabici | F149: 500 ks v krabici | G149: 14 | H149: 8595155003690 | I149: 85389099 | J149: RSA 6A | K149: 11003000 | L149: 0 | M149: 18.45 | N149: =VLOOKUP(C149,'cenik-BEZ-duplicitnich položek'!C:J,8,FALSE) -> RSA 6A
A150: 1. Šroubové řadové svorky | B150: A141181 | C150: Svorka RSA 6 A - černá | D150: 18.45 | E150: 100 ks v krabici | F150: 500 ks v krabici | G150: 14 | H150: 8595155003706 | I150: 85389099 | J150: RSA 6A | K150: 11003000 | L150: 0 | M150: 18.45 | N150: =VLOOKUP(C150,'cenik-BEZ-duplicitnich položek'!C:J,8,FALSE) -> RSA 6A
A151: 1. Šroubové řadové svorky | B151: A141191 | C151: Svorka RSA 6 A - fialová | D151: 18.45 | E151: 100 ks v krabici | F151: 500 ks v krabici | G151: 14 | H151: 8595155003713 | I151: 85389099 | J151: RSA 6A | K151: 11003000 | L151: 0 | M151: 18.45 | N151: =VLOOKUP(C151,'cenik-BEZ-duplicitnich položek'!C:J,8,FALSE) -> RSA 6A
A152: 1. Šroubové řadové svorky | B152: A141211 | C152: Svorka RSA 6 A - šedá | D152: 18.45 | E152: 100 ks v krabici | F152: 500 ks v krabici | G152: 14 | H152: 8595155003720 | I152: 85389099 | J152: RSA 6A | K152: 11003000 | L152: 0 | M152: 18.45 | N152: =VLOOKUP(C152,'cenik-BEZ-duplicitnich položek'!C:J,8,FALSE) -> RSA 6A
A153: 1. Šroubové řadové svorky | B153: A141251 | C153: Svorka RSA 6 A - zelená | D153: 18.45 | E153: 100 ks v krabici | F153: 500 ks v krabici | G153: 14 | H153: 8595155004123 | I153: 85389099 | J153: RSA 6A | K153: 11003000 | L153: 0 | M153: 18.45 | N153: =VLOOKUP(C153,'cenik-BEZ-duplicitnich položek'!C:J,8,FALSE) -> RSA 6A
A154: 1. Šroubové řadové svorky | B154: A141261 | C154: Svorka RSA 6 A - žlutá | D154: 18.45 | E154: 100 ks v krabici | F154: 500 ks v krabici | G154: 14 | H154: 8595155004130 | I154: 85389099 | J154: RSA 6A | K154: 11003000 | L154: 0 | M154: 18.45 | N154: =VLOOKUP(C154,'cenik-BEZ-duplicitnich položek'!C:J,8,FALSE) -> RSA 6A
A155: 1. Šroubové řadové svorky | B155: C147102 | C155: Propojka plochá 2 RSA 6 A | D155: 5.85 | E155: 50 ks v PE sáčku | F155: - | G155: 2 | H155: 8595155014252 | I155: 85389099 | K155: 11003001 | L155: 0 | M155: 5.85 | N155: =VLOOKUP(C155,'cenik-BEZ-duplicitnich položek'!C:J,8,FALSE) -> 
A156: 1. Šroubové řadové svorky | B156: C147202 | C156: Propojka plochá 3 RSA 6 A | D156: 7.35 | E156: 50 ks v PE sáčku | F156: - | G156: 3 | H156: 8595155014269 | I156: 85389099 | K156: 11003001 | L156: 0 | M156: 7.35 | N156: =VLOOKUP(C156,'cenik-BEZ-duplicitnich položek'!C:J,8,FALSE) -> 
A157: 1. Šroubové řadové svorky | B157: C147302 | C157: Propojka plochá 4 RSA 6 A | D157: 9.7 | E157: 10 ks v PE sáčku | F157: - | G157: 4 | H157: 8595155014276 | I157: 85389099 | K157: 11003001 | L157: 0 | M157: 9.7 | N157: =VLOOKUP(C157,'cenik-BEZ-duplicitnich položek'!C:J,8,FALSE) -> 
A158: 1. Šroubové řadové svorky | B158: C147402 | C158: Propojka plochá 5 RSA 6 A | D158: 11.8 | E158: 10 ks v PE sáčku | F158: - | G158: 5 | H158: 8595155014290 | I158: 85389099 | K158: 11003001 | L158: 0 | M158: 11.8 | N158: =VLOOKUP(C158,'cenik-BEZ-duplicitnich položek'!C:J,8,FALSE) -> 
A159: 1. Šroubové řadové svorky | B159: C147502 | C159: Propojka plochá 6 RSA 6 A | D159: 14 | E159: 10 ks v PE sáčku | F159: - | G159: 6 | H159: 8595155014306 | I159: 85389099 | K159: 11003001 | L159: 0 | M159: 14 | N159: =VLOOKUP(C159,'cenik-BEZ-duplicitnich položek'!C:J,8,FALSE) -> 
A160: 1. Šroubové řadové svorky | B160: C147602 | C160: Propojka plochá 7 RSA 6 A | D160: 16.1 | E160: 10 ks v PE sáčku | F160: - | G160: 7 | H160: 8595155014313 | I160: 85389099 | K160: 11003001 | L160: 0 | M160: 16.1 | N160: =VLOOKUP(C160,'cenik-BEZ-duplicitnich položek'!C:J,8,FALSE) -> 
A161: 1. Šroubové řadové svorky | B161: C147702 | C161: Propojka plochá 8 RSA 6 A | D161: 17.45 | E161: 10 ks v PE sáčku | F161: - | G161: 8 | H161: 8595155014320 | I161: 85389099 | K161: 11003001 | L161: 0 | M161: 17.45 | N161: =VLOOKUP(C161,'cenik-BEZ-duplicitnich položek'!C:J,8,FALSE) -> 
A162: 1. Šroubové řadové svorky | B162: C147902 | C162: Propojka plochá 10 RSA 6 A | D162: 17.8 | E162: 10 ks v PE sáčku | F162: - | G162: 10 | H162: 8595155014283 | I162: 85389099 | K162: 11003001 | L162: 0 | M162: 17.8 | N162: =VLOOKUP(C162,'cenik-BEZ-duplicitnich položek'!C:J,8,FALSE) -> 
A163: 1. Šroubové řadové svorky | B163: C147112 | C163: Propojka horní RSA 6 A/2-násobná | D163: 11.8 | E163: 10 ks v PE sáčku | F163: - | G163: 4 | H163: 8595155014962 | I163: 85389099 | K163: 11003002 | L163: 0 | M163: 11.8 | N163: =VLOOKUP(C163,'cenik-BEZ-duplicitnich položek'!C:J,8,FALSE) -> 
A164: 1. Šroubové řadové svorky | B164: C147212 | C164: Propojka horní RSA 6 A/3-násobná | D164: 14.45 | E164: 10 ks v PE sáčku | F164: - | G164: 6 | H164: 8595155014979 | I164: 85389099 | K164: 11003002 | L164: 0 | M164: 14.45 | N164: =VLOOKUP(C164,'cenik-BEZ-duplicitnich položek'!C:J,8,FALSE) -> 
A165: 1. Šroubové řadové svorky | B165: C147312 | C165: Propojka horní RSA 6 A/4-násobná | D165: 20.25 | E165: 10 ks v PE sáčku | F165: - | G165: 8 | H165: 8595155014986 | I165: 85389099 | K165: 11003002 | L165: 0 | M165: 20.25 | N165: =VLOOKUP(C165,'cenik-BEZ-duplicitnich položek'!C:J,8,FALSE) -> 
A166: 1. Šroubové řadové svorky | B166: C147912 | C166: Propojka horní RSA 6 A/10-násobná | D166: 50.05 | E166: 10 ks v PE sáčku | F166: - | G166: 19 | H166: 8595155014993 | I166: 85389099 | K166: 11003002 | L166: 0 | M166: 50.05 | N166: =VLOOKUP(C166,'cenik-BEZ-duplicitnich položek'!C:J,8,FALSE) -> 
A167: 1. Šroubové řadové svorky | B167: C246020 | C167: Zdířka pro ZP 6 A - RSA 6 A (kompatibilní s C349129) / RSA 10 A | D167: 15.95 | E167: 10 ks v PE sáčku | F167: 100 ks v PE sáčku | G167: 2 | H167: 8595155017680 | I167: 85389099 | K167: 11003003 | L167: 0 | M167: 15.95 | N167: =VLOOKUP(C167,'cenik-BEZ-duplicitnich položek'!C:J,8,FALSE) -> 
A168: 1. Šroubové řadové svorky | B168: C349129 | C168: Zkratovací propojka ZP 6 A pro RSA 6 A | D168: 16.2 | E168: 10 ks v PE sáčku | F168: 100 ks v PE sáčku | G168: 5 | H168: 8595155015006 | I168: 85389099 | K168: 11003003 | L168: 0 | M168: 16.2 | N168: =VLOOKUP(C168,'cenik-BEZ-duplicitnich položek'!C:J,8,FALSE) -> 
A169: 1. Šroubové řadové svorky | B169: B641111 | C169: Koncová přepážka RSA 6 A / RSA 10 A - bílá | D169: 7.35 | E169: 50 ks v PE sáčku | F169: - | G169: 2 | H169: 8595155009746 | I169: 85389099 | K169: 11003004 | L169: 0 | M169: 7.35 | N169: =VLOOKUP(C169,'cenik-BEZ-duplicitnich položek'!C:J,8,FALSE) -> 
A170: 1. Šroubové řadové svorky | B170: B641121 | C170: Koncová přepážka RSA 6 A / RSA 10 A - světle modrá | D170: 7.35 | E170: 50 ks v PE sáčku | F170: - | G170: 2 | H170: 8595155009760 | I170: 85389099 | K170: 11003004 | L170: 0 | M170: 7.35 | N170: =VLOOKUP(C170,'cenik-BEZ-duplicitnich položek'!C:J,8,FALSE) -> 
A171: 1. Šroubové řadové svorky | B171: B641131 | C171: Koncová přepážka RSA 6 A / RSA 10 A - tmavě modrá | D171: 7.35 | E171: 50 ks v PE sáčku | F171: - | G171: 2 | H171: 8595155009784 | I171: 85389099 | K171: 11003004 | L171: 0 | M171: 7.35 | N171: =VLOOKUP(C171,'cenik-BEZ-duplicitnich položek'!C:J,8,FALSE) -> 
A172: 1. Šroubové řadové svorky | B172: B641141 | C172: Koncová přepážka RSA 6 A / RSA 10 A - gobi | D172: 7.35 | E172: 50 ks v PE sáčku | F172: - | G172: 2 | H172: 8595155009807 | I172: 85389099 | K172: 11003004 | L172: 0 | M172: 7.35 | N172: =VLOOKUP(C172,'cenik-BEZ-duplicitnich položek'!C:J,8,FALSE) -> 
A173: 1. Šroubové řadové svorky | B173: B641151 | C173: Koncová přepážka RSA 6 A / RSA 10 A - hnědá | D173: 7.35 | E173: 50 ks v PE sáčku | F173: - | G173: 2 | H173: 8595155009821 | I173: 85389099 | K173: 11003004 | L173: 0 | M173: 7.35 | N173: =VLOOKUP(C173,'cenik-BEZ-duplicitnich položek'!C:J,8,FALSE) -> 
A174: 1. Šroubové řadové svorky | B174: B641161 | C174: Koncová přepážka RSA 6 A / RSA 10 A - červená | D174: 7.35 | E174: 50 ks v PE sáčku | F174: - | G174: 2 | H174: 8595155009845 | I174: 85389099 | K174: 11003004 | L174: 0 | M174: 7.35 | N174: =VLOOKUP(C174,'cenik-BEZ-duplicitnich položek'!C:J,8,FALSE) -> 
A175: 1. Šroubové řadové svorky | B175: B641171 | C175: Koncová přepážka RSA 6 A / RSA 10 A - oranžová | D175: 7.35 | E175: 50 ks v PE sáčku | F175: - | G175: 2 | H175: 8595155009869 | I175: 85389099 | K175: 11003004 | L175: 0 | M175: 7.35 | N175: =VLOOKUP(C175,'cenik-BEZ-duplicitnich položek'!C:J,8,FALSE) -> 
A176: 1. Šroubové řadové svorky | B176: B641181 | C176: Koncová přepážka RSA 6 A / RSA 10 A - černá | D176: 7.35 | E176: 50 ks v PE sáčku | F176: - | G176: 2 | H176: 8595155009883 | I176: 85389099 | K176: 11003004 | L176: 0 | M176: 7.35 | N176: =VLOOKUP(C176,'cenik-BEZ-duplicitnich položek'!C:J,8,FALSE) -> 
A177: 1. Šroubové řadové svorky | B177: B641191 | C177: Koncová přepážka RSA 6 A / RSA 10 A - fialová | D177: 7.35 | E177: 50 ks v PE sáčku | F177: - | G177: 2 | H177: 8595155009906 | I177: 85389099 | K177: 11003004 | L177: 0 | M177: 7.35 | N177: =VLOOKUP(C177,'cenik-BEZ-duplicitnich položek'!C:J,8,FALSE) -> 
A178: 1. Šroubové řadové svorky | B178: B641211 | C178: Koncová přepážka RSA 6 A / RSA 10 A - šedá | D178: 7.35 | E178: 50 ks v PE sáčku | F178: - | G178: 2 | H178: 8595155009920 | I178: 85389099 | K178: 11003004 | L178: 0 | M178: 7.35 | N178: =VLOOKUP(C178,'cenik-BEZ-duplicitnich položek'!C:J,8,FALSE) -> 
A179: 1. Šroubové řadové svorky | B179: B941251 | C179: Koncová přepážka RSA 6 A / RSA 10 A - zelená | D179: 7.35 | E179: 50 ks v PE sáčku | F179: - | G179: 2 | H179: 8595155009944 | I179: 85389099 | K179: 11003004 | L179: 0 | M179: 7.35 | N179: =VLOOKUP(C179,'cenik-BEZ-duplicitnich položek'!C:J,8,FALSE) -> 
A180: 1. Šroubové řadové svorky | B180: B941261 | C180: Koncová přepážka RSA 6 A / RSA 10 A - žlutá | D180: 7.35 | E180: 50 ks v PE sáčku | F180: - | G180: 2 | H180: 8595155009968 | I180: 85389099 | K180: 11003004 | L180: 0 | M180: 7.35 | N180: =VLOOKUP(C180,'cenik-BEZ-duplicitnich položek'!C:J,8,FALSE) -> 
A181: 1. Šroubové řadové svorky | B181: B641112 | C181: Středová přepážka RSA 6 A / RSA 10 A - bílá | D181: 9.55 | E181: 50 ks v PE sáčku | F181: - | G181: 3 | H181: 8595155009753 | I181: 85389099 | K181: 11003005 | L181: 0 | M181: 9.55 | N181: =VLOOKUP(C181,'cenik-BEZ-duplicitnich položek'!C:J,8,FALSE) -> 
A182: 1. Šroubové řadové svorky | B182: B641122 | C182: Středová přepážka RSA 6 A / RSA 10 A - světle modrá | D182: 9.55 | E182: 50 ks v PE sáčku | F182: - | G182: 3 | H182: 8595155009777 | I182: 85389099 | K182: 11003005 | L182: 0 | M182: 9.55 | N182: =VLOOKUP(C182,'cenik-BEZ-duplicitnich položek'!C:J,8,FALSE) -> 
A183: 1. Šroubové řadové svorky | B183: B641132 | C183: Středová přepážka RSA 6 A / RSA 10 A - tmavě modrá | D183: 9.55 | E183: 50 ks v PE sáčku | F183: - | G183: 3 | H183: 8595155009791 | I183: 85389099 | K183: 11003005 | L183: 0 | M183: 9.55 | N183: =VLOOKUP(C183,'cenik-BEZ-duplicitnich položek'!C:J,8,FALSE) -> 
A184: 1. Šroubové řadové svorky | B184: B641142 | C184: Středová přepážka RSA 6 A / RSA 10 A - gobi | D184: 9.55 | E184: 50 ks v PE sáčku | F184: - | G184: 3 | H184: 8595155009814 | I184: 85389099 | K184: 11003005 | L184: 0 | M184: 9.55 | N184: =VLOOKUP(C184,'cenik-BEZ-duplicitnich položek'!C:J,8,FALSE) -> 
A185: 1. Šroubové řadové svorky | B185: B641152 | C185: Středová přepážka RSA 6 A / RSA 10 A - hnědá | D185: 9.55 | E185: 50 ks v PE sáčku | F185: - | G185: 3 | H185: 8595155009838 | I185: 85389099 | K185: 11003005 | L185: 0 | M185: 9.55 | N185: =VLOOKUP(C185,'cenik-BEZ-duplicitnich položek'!C:J,8,FALSE) -> 
A186: 1. Šroubové řadové svorky | B186: B641162 | C186: Středová přepážka RSA 6 A / RSA 10 A - červená | D186: 9.55 | E186: 50 ks v PE sáčku | F186: - | G186: 3 | H186: 8595155009852 | I186: 85389099 | K186: 11003005 | L186: 0 | M186: 9.55 | N186: =VLOOKUP(C186,'cenik-BEZ-duplicitnich položek'!C:J,8,FALSE) -> 
A187: 1. Šroubové řadové svorky | B187: B641172 | C187: Středová přepážka RSA 6 A / RSA 10 A - oranžová | D187: 9.55 | E187: 50 ks v PE sáčku | F187: - | G187: 3 | H187: 8595155009876 | I187: 85389099 | K187: 11003005 | L187: 0 | M187: 9.55 | N187: =VLOOKUP(C187,'cenik-BEZ-duplicitnich položek'!C:J,8,FALSE) -> 
A188: 1. Šroubové řadové svorky | B188: B641182 | C188: Středová přepážka RSA 6 A / RSA 10 A - černá | D188: 9.55 | E188: 50 ks v PE sáčku | F188: - | G188: 3 | H188: 8595155009890 | I188: 85389099 | K188: 11003005 | L188: 0 | M188: 9.55 | N188: =VLOOKUP(C188,'cenik-BEZ-duplicitnich položek'!C:J,8,FALSE) -> 
A189: 1. Šroubové řadové svorky | B189: B641192 | C189: Středová přepážka RSA 6 A / RSA 10 A - fialová | D189: 9.55 | E189: 50 ks v PE sáčku | F189: - | G189: 3 | H189: 8595155009913 | I189: 85389099 | K189: 11003005 | L189: 0 | M189: 9.55 | N189: =VLOOKUP(C189,'cenik-BEZ-duplicitnich položek'!C:J,8,FALSE) -> 
A190: 1. Šroubové řadové svorky | B190: B641212 | C190: Středová přepážka RSA 6 A / RSA 10 A - šedá | D190: 9.55 | E190: 50 ks v PE sáčku | F190: - | G190: 3 | H190: 8595155009937 | I190: 85389099 | K190: 11003005 | L190: 0 | M190: 9.55 | N190: =VLOOKUP(C190,'cenik-BEZ-duplicitnich položek'!C:J,8,FALSE) -> 
A191: 1. Šroubové řadové svorky | B191: G410030 | C191: Krycí štítek RSA 6 A / RSA 10 A | D191: 5.95 | E191: 10 ks v PE sáčku | F191: - | G191: 1 | H191: 8595155028129 | I191: 85472000 | K191: 11003006 | L191: 0 | M191: 5.95 | N191: =VLOOKUP(C191,'cenik-BEZ-duplicitnich položek'!C:J,8,FALSE) -> 
A192: 1. Šroubové řadové svorky | B192: A151111 | C192: Svorka RSA 10 A - bílá | D192: 24.6 | E192: 50 ks v krabici | F192: 300 ks v krabici | G192: 19 | H192: 8595155003485 | I192: 85389099 | J192: RSA 10A | K192: 11004000 | L192: 0 | M192: 24.6 | N192: =VLOOKUP(C192,'cenik-BEZ-duplicitnich položek'!C:J,8,FALSE) -> RSA 10A
A193: 1. Šroubové řadové svorky | B193: A151121 | C193: Svorka RSA 10 A - světle modrá | D193: 24.6 | E193: 50 ks v krabici | F193: 300 ks v krabici | G193: 19 | H193: 8595155003508 | I193: 85389099 | J193: RSA 10A | K193: 11004000 | L193: 0 | M193: 24.6 | N193: =VLOOKUP(C193,'cenik-BEZ-duplicitnich položek'!C:J,8,FALSE) -> RSA 10A
A194: 1. Šroubové řadové svorky | B194: A151131 | C194: Svorka RSA 10 A - tmavě modrá | D194: 24.6 | E194: 50 ks v krabici | F194: 300 ks v krabici | G194: 19 | H194: 8595155003522 | I194: 85389099 | J194: RSA 10A | K194: 11004000 | L194: 0 | M194: =D194-D194*L194 -> 24.6 | N194: =VLOOKUP(C194,'cenik-BEZ-duplicitnich položek'!C:J,8,FALSE) -> RSA 10A
A195: 1. Šroubové řadové svorky | B195: A151141 | C195: Svorka RSA 10 A - gobi | D195: 24.6 | E195: 50 ks v krabici | F195: 300 ks v krabici | G195: 19 | H195: 8595155003546 | I195: 85389099 | J195: =IF(OR(N195="",N195=0,N195="#NENÍ_K_DISPOZICI"),"",N195) -> RSA 10A | K195: 11004000 | L195: 0 | M195: 24.6 | N195: =VLOOKUP(C195,'cenik-BEZ-duplicitnich položek'!C:J,8,FALSE) -> RSA 10A
A196: 1. Šroubové řadové svorky | B196: A151151 | C196: Svorka RSA 10 A - hnědá | D196: 24.6 | E196: 50 ks v krabici | F196: 300 ks v krabici | G196: 19 | H196: 8595155003553 | I196: 85389099 | J196: RSA 10A | K196: 11004000 | L196: 0 | M196: 24.6 | N196: =VLOOKUP(C196,'cenik-BEZ-duplicitnich položek'!C:J,8,FALSE) -> RSA 10A
A197: 1. Šroubové řadové svorky | B197: A151161 | C197: Svorka RSA 10 A - červená | D197: 24.6 | E197: 50 ks v krabici | F197: 300 ks v krabici | G197: 19 | H197: 8595155003577 | I197: 85389099 | J197: RSA 10A | K197: 11004000 | L197: 0 | M197: 24.6 | N197: =VLOOKUP(C197,'cenik-BEZ-duplicitnich položek'!C:J,8,FALSE) -> RSA 10A
A198: 1. Šroubové řadové svorky | B198: A151171 | C198: Svorka RSA 10 A - oranžová | D198: 24.6 | E198: 50 ks v krabici | F198: 300 ks v krabici | G198: 19 | H198: 8595155003584 | I198: 85389099 | J198: RSA 10A | K198: 11004000 | L198: 0 | M198: 24.6 | N198: =VLOOKUP(C198,'cenik-BEZ-duplicitnich položek'!C:J,8,FALSE) -> RSA 10A
A199: 1. Šroubové řadové svorky | B199: A151181 | C199: Svorka RSA 10 A - černá | D199: 24.6 | E199: 50 ks v krabici | F199: 300 ks v krabici | G199: 19 | H199: 8595155003591 | I199: 85389099 | J199: RSA 10A | K199: 11004000 | L199: 0 | M199: 24.6 | N199: =VLOOKUP(C199,'cenik-BEZ-duplicitnich položek'!C:J,8,FALSE) -> RSA 10A
A200: 1. Šroubové řadové svorky | B200: A151191 | C200: Svorka RSA 10 A - fialová | D200: 24.6 | E200: 50 ks v krabici | F200: 300 ks v krabici | G200: 19 | H200: 8595155003607 | I200: 85389099 | J200: RSA 10A | K200: 11004000 | L200: 0 | M200: 24.6 | N200: =VLOOKUP(C200,'cenik-BEZ-duplicitnich položek'!C:J,8,FALSE) -> RSA 10A
... 2309 more rows

Sheet cenik-BEZ-duplicitnich položek
A1: Kategorie | B1: Objednací číslo | C1: Typ výrobku | D1: Prodejní cena bez DPH za 1 ks | E1: Balení výrobků (malé) | F1: Balení výrobků (velké) | G1: Hmotnost výrobku (g) | H1: EAN | I1: Celní kód | J1: Skupina položek | L1: Rabat % | M1: Cena po slevě bez DPH
A2: 1. Šroubové řadové svorky | B2: A121111 | C2: Svorka RSA 2,5 A - bílá | D2: 14.15 | E2: 100 ks v krabici | F2: 800 ks v krabici | G2: 7 | H2: 8595155003133 | I2: 85389099 | J2: RSA 2,5A | K2: 11001000 | L2: 0 | M2: =D2-D2*L2 -> 14.15
A3: 1. Šroubové řadové svorky | B3: A121121 | C3: Svorka RSA 2,5 A - světle modrá | D3: 14.15 | E3: 100 ks v krabici | F3: 800 ks v krabici | G3: 7 | H3: 8595155003140 | I3: 85389099 | J3: RSA 2,5A | K3: 11001000 | L3: 0 | M3: =D3-D3*L3 -> 14.15
A4: 1. Šroubové řadové svorky | B4: A121131 | C4: Svorka RSA 2,5 A - tmavě modrá | D4: 14.15 | E4: 100 ks v krabici | F4: 800 ks v krabici | G4: 7 | H4: 8595155003157 | I4: 85389099 | J4: RSA 2,5A | K4: 11001000 | L4: 0 | M4: 14.15
A5: 1. Šroubové řadové svorky | B5: A121141 | C5: Svorka RSA 2,5 A - gobi | D5: 14.15 | E5: 100 ks v krabici | F5: 800 ks v krabici | G5: 7 | H5: 8595155003164 | I5: 85389099 | J5: RSA 2,5A | K5: 11001000 | L5: 0 | M5: 14.15
A6: 1. Šroubové řadové svorky | B6: A121151 | C6: Svorka RSA 2,5 A - hnědá | D6: 14.15 | E6: 100 ks v krabici | F6: 800 ks v krabici | G6: 7 | H6: 8595155003171 | I6: 85389099 | J6: RSA 2,5A | K6: 11001000 | L6: 0 | M6: 14.15
A7: 1. Šroubové řadové svorky | B7: A121161 | C7: Svorka RSA 2,5 A - červená | D7: 14.15 | E7: 100 ks v krabici | F7: 800 ks v krabici | G7: 7 | H7: 8595155003188 | I7: 85389099 | J7: RSA 2,5A | K7: 11001000 | L7: 0 | M7: 14.15
A8: 1. Šroubové řadové svorky | B8: A121171 | C8: Svorka RSA 2,5 A - oranžová | D8: 14.15 | E8: 100 ks v krabici | F8: 800 ks v krabici | G8: 7 | H8: 8595155003195 | I8: 85389099 | J8: RSA 2,5A | K8: 11001000 | L8: 0 | M8: 14.15
A9: 1. Šroubové řadové svorky | B9: A121181 | C9: Svorka RSA 2,5 A - černá | D9: 14.15 | E9: 100 ks v krabici | F9: 800 ks v krabici | G9: 7 | H9: 8595155003201 | I9: 85389099 | J9: RSA 2,5A | K9: 11001000 | L9: 0 | M9: 14.15
A10: 1. Šroubové řadové svorky | B10: A121191 | C10: Svorka RSA 2,5 A - fialová | D10: 14.15 | E10: 100 ks v krabici | F10: 800 ks v krabici | G10: 7 | H10: 8595155003218 | I10: 85389099 | J10: RSA 2,5A | K10: 11001000 | L10: 0 | M10: 14.15
A11: 1. Šroubové řadové svorky | B11: A121211 | C11: Svorka RSA 2,5 A - šedá | D11: 14.15 | E11: 100 ks v krabici | F11: 800 ks v krabici | G11: 7 | H11: 8595155003225 | I11: 85389099 | J11: RSA 2,5A | K11: 11001000 | L11: 0 | M11: 14.15
A12: 1. Šroubové řadové svorky | B12: A821255 | C12: Svorka RSA 2,5 A - zelená | D12: 14.15 | E12: 100 ks v krabici | F12: 800 ks v krabici | G12: 7 | H12: 8595155003263 | I12: 85389099 | J12: RSA 2,5A | K12: 11001000 | L12: 0 | M12: 14.15
A13: 1. Šroubové řadové svorky | B13: A821265 | C13: Svorka RSA 2,5 A - žlutá | D13: 14.15 | E13: 100 ks v krabici | F13: 800 ks v krabici | G13: 7 | H13: 8595155003270 | I13: 85389099 | J13: RSA 2,5A | K13: 11001000 | L13: 0 | M13: 14.15
A14: 1. Šroubové řadové svorky | B14: C427100 | C14: Hřeben RSA 2,5 A a RSA 2,5 A P3H / 2-násobný | D14: 8.75 | E14: 10 ks v PE sáčku | F14: - | G14: 1 | H14: 8595155015563 | I14: 85389099 | K14: 11001001 | L14: 0 | M14: 8.75
A15: 1. Šroubové řadové svorky | B15: C427200 | C15: Hřeben RSA 2,5 A a RSA 2,5 A P3H / 3-násobný | D15: 11.05 | E15: 10 ks v PE sáčku | F15: - | G15: 2 | H15: 8595155015556 | I15: 85389099 | K15: 11001001 | L15: 0 | M15: 11.05
A16: 1. Šroubové řadové svorky | B16: C427300 | C16: Hřeben RSA 2,5 A a RSA 2,5 A P3H / 4-násobný | D16: 12.45 | E16: 10 ks v PE sáčku | F16: - | G16: 3 | H16: 8595155015570 | I16: 85389099 | K16: 11001001 | L16: 0 | M16: 12.45
A17: 1. Šroubové řadové svorky | B17: B621111 | C17: Koncová přepážka RSA 2,5 A / RS 4 - bílá | D17: 4.95 | E17: 50 ks v PE sáčku | F17: - | G17: 1 | H17: 8595155012579 | I17: 85389099 | K17: 11001002 | L17: 0 | M17: 4.95
A18: 1. Šroubové řadové svorky | B18: B621121 | C18: Koncová přepážka RSA 2,5 A / RS 4 - světle modrá | D18: 4.95 | E18: 50 ks v PE sáčku | F18: - | G18: 1 | H18: 8595155012586 | I18: 85389099 | K18: 11001002 | L18: 0 | M18: 4.95
A19: 1. Šroubové řadové svorky | B19: B621131 | C19: Koncová přepážka RSA 2,5 A / RS 4 - tmavě modrá | D19: 4.95 | E19: 50 ks v PE sáčku | F19: - | G19: 1 | H19: 8595155012593 | I19: 85389099 | K19: 11001002 | L19: 0 | M19: 4.95
A20: 1. Šroubové řadové svorky | B20: B621141 | C20: Koncová přepážka RSA 2,5 A / RS 4 - gobi | D20: 4.95 | E20: 50 ks v PE sáčku | F20: - | G20: 1 | H20: 8595155012609 | I20: 85389099 | K20: 11001002 | L20: 0 | M20: 4.95
A21: 1. Šroubové řadové svorky | B21: B621151 | C21: Koncová přepážka RSA 2,5 A / RS 4 - hnědá | D21: 4.95 | E21: 50 ks v PE sáčku | F21: - | G21: 1 | H21: 8595155012616 | I21: 85389099 | K21: 11001002 | L21: 0 | M21: 4.95
A22: 1. Šroubové řadové svorky | B22: B621161 | C22: Koncová přepážka RSA 2,5 A / RS 4 - červená | D22: 4.95 | E22: 50 ks v PE sáčku | F22: - | G22: 1 | H22: 8595155012623 | I22: 85389099 | K22: 11001002 | L22: 0 | M22: 4.95
A23: 1. Šroubové řadové svorky | B23: B621171 | C23: Koncová přepážka RSA 2,5 A / RS 4 - oranžová | D23: 4.95 | E23: 50 ks v PE sáčku | F23: - | G23: 1 | H23: 8595155012630 | I23: 85389099 | K23: 11001002 | L23: 0 | M23: 4.95
A24: 1. Šroubové řadové svorky | B24: B621181 | C24: Koncová přepážka RSA 2,5 A / RS 4- černá | D24: 4.95 | E24: 50 ks v PE sáčku | F24: - | G24: 1 | H24: 8595155012647 | I24: 85389099 | K24: 11001002 | L24: 0 | M24: 4.95
A25: 1. Šroubové řadové svorky | B25: B621191 | C25: Koncová přepážka RSA 2,5 A / RS 4 - fialová | D25: 4.95 | E25: 50 ks v PE sáčku | F25: - | G25: 1 | H25: 8595155012654 | I25: 85389099 | K25: 11001002 | L25: 0 | M25: 4.95
A26: 1. Šroubové řadové svorky | B26: B621211 | C26: Koncová přepážka RSA 2,5 A / RS 4 - šedá | D26: 4.95 | E26: 50 ks v PE sáčku | F26: - | G26: 1 | H26: 8595155012661 | I26: 85389099 | K26: 11001002 | L26: 0 | M26: 4.95
A27: 1. Šroubové řadové svorky | B27: B921251 | C27: Koncová přepážka RSA 2,5 A / RS 4 - zelená | D27: 4.95 | E27: 50 ks v PE sáčku | F27: - | G27: 1 | H27: 8595155012975 | I27: 85389099 | K27: 11001002 | L27: 0 | M27: 4.95
A28: 1. Šroubové řadové svorky | B28: B921261 | C28: Koncová přepážka RSA 2,5 A / RS 4 - žlutá | D28: 4.95 | E28: 50 ks v PE sáčku | F28: - | G28: 1 | H28: 8595155012982 | I28: 85389099 | K28: 11001002 | L28: 0 | M28: 4.95
A29: 1. Šroubové řadové svorky | B29: B621112 | C29: Středová přepážka RSA 2,5 A / RS 4 - bílá | D29: 5.45 | E29: 50 ks v PE sáčku | F29: - | G29: 2 | H29: 8595155012678 | I29: 85389099 | K29: 11001003 | L29: 0 | M29: 5.45
A30: 1. Šroubové řadové svorky | B30: B621122 | C30: Středová přepážka RSA 2,5 A / RS 4 - světle modrá | D30: 5.45 | E30: 50 ks v PE sáčku | F30: - | G30: 2 | H30: 8595155012685 | I30: 85389099 | K30: 11001003 | L30: 0 | M30: 5.45
A31: 1. Šroubové řadové svorky | B31: B621132 | C31: Středová přepážka RSA 2,5 A / RS 4- tmavě modrá | D31: 5.45 | E31: 50 ks v PE sáčku | F31: - | G31: 2 | H31: 8595155012692 | I31: 85389099 | K31: 11001003 | L31: 0 | M31: 5.45
A32: 1. Šroubové řadové svorky | B32: B621142 | C32: Středová přepážka RSA 2,5 A / RS 4 - gobi | D32: 5.45 | E32: 50 ks v PE sáčku | F32: - | G32: 2 | H32: 8595155012708 | I32: 85389099 | K32: 11001003 | L32: 0 | M32: 5.45
A33: 1. Šroubové řadové svorky | B33: B621152 | C33: Středová přepážka RSA 2,5 A / RS 4 - hnědá | D33: 5.45 | E33: 50 ks v PE sáčku | F33: - | G33: 2 | H33: 8595155012715 | I33: 85389099 | K33: 11001003 | L33: 0 | M33: 5.45
A34: 1. Šroubové řadové svorky | B34: B621162 | C34: Středová přepážka RSA 2,5 A / RS 4 - červená | D34: 5.45 | E34: 50 ks v PE sáčku | F34: - | G34: 2 | H34: 8595155012722 | I34: 85389099 | K34: 11001003 | L34: 0 | M34: 5.45
A35: 1. Šroubové řadové svorky | B35: B621172 | C35: Středová přepážka RSA 2,5 A / RS 4 - oranžová | D35: 5.45 | E35: 50 ks v PE sáčku | F35: - | G35: 2 | H35: 8595155012739 | I35: 85389099 | K35: 11001003 | L35: 0 | M35: 5.45
A36: 1. Šroubové řadové svorky | B36: B621182 | C36: Středová přepážka RSA 2,5 A / RS 4 - černá | D36: 5.45 | E36: 50 ks v PE sáčku | F36: - | G36: 2 | H36: 8595155012746 | I36: 85389099 | K36: 11001003 | L36: 0 | M36: 5.45
A37: 1. Šroubové řadové svorky | B37: B621192 | C37: Středová přepážka RSA 2,5 A / RS 4 - fialová | D37: 5.45 | E37: 50 ks v PE sáčku | F37: - | G37: 2 | H37: 8595155012753 | I37: 85389099 | K37: 11001003 | L37: 0 | M37: 5.45
A38: 1. Šroubové řadové svorky | B38: B621212 | C38: Středová přepážka RSA 2,5 A / RS 4 - šedá | D38: 5.45 | E38: 50 ks v PE sáčku | F38: - | G38: 2 | H38: 8595155012760 | I38: 85389099 | K38: 11001003 | L38: 0 | M38: 5.45
A39: 1. Šroubové řadové svorky | B39: A131111 | C39: Svorka RSA 4 A - bílá | D39: 14.15 | E39: 100 ks v krabici | F39: 1000 ks v krabici | G39: 8 | H39: 8595155000613 | I39: 85389099 | J39: RSA 4A | K39: 11002000 | L39: 0 | M39: 14.15
A40: 1. Šroubové řadové svorky | B40: A131118 | C40: Multipack Bečovská 200 (200 ks RSA 4 A bílá + šroubovák 1000V) | D40: 2912.85 | E40: 1 balení | F40: 10 balení | G40: 1734 | H40: 8595155000767 | I40: 85389099 | J40: RSA 4A | K40: 11002000 | L40: 0 | M40: 2912.85
A41: 1. Šroubové řadové svorky | B41: A131121 | C41: Svorka RSA 4 A - světle modrá | D41: 14.15 | E41: 100 ks v krabici | F41: 1000 ks v krabici | G41: 8 | H41: 8595155000736 | I41: 85389099 | J41: RSA 4A | K41: 11002000 | L41: 0 | M41: 14.15
A42: 1. Šroubové řadové svorky | B42: A131131 | C42: Svorka RSA 4 A - tmavě modrá | D42: 14.15 | E42: 100 ks v krabici | F42: 1000 ks v krabici | G42: 8 | H42: 8595155000637 | I42: 85389099 | J42: RSA 4A | K42: 11002000 | L42: 0 | M42: 14.15
A43: 1. Šroubové řadové svorky | B43: A131141 | C43: Svorka RSA 4 A - gobi | D43: 14.15 | E43: 100 ks v krabici | F43: 1000 ks v krabici | G43: 8 | H43: 8595155000644 | I43: 85389099 | J43: RSA 4A | K43: 11002000 | L43: 0 | M43: 14.15
A44: 1. Šroubové řadové svorky | B44: A131151 | C44: Svorka RSA 4 A - hnědá | D44: 14.15 | E44: 100 ks v krabici | F44: 1000 ks v krabici | G44: 8 | H44: 8595155000651 | I44: 85389099 | J44: RSA 4A | K44: 11002000 | L44: 0 | M44: 14.15
A45: 1. Šroubové řadové svorky | B45: A131161 | C45: Svorka RSA 4 A - červená | D45: 14.15 | E45: 100 ks v krabici | F45: 1000 ks v krabici | G45: 8 | H45: 8595155000668 | I45: 85389099 | J45: RSA 4A | K45: 11002000 | L45: 0 | M45: 14.15
A46: 1. Šroubové řadové svorky | B46: A131171 | C46: Svorka RSA 4 A - oranžová | D46: 14.15 | E46: 100 ks v krabici | F46: 1000 ks v krabici | G46: 8 | H46: 8595155000675 | I46: 85389099 | J46: RSA 4A | K46: 11002000 | L46: 0 | M46: 14.15
A47: 1. Šroubové řadové svorky | B47: A131181 | C47: Svorka RSA 4 A - černá | D47: 14.15 | E47: 100 ks v krabici | F47: 1000 ks v krabici | G47: 8 | H47: 8595155000682 | I47: 85389099 | J47: RSA 4A | K47: 11002000 | L47: 0 | M47: 14.15
A48: 1. Šroubové řadové svorky | B48: A131191 | C48: Svorka RSA 4 A - fialová | D48: 14.15 | E48: 100 ks v krabici | F48: 1000 ks v krabici | G48: 8 | H48: 8595155000743 | I48: 85389099 | J48: RSA 4A | K48: 11002000 | L48: 0 | M48: 14.15
A49: 1. Šroubové řadové svorky | B49: A131211 | C49: Svorka RSA 4 A - šedá | D49: 14.15 | E49: 100 ks v krabici | F49: 1000 ks v krabici | G49: 8 | H49: 8595155000750 | I49: 85389099 | J49: RSA 4A | K49: 11002000 | L49: 0 | M49: 14.15
A50: 1. Šroubové řadové svorky | B50: A131218 | C50: Multipack Bečovská 200 (200 ks RSA 4 A šedá + šroubovák 1000V) | D50: 2912.85 | E50: 1 balení | F50: 10 balení | G50: 1734 | H50: 8595155000774 | I50: 85389099 | J50: RSA 4A | K50: 11002000 | L50: 0 | M50: 2912.85
A51: 1. Šroubové řadové svorky | B51: A831255 | C51: Svorka RSA 4 A - žlutá | D51: 14.15 | E51: 100 ks v krabici | F51: 1000 ks v krabici | G51: 8 | H51: 8595155002723 | I51: 85389099 | J51: RSA 4A | K51: 11002000 | L51: 0 | M51: 14.15
A52: 1. Šroubové řadové svorky | B52: A831265 | C52: Svorka RSA 4 A - zelená | D52: 14.15 | E52: 100 ks v krabici | F52: 1000 ks v krabici | G52: 8 | H52: 8595155002716 | I52: 85389099 | J52: RSA 4A | K52: 11002000 | L52: 0 | M52: 14.15
A53: 1. Šroubové řadové svorky | B53: C131112 | C53: Propojka plochá 2 RSA 4 A | D53: 1.5 | E53: 50 ks v PE sáčku | F53: - | G53: 1 | H53: 8595155013910 | I53: 85389099 | K53: 11002001 | L53: 0 | M53: 1.5
A54: 1. Šroubové řadové svorky | B54: C131212 | C54: Propojka plochá 3 RSA 4 A | D54: 2.2 | E54: 50 ks v PE sáčku | F54: - | G54: 2 | H54: 8595155013927 | I54: 85389099 | K54: 11002001 | L54: 0 | M54: 2.2
A55: 1. Šroubové řadové svorky | B55: C135312 | C55: Propojka plochá 4 RSA 4 A | D55: 3.55 | E55: 10 ks v PE sáčku | F55: - | G55: 2 | H55: 8595155014856 | I55: 85389099 | K55: 11002001 | L55: 0 | M55: 3.55
A56: 1. Šroubové řadové svorky | B56: C135412 | C56: Propojka plochá 5 RSA 4 A | D56: 4.45 | E56: 10 ks v PE sáčku | F56: - | G56: 3 | H56: 8595155014863 | I56: 85389099 | K56: 11002001 | L56: 0 | M56: 4.45
A57: 1. Šroubové řadové svorky | B57: C135512 | C57: Propojka plochá 6 RSA 4 A | D57: 5.25 | E57: 10 ks v PE sáčku | F57: - | G57: 3 | H57: 8595155014870 | I57: 85389099 | K57: 11002001 | L57: 0 | M57: 5.25
A58: 1. Šroubové řadové svorky | B58: C135612 | C58: Propojka plochá 7 RSA 4 A | D58: 5.95 | E58: 10 ks v PE sáčku | F58: - | G58: 4 | H58: 8595155014887 | I58: 85389099 | K58: 11002001 | L58: 0 | M58: 5.95
A59: 1. Šroubové řadové svorky | B59: C135712 | C59: Propojka plochá 8 RSA 4 A | D59: 6.55 | E59: 10 ks v PE sáčku | F59: - | G59: 4 | H59: 8595155014894 | I59: 85389099 | K59: 11002001 | L59: 0 | M59: 6.55
A60: 1. Šroubové řadové svorky | B60: C135812 | C60: Propojka plochá 9 RSA 4 A | D60: 7.25 | E60: 10 ks v PE sáčku | F60: - | G60: 5 | H60: 8595155014900 | I60: 85389099 | K60: 11002001 | L60: 0 | M60: 7.25
A61: 1. Šroubové řadové svorky | B61: C135912 | C61: Propojka plochá 10 RSA 4 A | D61: 7.95 | E61: 10 ks v PE sáčku | F61: - | G61: 6 | H61: 8595155014917 | I61: 85389099 | K61: 11002001 | L61: 0 | M61: 7.95
A62: 1. Šroubové řadové svorky | B62: C137112 | C62: Propojka horní RSA 4 A/2-násobná | D62: 9.9 | E62: 10 ks v PE sáčku | F62: - | G62: 4 | H62: 8595155014924 | I62: 85389099 | K62: 11002001 | L62: 0 | M62: 9.9
A63: 1. Šroubové řadové svorky | B63: C137212 | C63: Propojka horní RSA 4 A/3-násobná | D63: 13.85 | E63: 10 ks v PE sáčku | F63: - | G63: 6 | H63: 8595155014931 | I63: 85389099 | K63: 11002001 | L63: 0 | M63: 13.85
A64: 1. Šroubové řadové svorky | B64: C137312 | C64: Propojka horní RSA 4 A/4-násobná | D64: 17.65 | E64: 10 ks v PE sáčku | F64: - | G64: 8 | H64: 8595155014948 | I64: 85389099 | K64: 11002001 | L64: 0 | M64: 17.65
A65: 1. Šroubové řadové svorky | B65: C137912 | C65: Propojka horní RSA 4 A/10-násobná | D65: 39.85 | E65: 10 ks v PE sáčku | F65: - | G65: 20 | H65: 8595155014955 | I65: 85389099 | K65: 11002001 | L65: 0 | M65: 39.85
A66: 1. Šroubové řadové svorky | B66: C431911 | C66: Hřeben RSA 4 A/10-násobný | D66: 20.5 | E66: 5 ks v PE sáčku | F66: - | G66: 6 | H66: 8595155015518 | I66: 85389099 | K66: 11002002 | L66: 0 | M66: 20.5
A67: 1. Šroubové řadové svorky | B67: C337120 | C67: Zkratovací propojka ZP 4 A pro RSA 4 A | D67: 16.2 | E67: 10 ks v PE sáčku | F67: 100 ks v PE sáčku | G67: 5 | H67: 8595155015136 | I67: 85389099 | K67: 11002003 | L67: 0 | M67: =D67-D67*L67 -> 16.2
A68: 1. Šroubové řadové svorky | B68: C235010 | C68: Měřící zdířka RSA 4 A / RS 4 | D68: 13.95 | E68: 10 ks v PE sáčku | F68: 100 ks v PE sáčku | G68: 1 | H68: 8595155017628 | I68: 85389099 | K68: 11002004 | L68: 0 | M68: 13.95
A69: 1. Šroubové řadové svorky | B69: B631111 | C69: Koncová přepážka RSA 4 A - bílá | D69: 5.6 | E69: 50 ks v PE sáčku | F69: - | G69: 1 | H69: 8595155010612 | I69: 85389099 | K69: 11002005 | L69: 0 | M69: 5.6
A70: 1. Šroubové řadové svorky | B70: B631121 | C70: Koncová přepážka RSA 4 A - světle modrá | D70: 5.6 | E70: 50 ks v PE sáčku | F70: - | G70: 1 | H70: 8595155010636 | I70: 85389099 | K70: 11002005 | L70: 0 | M70: 5.6
A71: 1. Šroubové řadové svorky | B71: B631131 | C71: Koncová přepážka RSA 4 A - tmavě modrá | D71: 5.6 | E71: 50 ks v PE sáčku | F71: - | G71: 1 | H71: 8595155010643 | I71: 85389099 | K71: 11002005 | L71: 0 | M71: 5.6
A72: 1. Šroubové řadové svorky | B72: B631141 | C72: Koncová přepážka RSA 4 A - gobi | D72: 5.6 | E72: 50 ks v PE sáčku | F72: - | G72: 1 | H72: 8595155010650 | I72: 85389099 | K72: 11002005 | L72: 0 | M72: 5.6
A73: 1. Šroubové řadové svorky | B73: B631151 | C73: Koncová přepážka RSA 4 A - hnědá | D73: 5.6 | E73: 50 ks v PE sáčku | F73: - | G73: 1 | H73: 8595155010667 | I73: 85389099 | K73: 11002005 | L73: 0 | M73: 5.6
A74: 1. Šroubové řadové svorky | B74: B631161 | C74: Koncová přepážka RSA 4 A - červená | D74: 5.6 | E74: 50 ks v PE sáčku | F74: - | G74: 1 | H74: 8595155010674 | I74: 85389099 | K74: 11002005 | L74: 0 | M74: 5.6
A75: 1. Šroubové řadové svorky | B75: B631171 | C75: Koncová přepážka RSA 4 A - oranžová | D75: 5.6 | E75: 50 ks v PE sáčku | F75: - | G75: 1 | H75: 8595155010681 | I75: 85389099 | K75: 11002005 | L75: 0 | M75: 5.6
A76: 1. Šroubové řadové svorky | B76: B631181 | C76: Koncová přepážka RSA 4 A - černá | D76: 5.6 | E76: 50 ks v PE sáčku | F76: - | G76: 1 | H76: 8595155010698 | I76: 85389099 | K76: 11002005 | L76: 0 | M76: 5.6
A77: 1. Šroubové řadové svorky | B77: B631191 | C77: Koncová přepážka RSA 4 A - fialová | D77: 5.6 | E77: 50 ks v PE sáčku | F77: - | G77: 1 | H77: 8595155010704 | I77: 85389099 | K77: 11002005 | L77: 0 | M77: 5.6
A78: 1. Šroubové řadové svorky | B78: B631211 | C78: Koncová přepážka RSA 4 A - šedá | D78: 5.6 | E78: 50 ks v PE sáčku | F78: - | G78: 1 | H78: 8595155010711 | I78: 85389099 | K78: 11002005 | L78: 0 | M78: 5.6
A79: 1. Šroubové řadové svorky | B79: B931251 | C79: Koncová přepážka RSA 4 A - zelená | D79: 5.6 | E79: 50 ks v PE sáčku | F79: - | G79: 1 | H79: 8595155012968 | I79: 85389099 | K79: 11002005 | L79: 0 | M79: 5.6
A80: 1. Šroubové řadové svorky | B80: B931261 | C80: Koncová přepážka RSA 4 A - žlutá | D80: 5.6 | E80: 50 ks v PE sáčku | F80: - | G80: 1 | H80: 8595155012951 | I80: 85389099 | K80: 11002005 | L80: 0 | M80: 5.6
A81: 1. Šroubové řadové svorky | B81: B631112 | C81: Středová přepážka RSA 4 A - bílá | D81: 7.25 | E81: 50 ks v PE sáčku | F81: - | G81: 2 | H81: 8595155010629 | I81: 85389099 | K81: 11002006 | L81: 0 | M81: 7.25
A82: 1. Šroubové řadové svorky | B82: B631122 | C82: Středová přepážka RSA 4 A - světle modrá | D82: 7.25 | E82: 50 ks v PE sáčku | F82: - | G82: 2 | H82: 8595155010728 | I82: 85389099 | K82: 11002006 | L82: 0 | M82: 7.25
A83: 1. Šroubové řadové svorky | B83: B631132 | C83: Středová přepážka RSA 4 A - tmavě modrá | D83: 7.25 | E83: 50 ks v PE sáčku | F83: - | G83: 2 | H83: 8595155010735 | I83: 85389099 | K83: 11002006 | L83: 0 | M83: 7.25
A84: 1. Šroubové řadové svorky | B84: B631142 | C84: Středová přepážka RSA 4 A - gobi | D84: 7.25 | E84: 50 ks v PE sáčku | F84: - | G84: 2 | H84: 8595155010742 | I84: 85389099 | K84: 11002006 | L84: 0 | M84: 7.25
A85: 1. Šroubové řadové svorky | B85: B631152 | C85: Středová přepážka RSA 4 A - hnědá | D85: 7.25 | E85: 50 ks v PE sáčku | F85: - | G85: 2 | H85: 8595155010759 | I85: 85389099 | K85: 11002006 | L85: 0 | M85: 7.25
A86: 1. Šroubové řadové svorky | B86: B631162 | C86: Středová přepážka RSA 4 A - červená | D86: 7.25 | E86: 50 ks v PE sáčku | F86: - | G86: 2 | H86: 8595155010766 | I86: 85389099 | K86: 11002006 | L86: 0 | M86: 7.25
A87: 1. Šroubové řadové svorky | B87: B631172 | C87: Středová přepážka RSA 4 A - oranžová | D87: 7.25 | E87: 50 ks v PE sáčku | F87: - | G87: 2 | H87: 8595155010773 | I87: 85389099 | K87: 11002006 | L87: 0 | M87: 7.25
A88: 1. Šroubové řadové svorky | B88: B631182 | C88: Středová přepážka RSA 4 A - černá | D88: 7.25 | E88: 50 ks v PE sáčku | F88: - | G88: 2 | H88: 8595155010780 | I88: 85389099 | K88: 11002006 | L88: 0 | M88: 7.25
A89: 1. Šroubové řadové svorky | B89: B631192 | C89: Středová přepážka RSA 4 A - fialová | D89: 7.25 | E89: 50 ks v PE sáčku | F89: - | G89: 2 | H89: 8595155010797 | I89: 85389099 | K89: 11002006 | L89: 0 | M89: 7.25
A90: 1. Šroubové řadové svorky | B90: B631212 | C90: Středová přepážka RSA 4 A - šedá | D90: 7.25 | E90: 50 ks v PE sáčku | F90: - | G90: 2 | H90: 8595155010803 | I90: 85389099 | K90: 11002006 | L90: 0 | M90: 7.25
A91: 1. Šroubové řadové svorky | B91: C431015 | C91: Koncovka krycího profilu propojovacího hřebenu pro RSA 4 a RSP 4 a RSE | D91: 4.7 | E91: 10 ks v PE sáčku | F91: - | G91: 0.15 | H91: 8595155015532 | I91: 85389099 | K91: 11002007 | L91: 0 | M91: 4.7
A92: 1. Šroubové řadové svorky | B92: G420025 | C92: Krycí štítek RSA 4 A | D92: 4.55 | E92: 10 ks v PE sáčku | F92: - | G92: 1 | H92: 8595155028068 | I92: 85472000 | K92: 11002007 | L92: 0 | M92: 4.55
A93: 1. Šroubové řadové svorky | B93: G512126 | C93: Krytka RSA 4 A pro 4 svorky (žlutá - text POD NAPĚTÍM Z CIZÍHO ZDROJE) | D93: 11.5 | E93: 10 ks v PE sáčku | F93: - | G93: 1 | H93: 8595155028372 | I93: 85472000 | K93: 11002007 | L93: 0 | M93: 11.5
A94: 1. Šroubové řadové svorky | B94: G512426 | C94: Krytka RSA 4 A pro 4 svorky (žlutá - text POD NAPĚTÍM I PŘI VYPNUTÉM HLAVNÍM VYPÍNAČI) | D94: 11.5 | E94: 10 ks v PE sáčku | F94: - | G94: 1 | H94: 8595155028358 | I94: 85472000 | K94: 11002007 | L94: 0 | M94: 11.5
A95: 1. Šroubové řadové svorky | B95: G520026 | C95: Krytka RSA 4 A pro 4 svorky (žlutá s bleskem) | D95: 11.5 | E95: 10 ks v PE sáčku | F95: - | G95: 1 | H95: 8595155028419 | I95: 85472000 | K95: 11002007 | L95: 0 | M95: 11.5
A96: 1. Šroubové řadové svorky | B96: G612126 | C96: Krytka RSA 4 A pro 5 svorek (žlutá - text POD NAPĚTÍM Z CIZÍHO ZDROJE) | D96: 11.8 | E96: 10 ks v PE sáčku | F96: - | G96: 1 | H96: 8595155028389 | I96: 85389099 | K96: 11002007 | L96: 0 | M96: 11.8
A97: 1. Šroubové řadové svorky | B97: G612426 | C97: Krytka RSA 4 A pro 5 svorek (žlutá - text POD NAPĚTÍM I PŘI VYPNUTÉM HLAVNÍM VYPÍNAČI) | D97: 11.8 | E97: 10 ks v PE sáčku | F97: - | G97: 1 | H97: 8595155028365 | I97: 85389099 | K97: 11002007 | L97: 0 | M97: 11.8
A98: 1. Šroubové řadové svorky | B98: G620026 | C98: Krytka RSA 4 A pro 5 svorek (žlutá s bleskem) | D98: 11.8 | E98: 10 ks v PE sáčku | F98: - | G98: 1 | H98: 8595155028433 | I98: 85389099 | K98: 11002007 | L98: 0 | M98: 11.8
A99: 1. Šroubové řadové svorky | B99: A431111 | C99: Svorka RS 4 - bílá | D99: 14.15 | E99: 100 ks v krabici | F99: 1000 ks v krabici | G99: 8 | H99: 8595155005045 | I99: 85389099 | K99: 11002100 | L99: 0 | M99: 14.15
A100: 1. Šroubové řadové svorky | B100: A431121 | C100: Svorka RS 4 - světle modrá | D100: 14.15 | E100: 100 ks v krabici | F100: 1000 ks v krabici | G100: 8 | H100: 8595155005083 | I100: 85389099 | K100: 11002100 | L100: 0 | M100: 14.15
A101: 1. Šroubové řadové svorky | B101: A431131 | C101: Svorka RS 4 - tmavě modrá | D101: 14.15 | E101: 100 ks v krabici | F101: 1000 ks v krabici | G101: 8 | H101: 8595155005090 | I101: 85389099 | K101: 11002100 | L101: 0 | M101: 14.15
A102: 1. Šroubové řadové svorky | B102: A431141 | C102: Svorka RS 4 - gobi | D102: 14.15 | E102: 100 ks v krabici | F102: 1000 ks v krabici | G102: 8 | H102: 8595155005106 | I102: 85389099 | K102: 11002100 | L102: 0 | M102: 14.15
A103: 1. Šroubové řadové svorky | B103: A431151 | C103: Svorka RS 4 - hnědá | D103: 14.15 | E103: 100 ks v krabici | F103: 1000 ks v krabici | G103: 8 | H103: 8595155005328 | I103: 85389099 | K103: 11002100 | L103: 0 | M103: 14.15
A104: 1. Šroubové řadové svorky | B104: A431161 | C104: Svorka RS 4 - červená | D104: 14.15 | E104: 100 ks v krabici | F104: 1000 ks v krabici | G104: 8 | H104: 8595155005342 | I104: 85389099 | K104: 11002100 | L104: 0 | M104: 14.15
A105: 1. Šroubové řadové svorky | B105: A431171 | C105: Svorka RS 4 - oranžová | D105: 14.15 | E105: 100 ks v krabici | F105: 1000 ks v krabici | G105: 8 | H105: 8595155005359 | I105: 85389099 | K105: 11002100 | L105: 0 | M105: 14.15
A106: 1. Šroubové řadové svorky | B106: A431181 | C106: Svorka RS 4 - černá | D106: 14.15 | E106: 100 ks v krabici | F106: 1000 ks v krabici | G106: 8 | H106: 8595155005366 | I106: 85389099 | K106: 11002100 | L106: 0 | M106: 14.15
A107: 1. Šroubové řadové svorky | B107: A431191 | C107: Svorka RS 4 - fialová | D107: 14.15 | E107: 100 ks v krabici | F107: 1000 ks v krabici | G107: 8 | H107: 8595155005373 | I107: 85389099 | K107: 11002100 | L107: 0 | M107: 14.15
A108: 1. Šroubové řadové svorky | B108: A431211 | C108: Svorka RS 4 - šedá | D108: 14.15 | E108: 100 ks v krabici | F108: 1000 ks v krabici | G108: 8 | H108: 8595155005380 | I108: 85389099 | K108: 11002100 | L108: 0 | M108: 14.15
A109: 1. Šroubové řadové svorky | B109: A431251 | C109: Svorka RS 4 - zelená | D109: 14.15 | E109: 100 ks v krabici | F109: 1000 ks v krabici | G109: 8 | H109: 8595155005397 | I109: 85389099 | K109: 11002100 | L109: 0 | M109: 14.15
A110: 1. Šroubové řadové svorky | B110: A431261 | C110: Svorka RS 4 - žlutá | D110: 14.15 | E110: 100 ks v krabici | F110: 1000 ks v krabici | G110: 8 | H110: 8595155005403 | I110: 85389099 | K110: 11002100 | L110: 0 | M110: 14.15
A111: 1. Šroubové řadové svorky | B111: C134112 | C111: Propojka plochá 2 RS 4 | D111: 1.5 | E111: 50 ks v PE sáčku | F111: - | G111: 1 | H111: 8595155013507 | I111: 85389099 | K111: 11002101 | L111: 0 | M111: 1.5
A112: 1. Šroubové řadové svorky | B112: C134212 | C112: Propojka plochá 3 RS 4 | D112: 2.2 | E112: 50 ks v PE sáčku | F112: - | G112: 2 | H112: 8595155013514 | I112: 85389099 | K112: 11002101 | L112: 0 | M112: 2.2
A113: 1. Šroubové řadové svorky | B113: C134312 | C113: Propojka plochá 4 RS 4 | D113: 3.55 | E113: 10 ks v PE sáčku | F113: - | G113: 2 | H113: 8595155013521 | I113: 85389099 | K113: 11002101 | L113: 0 | M113: 3.55
A114: 1. Šroubové řadové svorky | B114: C134912 | C114: Propojka plochá 10 RS 4 | D114: 7.95 | E114: 10 ks v PE sáčku | F114: - | G114: 6 | H114: 8595155013538 | I114: 85389099 | K114: 11002101 | L114: 0 | M114: 7.95
A115: 1. Šroubové řadové svorky | B115: C431117 | C115: Hřeben EURO (Mini) D4 a RS 4 / 2-násobný | D115: 10.15 | E115: 100 ks v PE sáčku | F115: - | G115: 1 | H115: 8595155015716 | I115: 85389099 | J115: EU D Přís | K115: 11002102 | L115: 0 | M115: 10.15
A116: 1. Šroubové řadové svorky | B116: C431217 | C116: Hřeben EURO (Mini) D4 a RS 4 / 3-násobný | D116: 16.5 | E116: 100 ks v PE sáčku | F116: - | G116: 1 | H116: 8595155015723 | I116: 85389099 | J116: EU D Přís | K116: 11002102 | L116: 0 | M116: 16.5
A117: 1. Šroubové řadové svorky | B117: C344116 | C117: Zkratovací propojka ZP 4 pro RS 4 | D117: 16.2 | E117: 10 ks v PE sáčku | F117: 100 ks v PE sáčku | G117: 5 | H117: 8595155015013 | I117: 85389099 | K117: 11002103 | L117: 0 | M117: 16.2
A118: 1. Šroubové řadové svorky | B118: C634010 | C118: Zdířka pro zkratovací propojku ZP 4 | D118: 13.95 | E118: 10 ks v PE sáčku | F118: 100 ks v PE sáčku | G118: 1 | H118: 8595155017673 | I118: 85389099 | K118: 11002104 | L118: 0 | M118: 13.95
A119: 1. Šroubové řadové svorky | B119: G412509 | C119: Krycí štítek RS 4 | D119: 4.55 | E119: 10 ks v PE sáčku | F119: - | G119: 1 | H119: 8595155003881 | I119: 85472000 | K119: 11002108 | L119: 0 | M119: 4.55
A120: 1. Šroubové řadové svorky | B120: A141111 | C120: Svorka RSA 6 A - bílá | D120: 18.45 | E120: 100 ks v krabici | F120: 500 ks v krabici | G120: 14 | H120: 8595155003638 | I120: 85389099 | J120: RSA 6A | K120: 11003000 | L120: 0 | M120: 18.45
A121: 1. Šroubové řadové svorky | B121: A141121 | C121: Svorka RSA 6 A - světle modrá | D121: 18.45 | E121: 100 ks v krabici | F121: 500 ks v krabici | G121: 14 | H121: 8595155003645 | I121: 85389099 | J121: RSA 6A | K121: 11003000 | L121: 0 | M121: 18.45
A122: 1. Šroubové řadové svorky | B122: A141131 | C122: Svorka RSA 6 A - tmavě modrá | D122: 18.45 | E122: 100 ks v krabici | F122: 500 ks v krabici | G122: 14 | H122: 8595155003652 | I122: 85389099 | J122: RSA 6A | K122: 11003000 | L122: 0 | M122: 18.45
A123: 1. Šroubové řadové svorky | B123: A141141 | C123: Svorka RSA 6 A - gobi | D123: 18.45 | E123: 100 ks v krabici | F123: 500 ks v krabici | G123: 14 | H123: 8595155003669 | I123: 85389099 | J123: RSA 6A | K123: 11003000 | L123: 0 | M123: 18.45
A124: 1. Šroubové řadové svorky | B124: A141151 | C124: Svorka RSA 6 A - hnědá | D124: 18.45 | E124: 100 ks v krabici | F124: 500 ks v krabici | G124: 14 | H124: 8595155003676 | I124: 85389099 | J124: RSA 6A | K124: 11003000 | L124: 0 | M124: 18.45
A125: 1. Šroubové řadové svorky | B125: A141161 | C125: Svorka RSA 6 A - červená | D125: 18.45 | E125: 100 ks v krabici | F125: 500 ks v krabici | G125: 14 | H125: 8595155003683 | I125: 85389099 | J125: RSA 6A | K125: 11003000 | L125: 0 | M125: 18.45
A126: 1. Šroubové řadové svorky | B126: A141171 | C126: Svorka RSA 6 A - oranžová | D126: 18.45 | E126: 100 ks v krabici | F126: 500 ks v krabici | G126: 14 | H126: 8595155003690 | I126: 85389099 | J126: RSA 6A | K126: 11003000 | L126: 0 | M126: 18.45
A127: 1. Šroubové řadové svorky | B127: A141181 | C127: Svorka RSA 6 A - černá | D127: 18.45 | E127: 100 ks v krabici | F127: 500 ks v krabici | G127: 14 | H127: 8595155003706 | I127: 85389099 | J127: RSA 6A | K127: 11003000 | L127: 0 | M127: 18.45
A128: 1. Šroubové řadové svorky | B128: A141191 | C128: Svorka RSA 6 A - fialová | D128: 18.45 | E128: 100 ks v krabici | F128: 500 ks v krabici | G128: 14 | H128: 8595155003713 | I128: 85389099 | J128: RSA 6A | K128: 11003000 | L128: 0 | M128: 18.45
A129: 1. Šroubové řadové svorky | B129: A141211 | C129: Svorka RSA 6 A - šedá | D129: 18.45 | E129: 100 ks v krabici | F129: 500 ks v krabici | G129: 14 | H129: 8595155003720 | I129: 85389099 | J129: RSA 6A | K129: 11003000 | L129: 0 | M129: 18.45
A130: 1. Šroubové řadové svorky | B130: A141251 | C130: Svorka RSA 6 A - zelená | D130: 18.45 | E130: 100 ks v krabici | F130: 500 ks v krabici | G130: 14 | H130: 8595155004123 | I130: 85389099 | J130: RSA 6A | K130: 11003000 | L130: 0 | M130: 18.45
A131: 1. Šroubové řadové svorky | B131: A141261 | C131: Svorka RSA 6 A - žlutá | D131: 18.45 | E131: 100 ks v krabici | F131: 500 ks v krabici | G131: 14 | H131: 8595155004130 | I131: 85389099 | J131: RSA 6A | K131: 11003000 | L131: 0 | M131: =D131-D131*L131 -> 18.45
A132: 1. Šroubové řadové svorky | B132: C147102 | C132: Propojka plochá 2 RSA 6 A | D132: 5.85 | E132: 50 ks v PE sáčku | F132: - | G132: 2 | H132: 8595155014252 | I132: 85389099 | K132: 11003001 | L132: 0 | M132: 5.85
A133: 1. Šroubové řadové svorky | B133: C147202 | C133: Propojka plochá 3 RSA 6 A | D133: 7.35 | E133: 50 ks v PE sáčku | F133: - | G133: 3 | H133: 8595155014269 | I133: 85389099 | K133: 11003001 | L133: 0 | M133: 7.35
A134: 1. Šroubové řadové svorky | B134: C147302 | C134: Propojka plochá 4 RSA 6 A | D134: 9.7 | E134: 10 ks v PE sáčku | F134: - | G134: 4 | H134: 8595155014276 | I134: 85389099 | K134: 11003001 | L134: 0 | M134: 9.7
A135: 1. Šroubové řadové svorky | B135: C147402 | C135: Propojka plochá 5 RSA 6 A | D135: 11.8 | E135: 10 ks v PE sáčku | F135: - | G135: 5 | H135: 8595155014290 | I135: 85389099 | K135: 11003001 | L135: 0 | M135: 11.8
A136: 1. Šroubové řadové svorky | B136: C147502 | C136: Propojka plochá 6 RSA 6 A | D136: 14 | E136: 10 ks v PE sáčku | F136: - | G136: 6 | H136: 8595155014306 | I136: 85389099 | K136: 11003001 | L136: 0 | M136: 14
A137: 1. Šroubové řadové svorky | B137: C147602 | C137: Propojka plochá 7 RSA 6 A | D137: 16.1 | E137: 10 ks v PE sáčku | F137: - | G137: 7 | H137: 8595155014313 | I137: 85389099 | K137: 11003001 | L137: 0 | M137: 16.1
A138: 1. Šroubové řadové svorky | B138: C147702 | C138: Propojka plochá 8 RSA 6 A | D138: 17.45 | E138: 10 ks v PE sáčku | F138: - | G138: 8 | H138: 8595155014320 | I138: 85389099 | K138: 11003001 | L138: 0 | M138: 17.45
A139: 1. Šroubové řadové svorky | B139: C147902 | C139: Propojka plochá 10 RSA 6 A | D139: 17.8 | E139: 10 ks v PE sáčku | F139: - | G139: 10 | H139: 8595155014283 | I139: 85389099 | K139: 11003001 | L139: 0 | M139: 17.8
A140: 1. Šroubové řadové svorky | B140: C147112 | C140: Propojka horní RSA 6 A/2-násobná | D140: 11.8 | E140: 10 ks v PE sáčku | F140: - | G140: 4 | H140: 8595155014962 | I140: 85389099 | K140: 11003002 | L140: 0 | M140: 11.8
A141: 1. Šroubové řadové svorky | B141: C147212 | C141: Propojka horní RSA 6 A/3-násobná | D141: 14.45 | E141: 10 ks v PE sáčku | F141: - | G141: 6 | H141: 8595155014979 | I141: 85389099 | K141: 11003002 | L141: 0 | M141: 14.45
A142: 1. Šroubové řadové svorky | B142: C147312 | C142: Propojka horní RSA 6 A/4-násobná | D142: 20.25 | E142: 10 ks v PE sáčku | F142: - | G142: 8 | H142: 8595155014986 | I142: 85389099 | K142: 11003002 | L142: 0 | M142: 20.25
A143: 1. Šroubové řadové svorky | B143: C147912 | C143: Propojka horní RSA 6 A/10-násobná | D143: 50.05 | E143: 10 ks v PE sáčku | F143: - | G143: 19 | H143: 8595155014993 | I143: 85389099 | K143: 11003002 | L143: 0 | M143: 50.05
A144: 1. Šroubové řadové svorky | B144: C246020 | C144: Zdířka pro ZP 6 A - RSA 6 A (kompatibilní s C349129) / RSA 10 A | D144: 15.95 | E144: 10 ks v PE sáčku | F144: 100 ks v PE sáčku | G144: 2 | H144: 8595155017680 | I144: 85389099 | K144: 11003003 | L144: 0 | M144: 15.95
A145: 1. Šroubové řadové svorky | B145: C349129 | C145: Zkratovací propojka ZP 6 A pro RSA 6 A | D145: 16.2 | E145: 10 ks v PE sáčku | F145: 100 ks v PE sáčku | G145: 5 | H145: 8595155015006 | I145: 85389099 | K145: 11003003 | L145: 0 | M145: 16.2
A146: 1. Šroubové řadové svorky | B146: B641111 | C146: Koncová přepážka RSA 6 A / RSA 10 A - bílá | D146: 7.35 | E146: 50 ks v PE sáčku | F146: - | G146: 2 | H146: 8595155009746 | I146: 85389099 | K146: 11003004 | L146: 0 | M146: 7.35
A147: 1. Šroubové řadové svorky | B147: B641121 | C147: Koncová přepážka RSA 6 A / RSA 10 A - světle modrá | D147: 7.35 | E147: 50 ks v PE sáčku | F147: - | G147: 2 | H147: 8595155009760 | I147: 85389099 | K147: 11003004 | L147: 0 | M147: 7.35
A148: 1. Šroubové řadové svorky | B148: B641131 | C148: Koncová přepážka RSA 6 A / RSA 10 A - tmavě modrá | D148: 7.35 | E148: 50 ks v PE sáčku | F148: - | G148: 2 | H148: 8595155009784 | I148: 85389099 | K148: 11003004 | L148: 0 | M148: 7.35
A149: 1. Šroubové řadové svorky | B149: B641141 | C149: Koncová přepážka RSA 6 A / RSA 10 A - gobi | D149: 7.35 | E149: 50 ks v PE sáčku | F149: - | G149: 2 | H149: 8595155009807 | I149: 85389099 | K149: 11003004 | L149: 0 | M149: 7.35
A150: 1. Šroubové řadové svorky | B150: B641151 | C150: Koncová přepážka RSA 6 A / RSA 10 A - hnědá | D150: 7.35 | E150: 50 ks v PE sáčku | F150: - | G150: 2 | H150: 8595155009821 | I150: 85389099 | K150: 11003004 | L150: 0 | M150: 7.35
A151: 1. Šroubové řadové svorky | B151: B641161 | C151: Koncová přepážka RSA 6 A / RSA 10 A - červená | D151: 7.35 | E151: 50 ks v PE sáčku | F151: - | G151: 2 | H151: 8595155009845 | I151: 85389099 | K151: 11003004 | L151: 0 | M151: 7.35
A152: 1. Šroubové řadové svorky | B152: B641171 | C152: Koncová přepážka RSA 6 A / RSA 10 A - oranžová | D152: 7.35 | E152: 50 ks v PE sáčku | F152: - | G152: 2 | H152: 8595155009869 | I152: 85389099 | K152: 11003004 | L152: 0 | M152: 7.35
A153: 1. Šroubové řadové svorky | B153: B641181 | C153: Koncová přepážka RSA 6 A / RSA 10 A - černá | D153: 7.35 | E153: 50 ks v PE sáčku | F153: - | G153: 2 | H153: 8595155009883 | I153: 85389099 | K153: 11003004 | L153: 0 | M153: 7.35
A154: 1. Šroubové řadové svorky | B154: B641191 | C154: Koncová přepážka RSA 6 A / RSA 10 A - fialová | D154: 7.35 | E154: 50 ks v PE sáčku | F154: - | G154: 2 | H154: 8595155009906 | I154: 85389099 | K154: 11003004 | L154: 0 | M154: 7.35
A155: 1. Šroubové řadové svorky | B155: B641211 | C155: Koncová přepážka RSA 6 A / RSA 10 A - šedá | D155: 7.35 | E155: 50 ks v PE sáčku | F155: - | G155: 2 | H155: 8595155009920 | I155: 85389099 | K155: 11003004 | L155: 0 | M155: 7.35
A156: 1. Šroubové řadové svorky | B156: B941251 | C156: Koncová přepážka RSA 6 A / RSA 10 A - zelená | D156: 7.35 | E156: 50 ks v PE sáčku | F156: - | G156: 2 | H156: 8595155009944 | I156: 85389099 | K156: 11003004 | L156: 0 | M156: 7.35
A157: 1. Šroubové řadové svorky | B157: B941261 | C157: Koncová přepážka RSA 6 A / RSA 10 A - žlutá | D157: 7.35 | E157: 50 ks v PE sáčku | F157: - | G157: 2 | H157: 8595155009968 | I157: 85389099 | K157: 11003004 | L157: 0 | M157: 7.35
A158: 1. Šroubové řadové svorky | B158: B641112 | C158: Středová přepážka RSA 6 A / RSA 10 A - bílá | D158: 9.55 | E158: 50 ks v PE sáčku | F158: - | G158: 3 | H158: 8595155009753 | I158: 85389099 | K158: 11003005 | L158: 0 | M158: 9.55
A159: 1. Šroubové řadové svorky | B159: B641122 | C159: Středová přepážka RSA 6 A / RSA 10 A - světle modrá | D159: 9.55 | E159: 50 ks v PE sáčku | F159: - | G159: 3 | H159: 8595155009777 | I159: 85389099 | K159: 11003005 | L159: 0 | M159: 9.55
A160: 1. Šroubové řadové svorky | B160: B641132 | C160: Středová přepážka RSA 6 A / RSA 10 A - tmavě modrá | D160: 9.55 | E160: 50 ks v PE sáčku | F160: - | G160: 3 | H160: 8595155009791 | I160: 85389099 | K160: 11003005 | L160: 0 | M160: 9.55
A161: 1. Šroubové řadové svorky | B161: B641142 | C161: Středová přepážka RSA 6 A / RSA 10 A - gobi | D161: 9.55 | E161: 50 ks v PE sáčku | F161: - | G161: 3 | H161: 8595155009814 | I161: 85389099 | K161: 11003005 | L161: 0 | M161: 9.55
A162: 1. Šroubové řadové svorky | B162: B641152 | C162: Středová přepážka RSA 6 A / RSA 10 A - hnědá | D162: 9.55 | E162: 50 ks v PE sáčku | F162: - | G162: 3 | H162: 8595155009838 | I162: 85389099 | K162: 11003005 | L162: 0 | M162: 9.55
A163: 1. Šroubové řadové svorky | B163: B641162 | C163: Středová přepážka RSA 6 A / RSA 10 A - červená | D163: 9.55 | E163: 50 ks v PE sáčku | F163: - | G163: 3 | H163: 8595155009852 | I163: 85389099 | K163: 11003005 | L163: 0 | M163: 9.55
A164: 1. Šroubové řadové svorky | B164: B641172 | C164: Středová přepážka RSA 6 A / RSA 10 A - oranžová | D164: 9.55 | E164: 50 ks v PE sáčku | F164: - | G164: 3 | H164: 8595155009876 | I164: 85389099 | K164: 11003005 | L164: 0 | M164: 9.55
A165: 1. Šroubové řadové svorky | B165: B641182 | C165: Středová přepážka RSA 6 A / RSA 10 A - černá | D165: 9.55 | E165: 50 ks v PE sáčku | F165: - | G165: 3 | H165: 8595155009890 | I165: 85389099 | K165: 11003005 | L165: 0 | M165: 9.55
A166: 1. Šroubové řadové svorky | B166: B641192 | C166: Středová přepážka RSA 6 A / RSA 10 A - fialová | D166: 9.55 | E166: 50 ks v PE sáčku | F166: - | G166: 3 | H166: 8595155009913 | I166: 85389099 | K166: 11003005 | L166: 0 | M166: 9.55
A167: 1. Šroubové řadové svorky | B167: B641212 | C167: Středová přepážka RSA 6 A / RSA 10 A - šedá | D167: 9.55 | E167: 50 ks v PE sáčku | F167: - | G167: 3 | H167: 8595155009937 | I167: 85389099 | K167: 11003005 | L167: 0 | M167: 9.55
A168: 1. Šroubové řadové svorky | B168: G410030 | C168: Krycí štítek RSA 6 A / RSA 10 A | D168: 5.95 | E168: 10 ks v PE sáčku | F168: - | G168: 1 | H168: 8595155028129 | I168: 85472000 | K168: 11003006 | L168: 0 | M168: 5.95
A169: 1. Šroubové řadové svorky | B169: A151111 | C169: Svorka RSA 10 A - bílá | D169: 24.6 | E169: 50 ks v krabici | F169: 300 ks v krabici | G169: 19 | H169: 8595155003485 | I169: 85389099 | J169: RSA 10A | K169: 11004000 | L169: 0 | M169: 24.6
A170: 1. Šroubové řadové svorky | B170: A151121 | C170: Svorka RSA 10 A - světle modrá | D170: 24.6 | E170: 50 ks v krabici | F170: 300 ks v krabici | G170: 19 | H170: 8595155003508 | I170: 85389099 | J170: RSA 10A | K170: 11004000 | L170: 0 | M170: 24.6
A171: 1. Šroubové řadové svorky | B171: A151131 | C171: Svorka RSA 10 A - tmavě modrá | D171: 24.6 | E171: 50 ks v krabici | F171: 300 ks v krabici | G171: 19 | H171: 8595155003522 | I171: 85389099 | J171: RSA 10A | K171: 11004000 | L171: 0 | M171: 24.6
A172: 1. Šroubové řadové svorky | B172: A151141 | C172: Svorka RSA 10 A - gobi | D172: 24.6 | E172: 50 ks v krabici | F172: 300 ks v krabici | G172: 19 | H172: 8595155003546 | I172: 85389099 | J172: RSA 10A | K172: 11004000 | L172: 0 | M172: 24.6
A173: 1. Šroubové řadové svorky | B173: A151151 | C173: Svorka RSA 10 A - hnědá | D173: 24.6 | E173: 50 ks v krabici | F173: 300 ks v krabici | G173: 19 | H173: 8595155003553 | I173: 85389099 | J173: RSA 10A | K173: 11004000 | L173: 0 | M173: 24.6
A174: 1. Šroubové řadové svorky | B174: A151161 | C174: Svorka RSA 10 A - červená | D174: 24.6 | E174: 50 ks v krabici | F174: 300 ks v krabici | G174: 19 | H174: 8595155003577 | I174: 85389099 | J174: RSA 10A | K174: 11004000 | L174: 0 | M174: 24.6
A175: 1. Šroubové řadové svorky | B175: A151171 | C175: Svorka RSA 10 A - oranžová | D175: 24.6 | E175: 50 ks v krabici | F175: 300 ks v krabici | G175: 19 | H175: 8595155003584 | I175: 85389099 | J175: RSA 10A | K175: 11004000 | L175: 0 | M175: 24.6
A176: 1. Šroubové řadové svorky | B176: A151181 | C176: Svorka RSA 10 A - černá | D176: 24.6 | E176: 50 ks v krabici | F176: 300 ks v krabici | G176: 19 | H176: 8595155003591 | I176: 85389099 | J176: RSA 10A | K176: 11004000 | L176: 0 | M176: 24.6
A177: 1. Šroubové řadové svorky | B177: A151191 | C177: Svorka RSA 10 A - fialová | D177: 24.6 | E177: 50 ks v krabici | F177: 300 ks v krabici | G177: 19 | H177: 8595155003607 | I177: 85389099 | J177: RSA 10A | K177: 11004000 | L177: 0 | M177: 24.6
A178: 1. Šroubové řadové svorky | B178: A151211 | C178: Svorka RSA 10 A - šedá | D178: 24.6 | E178: 50 ks v krabici | F178: 300 ks v krabici | G178: 19 | H178: 8595155003621 | I178: 85389099 | J178: RSA 10A | K178: 11004000 | L178: 0 | M178: 24.6
A179: 1. Šroubové řadové svorky | B179: A151251 | C179: Svorka RSA 10 A - zelená | D179: 24.6 | E179: 50 ks v krabici | F179: 300 ks v krabici | G179: 19 | H179: 8595155004147 | I179: 85389099 | J179: RSA 10A | K179: 11004000 | L179: 0 | M179: 24.6
A180: 1. Šroubové řadové svorky | B180: A151261 | C180: Svorka RSA 10 A - žlutá | D180: 24.6 | E180: 50 ks v krabici | F180: 300 ks v krabici | G180: 19 | H180: 8595155004154 | I180: 85389099 | J180: RSA 10A | K180: 11004000 | L180: 0 | M180: 24.6
A181: 1. Šroubové řadové svorky | B181: C157110 | C181: Propojka plochá 2 RSA 10 A | D181: 6.55 | E181: 50 ks v PE sáčku | F181: - | G181: 2 | H181: 8595155015143 | I181: 85389099 | K181: 11004001 | L181: 0 | M181: 6.55
A182: 1. Šroubové řadové svorky | B182: C157210 | C182: Propojka plochá 3 RSA 10 A | D182: 8.45 | E182: 50 ks v PE sáčku | F182: - | G182: 4 | H182: 8595155015150 | I182: 85389099 | K182: 11004001 | L182: 0 | M182: 8.45
A183: 1. Šroubové řadové svorky | B183: C157310 | C183: Propojka plochá 4 RSA 10 A | D183: 11.05 | E183: 10 ks v PE sáčku | F183: - | G183: 5 | H183: 8595155015167 | I183: 85389099 | K183: 11004001 | L183: 0 | M183: 11.05
A184: 1. Šroubové řadové svorky | B184: C157410 | C184: Propojka plochá 5 RSA 10 A | D184: 13.6 | E184: 10 ks v PE sáčku | F184: - | G184: 6 | H184: 8595155015181 | I184: 85389099 | K184: 11004001 | L184: 0 | M184: 13.6
A185: 1. Šroubové řadové svorky | B185: C157510 | C185: Propojka plochá 6 RSA 10 A | D185: 16.2 | E185: 10 ks v PE sáčku | F185: - | G185: 7 | H185: 8595155015198 | I185: 85389099 | K185: 11004001 | L185: 0 | M185: 16.2
A186: 1. Šroubové řadové svorky | B186: C157610 | C186: Propojka plochá 7 RSA 10 A | D186: 17.9 | E186: 10 ks v PE sáčku | F186: - | G186: 8 | H186: 8595155015204 | I186: 85389099 | K186: 11004001 | L186: 0 | M186: 17.9
A187: 1. Šroubové řadové svorky | B187: C157710 | C187: Propojka plochá 8 RSA 10 A | D187: 18.55 | E187: 10 ks v PE sáčku | F187: - | G187: 10 | H187: 8595155015235 | I187: 85389099 | K187: 11004001 | L187: 0 | M187: 18.55
A188: 1. Šroubové řadové svorky | B188: C157910 | C188: Propojka plochá 10 RSA 10 A | D188: 19 | E188: 10 ks v PE sáčku | F188: - | G188: 13 | H188: 8595155015174 | I188: 85389099 | K188: 11004001 | L188: 0 | M188: 19
A189: 1. Šroubové řadové svorky | B189: C157112 | C189: Propojka horní RSA 10 A/2-násobná | D189: 13.05 | E189: 10 ks v PE sáčku | F189: - | G189: 4 | H189: 8595155015099 | I189: 85389099 | K189: 11004002 | L189: 0 | M189: 13.05
A190: 1. Šroubové řadové svorky | B190: C157212 | C190: Propojka horní RSA 10 A/3-násobná | D190: 16.55 | E190: 10 ks v PE sáčku | F190: - | G190: 7 | H190: 8595155015105 | I190: 85389099 | K190: 11004002 | L190: 0 | M190: 16.55
A191: 1. Šroubové řadové svorky | B191: C157312 | C191: Propojka horní RSA 10 A/4-násobná | D191: 22.75 | E191: 10 ks v PE sáčku | F191: - | G191: 9 | H191: 8595155015112 | I191: 85389099 | K191: 11004002 | L191: 0 | M191: 22.75
A192: 1. Šroubové řadové svorky | B192: C157912 | C192: Propojka horní RSA 10 A/10-násobná | D192: 54.8 | E192: 10 ks v PE sáčku | F192: - | G192: 23 | H192: 8595155015129 | I192: 85389099 | K192: 11004002 | L192: 0 | M192: 54.8
A193: 1. Šroubové řadové svorky | B193: A161116 | C193: Svorka RSA 16 A - bílá | D193: 31.95 | E193: 50 ks v krabici | F193: 300 ks v krabici | G193: 28 | H193: 8595155001818 | I193: 85389099 | J193: RSA 16A | K193: 11005000 | L193: 0 | M193: 31.95
A194: 1. Šroubové řadové svorky | B194: A161126 | C194: Svorka RSA 16 A - světle modrá | D194: 31.95 | E194: 50 ks v krabici | F194: 300 ks v krabici | G194: 28 | H194: 8595155001825 | I194: 85389099 | J194: RSA 16A | K194: 11005000 | L194: 0 | M194: 31.95
A195: 1. Šroubové řadové svorky | B195: A161136 | C195: Svorka RSA 16 A - tmavě modrá | D195: 31.95 | E195: 50 ks v krabici | F195: 300 ks v krabici | G195: 28 | H195: 8595155001832 | I195: 85389099 | J195: RSA 16A | K195: 11005000 | L195: 0 | M195: =D195-D195*L195 -> 31.95
A196: 1. Šroubové řadové svorky | B196: A161146 | C196: Svorka RSA 16 A - gobi | D196: 31.95 | E196: 50 ks v krabici | F196: 300 ks v krabici | G196: 28 | H196: 8595155001849 | I196: 85389099 | J196: RSA 16A | K196: 11005000 | L196: 0 | M196: 31.95
A197: 1. Šroubové řadové svorky | B197: A161156 | C197: Svorka RSA 16 A - hnědá | D197: 31.95 | E197: 50 ks v krabici | F197: 300 ks v krabici | G197: 28 | H197: 8595155001856 | I197: 85389099 | J197: RSA 16A | K197: 11005000 | L197: 0 | M197: 31.95
A198: 1. Šroubové řadové svorky | B198: A161166 | C198: Svorka RSA 16 A - červená | D198: 31.95 | E198: 50 ks v krabici | F198: 300 ks v krabici | G198: 28 | H198: 8595155001863 | I198: 85389099 | J198: RSA 16A | K198: 11005000 | L198: 0 | M198: 31.95
A199: 1. Šroubové řadové svorky | B199: A161176 | C199: Svorka RSA 16 A - oranžová | D199: 31.95 | E199: 50 ks v krabici | F199: 300 ks v krabici | G199: 28 | H199: 8595155001870 | I199: 85389099 | J199: RSA 16A | K199: 11005000 | L199: 0 | M199: 31.95
A200: 1. Šroubové řadové svorky | B200: A161186 | C200: Svorka RSA 16 A - černá | D200: 31.95 | E200: 50 ks v krabici | F200: 300 ks v krabici | G200: 28 | H200: 8595155001887 | I200: 85389099 | J200: RSA 16A | K200: 11005000 | L200: 0 | M200: 31.95
... 2010 more rows

Sheet vyhledávání
C1: Kategorie | D1: Objednací číslo | E1: Typ výrobku | K1: Kategorie | L1: Objednací číslo | M1: Typ výrobku
C2: 18. Značení | J2: 1. Šroubové svorky RSA, RSA PE, RSP, EB, MINI, WGO, EURO | K2: ="*"&C2&"*" -> *18. Značení* | L2: ="*"&D2&"*" -> ** | M2: ="*"&E2&"*" -> **
A4: Kategorie | B4: Objednací číslo | C4: Typ výrobku | D4: Prodejní cena bez DPH za 1 ks | E4: Balení výrobků (malé) | F4: Balení výrobků (velké) | G4: Hmotnost výrobku (g) | H4: EAN | I4: Celní kód
A5: 18. Značení | B5: G140096 | C5: Pásek RSA 12x5 (2,5A/2,5 A P3) - dělený bez popisu (10ks štítků na pásku) | D5: 7.4 | E5: 1 ks pásku v PE sáčku | F5: 10 ks pásků v PE sáčku | G5: 100 cm = 30 g | H5: 8595155023162 | I5: 85389099
A6: 18. Značení | B6: G140009 | C6: Pásek RSA 12x6 (RS 4) - dělený bez popisu (10ks štítků na pásku) | D6: 8 | E6: 1 ks pásku v PE sáčku | F6: 10 ks pásků v PE sáčku | G6: 100 cm = 30 g | H6: 8595155009180 | I6: 85389099
A7: 18. Značení | B7: G140026 | C7: Pásek RSA 12x6,6 (RSA 4A) - dělený bez popisu (10ks štítků na pásku) | D7: 8 | E7: 1 ks pásku v PE sáčku | F7: 10 ks pásků v PE sáčku | G7: 100 cm = 30 g | H7: 8595155022462 | I7: 85389099
A8: 18. Značení | B8: G140097 | C8: Pásek RSA 12x7 (RSA PE 2,5A) - dělený bez popisu (10ks štítků na pásku) - | D8: 8 | E8: 1 ks pásku v PE sáčku | F8: 10 ks pásků v PE sáčku | G8: 100 cm = 30 g | H8: 8595155023209 | I8: 85389099
A9: 18. Značení | B9: G140002 | C9: Pásek RSA 12x7 (RS PE 4) - dělený bez popisu (10ks štítků na pásku) | D9: 8 | E9: 1 ks pásku v PE sáčku | F9: 10 ks pásků v PE sáčku | G9: 100 cm = 30 g | H9: 8595155009173 | I9: 85389099
A10: 18. Značení | B10: G140030 | C10: Pásek RSA 12x7,5 (RSA PE 4A) - dělený bez popisu (10ks štítků na pásku) | D10: 8 | E10: 1 ks pásku v PE sáčku | F10: 10 ks pásků v PE sáčku | G10: 100 cm = 30 g | H10: 8595155023018 | I10: 85389099
A11: 18. Značení | B11: G140027 | C11: Pásek RSA 12x7,7 (RSA 4AV) - dělený bez popisu (10ks štítků na pásku) | D11: 8 | E11: 1 ks pásku v PE sáčku | F11: 10 ks pásků v PE sáčku | G11: 100 cm = 30 g | H11: 8595155022455 | I11: 85389099
A12: 18. Značení | B12: G140032 | C12: Pásek RSA 12x8 (6A/PE 6A/RSP 4 ramínko) - dělený bez popisu (10ks štítků na pásku) | D12: 9.25 | E12: 1 ks pásku v PE sáčku | F12: 10 ks pásků v PE sáčku | G12: 100 cm = 30 g | H12: 8595155023025 | I12: 85389099
A13: 18. Značení | B13: G140040 | C13: Pásek RSA 12x9 (RSP 4 bok/RSP A 4 ramínko/RSA 10) - dělený bez popisu (10ks štítků na pásku) | D13: 9.25 | E13: 1 ks pásku v PE sáčku | F13: 10 ks pásků v PE sáčku | G13: 100 cm = 30 g | H13: 8595155023032 | I13: 85389099
A14: 18. Značení | B14: G140042 | C14: Pásek RSA 12x10 (10A/PE 10A) - dělený bez popisu (5ks štítků na pásku) | D14: 5.6 | E14: 1 ks pásku v PE sáčku | F14: 10 ks pásků v PE sáčku | G14: 100 cm = 30 g | H14: 8595155023049 | I14: 85389099
A15: 18. Značení | B15: G140056 | C15: Pásek RSA 12x12 (16A/PE 16A) - dělený bez popisu (5ks štítků na pásku) | D15: 5.95 | E15: 1 ks pásku v PE sáčku | F15: 10 ks pásků v PE sáčku | G15: 100 cm = 30 g | H15: 8595155023100 | I15: 85389099
A16: 18. Značení | B16: G140066 | C16: Pásek RSA 12x16,5 (35A/PE 35A) - dělený bez popisu (5ks štítků na pásku) | D16: 6.55 | E16: 1 ks pásku v PE sáčku | F16: 10 ks pásků v PE sáčku | G16: 100 cm = 30 g | H16: 8595155022844 | I16: 85389099
A17: 18. Značení | B17: G140070 | C17: Pásek RSA 12x24 (70A/PEN 70A) - dělený bez popisu (5ks štítků na pásku) | D17: 7.2 | E17: 1 ks pásku v PE sáčku | F17: 10 ks pásků v PE sáčku | G17: 100 cm = 30 g | H17: 8595155023087 | I17: 85389099
A18: 18. Značení | B18: G270000 | C18: Pásek ETB 10,5x4,5 - bez popisu (10ks štítků na pásku) | D18: 7.4 | F18: - | G18: 100 cm = 30 g | H18: 8595155018496 | I18: 85389099
A19: 18. Značení | B19: G270009 | C19: Pásek ETB 10,5x4,5 - s popisem (10ks štítků na pásku) | D19: 14.15 | F19: - | G19: 100 cm = 30 g | H19: 8595155018502 | I19: 85389099
A20: 18. Značení | B20: G121009 | C20: Pásek RSA 12x30 (nosič štítků výsuvný pro RSA L-35A/B) bez popisu (1ks štítků na pásku) | D20: 2.65 | F20: - | G20: 100 cm = 30 g | H20: 8595155018526 | I20: 85389099
A21: 18. Značení | B21: G111009 | C21: Pásek RSA 12x30 (nosič štítků výsuvný pro RSA L-35A/B) s popisem (1ks štítků na pásku) | D21: 4.85 | F21: - | G21: 100 cm = 30 g | H21: 8595155018519 | I21: 85389099
A22: 18. Značení | B22: G130096 | C22: Pásek RSA 12x5 (2,5A/2,5 A P3) - dělený s popisem (10ks štítků na pásku) | D22: 14.15 | E22: 1 ks pásku v PE sáčku | F22: 10 ks pásků v PE sáčku | G22: 100 cm = 30 g | H22: 8595155023155 | I22: 85389099
A23: 18. Značení | B23: G130009 | C23: Pásek RSA 12x6 (RS 4) - dělený s popisem (10ks štítků na pásku) | D23: 14.75 | E23: 1 ks pásku v PE sáčku | F23: 10 ks pásků v PE sáčku | G23: 100 cm = 30 g | H23: 8595155009166 | I23: 85389099
A24: 18. Značení | B24: G130026 | C24: Pásek RSA 12x6,6 (RSA 4A) - dělený s popisem (10ks štítků na pásku) | D24: 14.75 | E24: 1 ks pásku v PE sáčku | F24: 10 ks pásků v PE sáčku | G24: 100 cm = 30 g | H24: 8595155022424 | I24: 85389099
A25: 18. Značení | B25: G132226 | C25: Pásek RSA 12x6,6 (RSA 4A) - dělený s popisem 0 - 9 (10ks štítků na pásku) | D25: 14.75 | E25: 1 ks pásku v PE sáčku | F25: 10 ks pásků v PE sáčku | G25: 100 cm = 30 g | H25: 8595155023063 | I25: 85389099
A26: 18. Značení | B26: G132326 | C26: Pásek RSA 12x6,6 (RSA 4A) - dělený s popisem 10 - 100 (10ks štítků na pásku) | D26: 14.75 | E26: 1 ks pásku v PE sáčku | F26: 10 ks pásků v PE sáčku | G26: 100 cm = 30 g | H26: 8595155023070 | I26: 85389099
A27: 18. Značení | B27: G130097 | C27: Pásek RSA 12x7 (RSA PE 2,5A) - dělený s popisem (10ks štítků na pásku) | D27: 14.75 | E27: 1 ks pásku v PE sáčku | F27: 10 ks pásků v PE sáčku | G27: 100 cm = 30 g | H27: 8595155023193 | I27: 85389099
A28: 18. Značení | B28: G130002 | C28: Pásek RSA 12x7 (RS PE 4) - dělený s popisem (10ks štítků na pásku) | D28: 14.75 | E28: 1 ks pásku v PE sáčku | F28: 10 ks pásků v PE sáčku | G28: 100 cm = 30 g | H28: 8595155009159 | I28: 85389099
A29: 18. Značení | B29: G130030 | C29: Pásek RSA 12x7,5 (RSA PE 4A) - dělený s popisem (10ks štítků na pásku) | D29: 14.75 | E29: 1 ks pásku v PE sáčku | F29: 10 ks pásků v PE sáčku | G29: 100 cm = 30 g | H29: 8595155024510 | I29: 85389099
A30: 18. Značení | B30: G130027 | C30: Pásek RSA 12x7,7 (RSA 4AV) - dělený s popisem (10ks štítků na pásku) | D30: 14.75 | E30: 1 ks pásku v PE sáčku | F30: 10 ks pásků v PE sáčku | G30: 100 cm = 30 g | H30: 8595155022448 | I30: 85389099
A31: 18. Značení | B31: G130032 | C31: Pásek RSA 12x8 (6A/PE 6A/RSP 4 ramínko) - dělený s popisem (10ks štítků na pásku) | D31: 15.35 | E31: 1 ks pásku v PE sáčku | F31: 10 ks pásků v PE sáčku | G31: 100 cm = 30 g | H31: 8595155024527 | I31: 85389099
A32: 18. Značení | B32: G130040 | C32: Pásek RSA 12x9 (RSP 4 bok/RSP A 4 ramínko/RSA 10) - dělený s popisem (10ks štítků na pásku) | D32: 15.35 | E32: 1 ks pásku v PE sáčku | F32: 10 ks pásků v PE sáčku | G32: 100 cm = 30 g | H32: 8595155024619 | I32: 85389099
A33: 18. Značení | B33: G130042 | C33: Pásek RSA 12x10 (10A/PE 10A) - dělený s popisem (5ks štítků na pásku) | D33: 8 | E33: 1 ks pásku v PE sáčku | F33: 10 ks pásků v PE sáčku | G33: 100 cm = 30 g | H33: 8595155024626 | I33: 85389099
A34: 18. Značení | B34: G130056 | C34: Pásek RSA 12x12 (16A/PE 16A) - dělený s popisem (5ks štítků na pásku) | D34: 8.4 | E34: 1 ks pásku v PE sáčku | F34: 10 ks pásků v PE sáčku | G34: 100 cm = 30 g | H34: 8595155022721 | I34: 85389099
A35: 18. Značení | B35: G130066 | C35: Pásek RSA 12x16,5 (35A/PE 35A) - dělený s popisem (5ks štítků na pásku) | D35: 8.65 | E35: 1 ks pásku v PE sáčku | F35: 10 ks pásků v PE sáčku | G35: 100 cm = 30 g | H35: 8595155022837 | I35: 85389099
A36: 18. Značení | B36: G130070 | C36: Pásek RSA 12x24 (70A/PEN 70A) - dělený s popisem (5ks štítků na pásku) | D36: 9.05 | E36: 1 ks pásku v PE sáčku | F36: 10 ks pásků v PE sáčku | G36: 100 cm = 30 g | H36: 8595155024916 | I36: 85389099
A37: 18. Značení | B37: G110096 | C37: Pásek RSA 12x5 (2,5A/2,5 A P3) - nedělený s popisem | D37: 1.5 | E37: dle objednávky | F37: - | G37: 100 cm = 30 g | H37: 8595155023179 | I37: 85389099
A38: 18. Značení | B38: G110009 | C38: Pásek RSA 12x6 (RS 4) - nedělený s popisem | D38: 1.55 | E38: dle objednávky | F38: - | G38: 100 cm = 30 g | H38: 8595155009128 | I38: 85389099
A39: 18. Značení | B39: G110026 | C39: Pásek RSA 12x6,6 (RSA 4A) - nedělený s popisem | D39: 1.55 | E39: dle objednávky | F39: - | G39: 100 cm = 30 g | H39: 8595155022431 | I39: 85389099
A40: 18. Značení | B40: G110097 | C40: Pásek RSA 12x7 (RSA PE 2,5A) - nedělený s popisem | D40: 1.55 | E40: dle objednávky | F40: - | G40: 100 cm = 30 g | H40: 8595155023216 | I40: 85389099
A41: 18. Značení | B41: G110002 | C41: Pásek RSA 12x7 (RS PE 4) - nedělený s popisem | D41: 1.55 | E41: dle objednávky | F41: - | G41: 100 cm = 30 g | H41: 8595155002310 | I41: 85389099
A42: 18. Značení | B42: G110030 | C42: Pásek RSA 12x7,5 (RSA PE 4A) - nedělený s popisem | D42: 1.55 | E42: dle objednávky | F42: - | G42: 100 cm = 30 g | H42: 8595155022516 | I42: 85389099
A43: 18. Značení | B43: G110032 | C43: Pásek RSA 12x8 (6A/PE 6A) - nedělený s popisem | D43: 1.6 | E43: dle objednávky | F43: - | G43: 100 cm = 30 g | H43: 8595155023117 | I43: 85389099
A44: 18. Značení | B44: G110042 | C44: Pásek RSA 12x10 (10A/PE 10A) - nedělený s popisem | D44: 1.65 | E44: dle objednávky | F44: - | G44: 100 cm = 30 g | H44: 8595155022622 | I44: 85389099
A45: 18. Značení | B45: G110056 | C45: Pásek RSA 12x12 (16A/PE 16A) - nedělený s popisem | D45: 1.7 | E45: dle objednávky | F45: - | G45: 100 cm = 30 g | H45: 8595155022752 | I45: 85389099
A46: 18. Značení | B46: G110066 | C46: Pásek RSA 12x16,5 (35A/PE 35A) - nedělený s popisem | D46: 1.8 | E46: dle objednávky | F46: - | G46: 100 cm = 30 g | H46: 8595155022820 | I46: 85389099
A47: 18. Značení | B47: G110070 | C47: Pásek RSA 12x24 (70A/PEN 70A) - nedělený s popisem | D47: 1.85 | E47: dle objednávky | F47: - | G47: 100 cm = 30 g | H47: 8595155022912 | I47: 85389099
A48: 18. Značení | B48: G120000 | C48: Pásek RSA 12x500 (RSA/RVA) 20ks - nedělený bez popisu | D48: 146.6 | E48: 1 balíček (20 ks) | F48: - | G48: 300 | H48: 8595155022011 | I48: 85389099
A49: 18. Značení | B49: G120001 | C49: Pásek RSA 12x500 (RSA/RVA) - nedělený bez popisu | D49: 7.95 | E49: dle objednávky | F49: - | G49: 15 | H49: 8595155022028 | I49: 85389099
A50: 18. Značení | B50: G0503000 | C50: Multikarta DB 10x4 - bez popisu (30ks štítků na kartě) | D50: 26.3 | E50: dle objednávky | F50: 16 ks v krabici | G50: 2 | H50: 8595155055262 | I50: 85389099
A51: 18. Značení | B51: G0505330 | C51: Multikarta DG 6x5 - bez popisu (40ks štítků na kartě) | D51: 42 | E51: dle objednávky | F51: 10 ks v krabici | G51: 7 | H51: 8595155055293 | I51: 85389099
A52: 18. Značení | B52: G0505310 | C52: Multikarta DG 10x5 - bez popisu (44ks štítků na kartě) | D52: 40.7 | E52: dle objednávky | F52: 10 ks v krabici | G52: 8 | H52: 8595155055279 | I52: 85389099
A53: 18. Značení | B53: G0505320 | C53: Multikarta DG 10x6 - bez popisu (36ks štítků na kartě) | D53: 38.05 | E53: dle objednávky | F53: 10 ks v krabici | G53: 8 | H53: 8595155055286 | I53: 85389099
A54: 18. Značení | B54: G0505410 | C54: Multikarta DG 10x8 - bez popisu (26ks štítků na kartě) | D54: 31.55 | E54: dle objednávky | F54: 10 ks v krabici | G54: 7 | H54: 8595155055309 | I54: 85389099
A55: 18. Značení | B55: G0505430 | C55: Multikarta DG 10x10 - bez popisu (20ks štítků na kartě) | D55: 26.3 | E55: dle objednávky | F55: 10 ks v krabici | G55: 7 | H55: 8595155055316 | I55: 85389099
A56: 18. Značení | B56: G0515330 | C56: Multikarta DG 6x5 - s popisem (40ks štítků na kartě) | D56: 59 | E56: dle objednávky | F56: - | G56: 7 | H56: 8595155055354 | I56: 85389099
A57: 18. Značení | B57: G0513000 | C57: Multikarta DB 10x4 - s popisem (30ks štítků na kartě) | D57: 59 | E57: dle objednávky | F57: - | G57: 2 | H57: 8595155055323 | I57: 85389099
A58: 18. Značení | B58: G0515310 | C58: Multikarta DG 10x5 - s popisem (44ks štítků na kartě) | D58: 57.7 | E58: dle objednávky | F58: - | G58: 8 | H58: 8595155055330 | I58: 85389099
A59: 18. Značení | B59: G0515320 | C59: Multikarta DG 10x6 - s popisem (36ks štítků na kartě) | D59: 53.85 | E59: dle objednávky | F59: - | G59: 8 | H59: 8595155055347 | I59: 85389099
A60: 18. Značení | B60: G0515410 | C60: Multikarta DG 10x8 - s popisem (26ks štítků na kartě) | D60: 44.6 | E60: dle objednávky | F60: - | G60: 7 | H60: 8595155055361 | I60: 85389099
A61: 18. Značení | B61: G0515430 | C61: Multikarta DG 10x10 - s popisem (20ks štítků na kartě) | D61: 60.05 | E61: dle objednávky | F61: - | G61: 7 | H61: 8595155055378 | I61: 85389099
A62: 18. Značení | B62: G240000 | C62: Multikarta EURO Z, W, Mini 5,8x4,6 - bez popisu (karta 50ks štítků) | D62: 62.5 | E62: dle objednávky | F62: 10 ks v krabici | G62: 2 | H62: 8595155025029 | I62: 85389099
A63: 18. Značení | B63: G240009 | C63: Multikarta EURO D, N 12x5,6 - bez popisu (karta 50ks štítků) | D63: 63.65 | E63: dle objednávky | F63: 10 ks v krabici | G63: 6 | H63: 8595155025043 | I63: 85389099
A64: 18. Značení | B64: G220000 | C64: Multikarta EURO Q 8,5x4,6 - bez popisu (karta 50ks štítků) | D64: 61.55 | E64: dle objednávky | F64: 10 ks v krabici | G64: 4 | H64: 8595155011091 | I64: 85389099
A65: 18. Značení | B65: G260000 | C65: Multikarta EURO T 12x4,6 - bez popisu (karta 20ks štítků) | D65: 25.55 | E65: dle objednávky | F65: 25 ks v krabici | G65: 2 | H65: 8595155011145 | I65: 85389099
A66: 18. Značení | B66: G230000 | C66: Multikarta EURO Z, W, Mini 5,8x4,6 - s popisem (karta 50ks štítků) | D66: 76.4 | E66: dle objednávky | F66: - | G66: 2 | H66: 8595155025012 | I66: 85389099
A67: 18. Značení | B67: G230009 | C67: Multikarta EURO D, N 12x5,6 - s popisem (karta 50ks štítků) | D67: 77.95 | E67: dle objednávky | F67: - | G67: 6 | H67: 8595155025036 | I67: 85389099
A68: 18. Značení | B68: G210000 | C68: Multikarta EURO Q 8,5x4,6 - s popisem (karta 50ks štítků) | D68: 71.1 | E68: dle objednávky | F68: - | G68: 4 | H68: 8595155011107 | I68: 85389099
A69: 18. Značení | B69: G250000 | C69: Multikarta EURO T 12x4,6 - s popisem (karta 20ks štítků) | D69: 31.3 | E69: dle objednávky | F69: - | G69: 2 | H69: 8595155011138 | I69: 85389099
A70: 18. Značení | B70: G312000 | C70: Multikarta BTF 5,2x8 - bez popisu (50ks štítků na kartě) | D70: 105.6 | E70: dle objednávky | F70: - | H70: 8595155025067 | I70: 85389099
A71: 18. Značení | B71: G311000 | C71: Multikarta BTF 5,2x8 - s popisem (50ks štítků na kartě) | D71: 105.6 | E71: dle objednávky | F71: - | H71: 8595155025050 | I71: 85389099
A72: 18. Značení | B72: J0806000 | C72: Termotiskárna Klecard | D72: 112785 | E72: dle objednávky | F72: - | G72: 15000 | H72: 8595155059024 | I72: 85389099
A73: 18. Značení | B73: G0806100 | C73: Ribbon černý | D73: 1668.25 | E73: dle objednávky | F73: - | H73: 8595155055743 | I73: 39269097
A74: 18. Značení | B74: G0806101 | C74: Ribbon červený | D74: 3241.2 | E74: dle objednávky | F74: - | H74: 8595155059031 | I74: 39269097
A75: 18. Značení | B75: G0806102 | C75: Ribbon modrý | D75: 3241.2 | E75: dle objednávky | F75: - | H75: 8595155059048 | I75: 39269097
A76: 18. Značení | B76: G0806010 | C76: Nosná deska Plate A | D76: 1858.95 | E76: dle objednávky | F76: - | H76: 8595155059055 | I76: 39269097
A77: 18. Značení | B77: G0806020 | C77: Nosná deska Plate B | D77: 1858.95 | E77: dle objednávky | F77: - | H77: 8595155059062 | I77: 39269097
A78: 18. Značení | B78: G0806030 | C78: Nosná deska Plate C | D78: 1858.95 | E78: dle objednávky | F78: - | H78: 8595155058461 | I78: 39269097
A79: 18. Značení | B79: G0800150 | C79: Multikarta D-NS 6x4,2 - bez popisu (84ks štítků na kartě) | D79: 59.65 | E79: dle objednávky | H79: 8595155055798 | I79: 85389099
A80: 18. Značení | B80: G0800450 | C80: Multikarta D-NS 6x5,2 - bez popisu (72ks štítků na kartě) | D80: 57.3 | E80: dle objednávky | F80: 10 ks v krabici | H80: 8595155065063 | I80: 85389099
A81: 18. Značení | B81: G0801750 | C81: Multikarta D-NS 10x5 - bez popisu (72ks štítků na kartě) | D81: 53 | E81: dle objednávky | F81: 12 ks v krabici | H81: 8595155055132 | I81: 85389099
A82: 18. Značení | B82: G0802250 | C82: Multikarta D-NS 10x6 - bez popisu (60ks štítků na kartě) | D82: 48.2 | E82: dle objednávky | F82: 12 ks v krabici | H82: 8595155055385 | I82: 85389099
A83: 18. Značení | B83: G0802750 | C83: Multikarta D-NS 10x8 - bez popisu (48ks štítků na kartě) | D83: 58.35 | E83: dle objednávky | H83: 8595155055392 | I83: 85389099
A84: 18. Značení | B84: G0803100 | C84: Multikarta D-NS 10x10 - bez popisu (36ks štítků na kartě) | D84: 54.5 | E84: dle objednávky | H84: 8595155055408 | I84: 85389099
A85: 18. Značení | B85: G0803450 | C85: Multikarta D-NS 10x12 - bez popisu (30ks štítků na kartě) | D85: 53.15 | E85: dle objednávky | H85: 8595155055736 | I85: 85389099
A86: 18. Značení | B86: G0808458 | C86: Multikarta KCSLF-W 11,2x100 - bez popisu (12ks štítků na kartě) | D86: 64.45 | E86: dle objednávky | F86: 20 ks v krabici | H86: 8595155055439 | I86: 85389099
A87: 18. Značení | B87: G0810150 | C87: Multikarta D-NS 6x4,2 - s popisem (84ks štítků na kartě) | D87: 59.65 | E87: dle objednávky | H87: 8595155055750 | I87: 85389099
A88: 18. Značení | B88: G0810450 | C88: Multikarta D-NS 6x5,2 - s popisem (72ks štítků na kartě) | D88: 57.3 | E88: dle objednávky | F88: 10 ks v krabici | H88: 8595155065070 | I88: 85389099
A89: 18. Značení | B89: G0811750 | C89: Multikarta D-NS 10x5 - s popisem (72ks štítků na kartě) | D89: 53 | E89: dle objednávky | F89: - | H89: 8595155055446 | I89: 85389099
A90: 18. Značení | B90: G0812250 | C90: Multikarta D-NS 10x6 - s popisem (60ks štítků na kartě) | D90: 48.2 | E90: dle objednávky | F90: - | H90: 8595155055415 | I90: 85389099
A91: 18. Značení | B91: G0812750 | C91: Multikarta D-NS 10x8 - s popisem (48ks štítků na kartě) | D91: 58.35 | E91: dle objednávky | H91: 8595155055767 | I91: 85389099
A92: 18. Značení | B92: G0813100 | C92: Multikarta D-NS 10x10 - s popisem (36ks štítků na kartě) | D92: 54.5 | E92: dle objednávky | H92: 8595155055774 | I92: 85389099
A93: 18. Značení | B93: G0813450 | C93: Multikarta D-NS 10x12 - s popisem (30ks štítků na kartě) | D93: 53.15 | E93: dle objednávky | H93: 8595155055781 | I93: 85389099
A94: 18. Značení | B94: G0818458 | C94: Multikarta KCSLF-W 11,2x100 - s popisem (12ks štítků na kartě) | D94: 64.45 | E94: dle objednávky | F94: - | H94: 8595155055422 | I94: 85389099
A95: 18. Značení | B95: G0814300 | C95: Multikarta pro vodiče KE1-NS 4x12 - bez popisu (40ks štítků na kartě) | D95: 52.35 | E95: dle objednávky | F95: 6 ks v krabici | H95: 8595155055804 | I95: 85389099
A96: 18. Značení | B96: G0814500 | C96: Multikarta pro vodiče KE2-NS 4x12 - bez popisu (36ks štítků na kartě) | D96: 53.65 | E96: dle objednávky | F96: 5 ks v krabici | H96: 8595155055811 | I96: 85389099
A97: 18. Značení | B97: G0814700 | C97: Multikarta pro vodiče KE3-NS 4x12 - bez popisu (32ks štítků na kartě) | D97: 69.15 | E97: dle objednávky | F97: 4 ks v krabici | H97: 8595155055828 | I97: 85389099
A98: 18. Značení | B98: G0814900 | C98: Multikarta pro vodiče KE1-NS 4x18 - bez popisu (40ks štítků na kartě) | D98: 58.3 | E98: dle objednávky | F98: 6 ks v krabici | H98: 8595155055835 | I98: 85389099
A99: 18. Značení | B99: G0815100 | C99: Multikarta pro vodiče KE2-NS 4x18 - bez popisu (36ks štítků na kartě) | D99: 58.15 | E99: dle objednávky | F99: 5 ks v krabici | H99: 8595155055842 | I99: 85389099
A100: 18. Značení | B100: G0815300 | C100: Multikarta pro vodiče KE3-NS 4x18 - bez popisu (32ks štítků na kartě) | D100: 74.15 | E100: dle objednávky | F100: 4 ks v krabici | H100: 8595155055859 | I100: 85389099
A101: 18. Značení | B101: G0854300 | C101: Multikarta pro vodiče KE1-NS 4x12 - s popisem (40ks štítků na kartě) | D101: 52.35 | E101: dle objednávky | F101: - | H101: 8595155055866 | I101: 85389099
A102: 18. Značení | B102: G0854500 | C102: Multikarta pro vodiče KE2-NS 4x12 - s popisem (36ks štítků na kartě) | D102: 53.65 | E102: dle objednávky | F102: - | H102: 8595155055873 | I102: 85389099
A103: 18. Značení | B103: G0854700 | C103: Multikarta pro vodiče KE3-NS 4x12 - s popisem (32ks štítků na kartě) | D103: 69.15 | E103: dle objednávky | F103: - | H103: 8595155055880 | I103: 85389099
A104: 18. Značení | B104: G0854900 | C104: Multikarta pro vodiče KE1-NS 4x18 - s popisem (40ks štítků na kartě) | D104: 58.3 | E104: dle objednávky | F104: - | H104: 8595155055897 | I104: 85389099
A105: 18. Značení | B105: G0855100 | C105: Multikarta pro vodiče KE2-NS 4x18 - s popisem (36ks štítků na kartě) | D105: 58.15 | E105: dle objednávky | F105: - | H105: 8595155055903 | I105: 85389099
A106: 18. Značení | B106: G0855300 | C106: Multikarta pro vodiče KE3-NS 4x18 - s popisem (32ks štítků na kartě) | D106: 74.15 | E106: dle objednávky | F106: - | H106: 8595155055910 | I106: 85389099
A107: 18. Značení | B107: G0808951 | C107: Štítek zásuvný (pro dutinku) KCPM-W 4x10 bílý - bez popisu (112ks štítků na kartě) | D107: 146.55 | E107: dle objednávky | F107: 20 ks v krabici | H107: 8595155055927 | I107: 39269097
A108: 18. Značení | B108: G0808952 | C108: Štítek zásuvný (pro dutinku) KCPM-W 4x15 bílý - bez popisu (80ks štítků na kartě) | D108: 111.25 | E108: dle objednávky | F108: 20 ks v krabici | H108: 8595155055934 | I108: 39269097
A109: 18. Značení | B109: G0808953 | C109: Štítek zásuvný (pro dutinku) KCPM-W 4x23 bílý - bez popisu (64ks štítků na kartě) | D109: 111.35 | E109: dle objednávky | F109: 21 ks v krabici | H109: 8595155058447 | I109: 39269097
A110: 18. Značení | B110: G0808954 | C110: Štítek zásuvný (pro dutinku) KCPM-W 4x30 bílý - bez popisu (48ks štítků na kartě) | D110: 111.95 | E110: dle objednávky | F110: 20 ks v krabici | H110: 8595155055958 | I110: 39269097
A111: 18. Značení | B111: G0809001 | C111: Štítek zásuvný (pro dutinku) KCPM-Y 4x10 žlutý - bez popisu (112ks štítků na kartě) | D111: 146.55 | E111: dle objednávky | F111: 20 ks v krabici | H111: 8595155055965 | I111: 39269097
A112: 18. Značení | B112: G0809002 | C112: Štítek zásuvný (pro dutinku) KCPM-Y 4x15 žlutý - bez popisu (80ks štítků na kartě) | D112: 111.25 | E112: dle objednávky | F112: 20 ks v krabici | H112: 8595155055972 | I112: 39269097
A113: 18. Značení | B113: G0809003 | C113: Štítek zásuvný (pro dutinku) KCPM-Y 4x23 žlutý - bez popisu (64ks štítků na kartě) | D113: 111.35 | E113: dle objednávky | F113: 21 ks v krabici | H113: 8595155058454 | I113: 39269097
A114: 18. Značení | B114: G0809004 | C114: Štítek zásuvný (pro dutinku) KCPM-Y 4x30 žlutý - bez popisu (48ks štítků na kartě) | D114: 111.95 | E114: dle objednávky | F114: 20 ks v krabici | H114: 8595155055996 | I114: 39269097
A115: 18. Značení | B115: G0858951 | C115: Štítek zásuvný (pro dutinku) KCPM-W 4x10 bílý - s popisem (112ks štítků na kartě) | D115: 146.55 | E115: dle objednávky | F115: - | H115: 8595155056009 | I115: 39269097
A116: 18. Značení | B116: G0858952 | C116: Štítek zásuvný (pro dutinku) KCPM-W 4x15 bílý - s popisem (80ks štítků na kartě) | D116: 111.25 | E116: dle objednávky | F116: - | H116: 8595155056016 | I116: 39269097
A117: 18. Značení | B117: G0858954 | C117: Štítek zásuvný (pro dutinku) KCPM-W 4x30 bílý - s popisem (48ks štítků na kartě) | D117: 111.95 | E117: dle objednávky | F117: - | H117: 8595155056030 | I117: 39269097
A118: 18. Značení | B118: G0859001 | C118: Štítek zásuvný (pro dutinku) KCPM-Y 4x10 žlutý - s popisem (112ks štítků na kartě) | D118: 146.55 | E118: dle objednávky | F118: - | H118: 8595155056047 | I118: 39269097
A119: 18. Značení | B119: G0859002 | C119: Štítek zásuvný (pro dutinku) KCPM-Y 4x15 žlutý - s popisem (80ks štítků na kartě) | D119: 111.25 | E119: dle objednávky | F119: - | H119: 8595155056054 | I119: 39269097
A120: 18. Značení | B120: G0859004 | C120: Štítek zásuvný (pro dutinku) KCPM-Y 4x30 žlutý - s popisem (48ks štítků na kartě) | D120: 111.95 | E120: dle objednávky | F120: - | H120: 8595155056078 | I120: 39269097
A121: 18. Značení | B121: G0809100 | C121: Dutinka KCKKS 10 pro vodič 0,5÷1,5 | D121: 0.75 | E121: dle objednávky | F121: 500 ks v PE sáčku | H121: 8595155056085 | I121: 39269097
A122: 18. Značení | B122: G0809110 | C122: Dutinka KCKKS 15 pro vodič 0,5÷1,5 | D122: 1 | E122: dle objednávky | F122: 500 ks v PE sáčku | H122: 8595155056092 | I122: 39269097
A123: 18. Značení | B123: G0809120 | C123: Dutinka KCKKS 18 pro vodič 0,5÷1,5 | D123: 1.2 | E123: dle objednávky | F123: 500 ks v PE sáčku | H123: 8595155056108 | I123: 39269097
A124: 18. Značení | B124: G0809130 | C124: Dutinka KCKKS 23 pro vodič 0,5÷1,5 | D124: 1.25 | E124: dle objednávky | F124: 500 ks v PE sáčku | H124: 8595155056115 | I124: 39269097
A125: 18. Značení | B125: G0809140 | C125: Dutinka KCKKS 30 pro vodič 0,5÷1,5 | D125: 1.85 | E125: dle objednávky | F125: 500 ks v PE sáčku | H125: 8595155056122 | I125: 39269097
A126: 18. Značení | B126: G0809150 | C126: Dutinka KCKKS 10 pro vodič 1,5÷2,5 | D126: 0.75 | E126: dle objednávky | F126: 500 ks v PE sáčku | H126: 8595155056139 | I126: 39269097
A127: 18. Značení | B127: G0809160 | C127: Dutinka KCKKS 15 pro vodič 1,5÷2,5 | D127: 1.1 | E127: dle objednávky | F127: 500 ks v PE sáčku | H127: 8595155056146 | I127: 39269097
A128: 18. Značení | B128: G0809170 | C128: Dutinka KCKKS 18 pro vodič 1,5÷2,5 | D128: 1.25 | E128: dle objednávky | F128: 500 ks v PE sáčku | H128: 8595155056153 | I128: 39269097
A129: 18. Značení | B129: G0809180 | C129: Dutinka KCKKS 23 pro vodič 1,5÷2,5 | D129: 1.4 | E129: dle objednávky | F129: 500 ks v PE sáčku | H129: 8595155056160 | I129: 39269097
A130: 18. Značení | B130: G0809190 | C130: Dutinka KCKKS 30 pro vodič 1,5÷2,5 | D130: 2.05 | E130: dle objednávky | F130: 500 ks v PE sáčku | H130: 8595155056177 | I130: 39269097
A131: 18. Značení | B131: G0809200 | C131: Dutinka KCKKS 10 pro vodič 2,5÷4 | D131: 0.85 | E131: dle objednávky | F131: 500 ks v PE sáčku | H131: 8595155056184 | I131: 39269097
A132: 18. Značení | B132: G0809210 | C132: Dutinka KCKKS 15 pro vodič 2,5÷4 | D132: 1.15 | E132: dle objednávky | F132: 500 ks v PE sáčku | H132: 8595155056191 | I132: 39269097
A133: 18. Značení | B133: G0809220 | C133: Dutinka KCKKS 18 pro vodič 2,5÷4 | D133: 1.4 | E133: dle objednávky | F133: 500 ks v PE sáčku | H133: 8595155056207 | I133: 39269097
A134: 18. Značení | B134: G0809230 | C134: Dutinka KCKKS 23 pro vodič 2,5÷4 | D134: 1.55 | E134: dle objednávky | F134: 500 ks v PE sáčku | H134: 8595155056214 | I134: 39269097
A135: 18. Značení | B135: G0809240 | C135: Dutinka KCKKS 30 pro vodič 2,5÷4 | D135: 2.2 | E135: dle objednávky | F135: 500 ks v PE sáčku | H135: 8595155056221 | I135: 39269097
A136: 18. Značení | B136: G0809250 | C136: Dutinka KCKKS 10 pro vodič 6÷10 | D136: 0.9 | E136: dle objednávky | F136: 500 ks v PE sáčku | H136: 8595155056238 | I136: 39269097
A137: 18. Značení | B137: G0809260 | C137: Dutinka KCKKS 15 pro vodič 6÷10 | D137: 1.25 | E137: dle objednávky | F137: 500 ks v PE sáčku | H137: 8595155058034 | I137: 39269097
A138: 18. Značení | B138: G0809270 | C138: Dutinka KCKKS 18 pro vodič 6÷10 | D138: 1.6 | E138: dle objednávky | F138: 500 ks v PE sáčku | H138: 8595155058041 | I138: 39269097
A139: 18. Značení | B139: G0809280 | C139: Dutinka KCKKS 23 pro vodič 6÷10 | D139: 1.8 | E139: dle objednávky | F139: 500 ks v PE sáčku | H139: 8595155058058 | I139: 39269097
A140: 18. Značení | B140: G0809290 | C140: Dutinka KCKKS 30 pro vodič 6÷10 | D140: 2.45 | E140: dle objednávky | F140: 500 ks v PE sáčku | H140: 8595155058065 | I140: 39269097
A141: 18. Značení | B141: G0809300 | C141: Dutinka KCKKS 10 pro vodič 16÷25 | D141: 1.35 | E141: dle objednávky | F141: 500 ks v PE sáčku | H141: 8595155058072 | I141: 39269097
A142: 18. Značení | B142: G0809310 | C142: Dutinka KCKKS 15 pro vodič 16÷25 | D142: 1.85 | E142: dle objednávky | F142: 500 ks v PE sáčku | H142: 8595155058089 | I142: 39269097
A143: 18. Značení | B143: G0809320 | C143: Dutinka KCKKS 18 pro vodič 16÷25 | D143: 2.65 | E143: dle objednávky | F143: 500 ks v PE sáčku | H143: 8595155058096 | I143: 39269097
A144: 18. Značení | B144: G0809330 | C144: Dutinka KCKKS 23 pro vodič 16÷25 | D144: 3.35 | E144: dle objednávky | F144: 500 ks v PE sáčku | H144: 8595155058379 | I144: 39269097
A145: 18. Značení | B145: G0809340 | C145: Dutinka KCKKS 30 pro vodič 16÷25 | D145: 3.85 | E145: dle objednávky | F145: 500 ks v PE sáčku | H145: 8595155058386 | I145: 39269097
A146: 18. Značení | B146: G0808851 | C146: Štítek lepicí na kabel KCCM-W 33,75x13 bílý - bez popisu (32ks štítků na kartě) | D146: 174.5 | E146: dle objednávky | F146: 20 ks v krabici | H146: 8595155056245 | I146: 39269097
A147: 18. Značení | B147: G0808852 | C147: Štítek lepicí na kabel KCCM-W 67,5x25 bílý - bez popisu (8ks štítků na kartě) | D147: 97.7 | E147: dle objednávky | F147: 20 ks v krabici | H147: 8595155056252 | I147: 39269097
A148: 18. Značení | B148: G0808853 | C148: Štítek lepicí na kabel KCCM-W 135x25 bílý - bez popisu (4ks štítků na kartě) | D148: 97.7 | E148: dle objednávky | F148: 20 ks v krabici | H148: 8595155056269 | I148: 39269097
A149: 18. Značení | B149: G0808901 | C149: Štítek lepicí na kabel KCCM-Y 33,75x13 žlutý - bez popisu (32ks štítků na kartě) | D149: 174.5 | E149: dle objednávky | F149: 20 ks v krabici | H149: 8595155056276 | I149: 39269097
A150: 18. Značení | B150: G0808902 | C150: Štítek lepicí na kabel KCCM-Y 67,5x25 žlutý - bez popisu (8ks štítků na kartě) | D150: 97.7 | E150: dle objednávky | F150: 20 ks v krabici | H150: 8595155056283 | I150: 39269097
A151: 18. Značení | B151: G0808903 | C151: Štítek lepicí na kabel KCCM-Y 135x25 žlutý - bez popisu (4ks štítků na kartě) | D151: 97.7 | E151: dle objednávky | F151: 20 ks v krabici | H151: 8595155056290 | I151: 39269097
A152: 18. Značení | B152: G0858851 | C152: Štítek lepicí na kabel KCCM-W 33,75x13 bílý - s popisem (32ks štítků na kartě) | D152: 174.5 | E152: dle objednávky | F152: - | H152: 8595155056306 | I152: 39269097
A153: 18. Značení | B153: G0858852 | C153: Štítek lepicí na kabel KCCM-W 67,5x25 bílý - s popisem (8ks štítků na kartě) | D153: 97.7 | E153: dle objednávky | F153: - | H153: 8595155056313 | I153: 39269097
A154: 18. Značení | B154: G0858853 | C154: Štítek lepicí na kabel KCCM-W 135x25 bílý - s popisem (4ks štítků na kartě) | D154: 97.7 | E154: dle objednávky | F154: - | H154: 8595155056320 | I154: 39269097
A155: 18. Značení | B155: G0858901 | C155: Štítek lepicí na kabel KCCM-Y 33,75x13 žlutý - s popisem (32ks štítků na kartě) | D155: 174.5 | E155: dle objednávky | F155: - | H155: 8595155056337 | I155: 39269097
A156: 18. Značení | B156: G0858902 | C156: Štítek lepicí na kabel KCCM-Y 67,5x25 žlutý - s popisem (8ks štítků na kartě) | D156: 97.7 | E156: dle objednávky | F156: - | H156: 8595155056344 | I156: 39269097
A157: 18. Značení | B157: G0858903 | C157: Štítek lepicí na kabel KCCM-Y 135x25 žlutý - s popisem (4ks štítků na kartě) | D157: 97.7 | E157: dle objednávky | F157: - | H157: 8595155056351 | I157: 39269097
A158: 18. Značení | B158: G0808551 | C158: Štítek pevný nelepicí KCIPR-W 15x27 bílý - bez popisu (24ks štítků na kartě) | D158: 84.75 | E158: dle objednávky | F158: 20 ks v krabici | H158: 8595155056368 | I158: 39269097
A159: 18. Značení | B159: G0808552 | C159: Štítek pevný nelepicí KCIPR-W 18x27 bílý - bez popisu (21ks štítků na kartě) | D159: 107.4 | E159: dle objednávky | F159: 20 ks v krabici | H159: 8595155056375 | I159: 39269097
A160: 18. Značení | B160: G0808553 | C160: Štítek pevný nelepicí KCIPR-W 27x27 bílý - bez popisu (15ks štítků na kartě) | D160: 104.35 | E160: dle objednávky | F160: 20 ks v krabici | H160: 8595155056382 | I160: 39269097
A161: 18. Značení | B161: G0808554 | C161: Štítek pevný nelepicí KCIPR-W 15x50 bílý - bez popisu (16ks štítků na kartě) | D161: 121.2 | E161: dle objednávky | F161: 20 ks v krabici | H161: 8595155056399 | I161: 39269097
A162: 18. Značení | B162: G0808555 | C162: Štítek pevný nelepicí KCIPR-W 15x67 bílý - bez popisu (8ks štítků na kartě) | D162: 106.4 | E162: dle objednávky | F162: 20 ks v krabici | H162: 8595155056405 | I162: 39269097
A163: 18. Značení | B163: G0808601 | C163: Štítek pevný nelepicí KCIPR-Y 15x27 žlutý - bez popisu (24ks štítků na kartě) | D163: 84.75 | E163: dle objednávky | F163: 20 ks v krabici | H163: 8595155056412 | I163: 39269097
A164: 18. Značení | B164: G0808602 | C164: Štítek pevný nelepicí KCIPR-Y 18x27 žlutý - bez popisu (21ks štítků na kartě) | D164: 107.4 | E164: dle objednávky | F164: 20 ks v krabici | H164: 8595155056429 | I164: 39269097
A165: 18. Značení | B165: G0808603 | C165: Štítek pevný nelepicí KCIPR-Y 27x27 žlutý - bez popisu (15ks štítků na kartě) | D165: 104.35 | E165: dle objednávky | F165: 20 ks v krabici | H165: 8595155056436 | I165: 39269097
A166: 18. Značení | B166: G0808604 | C166: Štítek pevný nelepicí KCIPR-Y 15x50 žlutý - bez popisu (16ks štítků na kartě) | D166: 121.2 | E166: dle objednávky | F166: 20 ks v krabici | H166: 8595155056443 | I166: 39269097
A167: 18. Značení | B167: G0808605 | C167: Štítek pevný nelepicí KCIPR-Y 15x67 žlutý - bez popisu (8ks štítků na kartě) | D167: 106.4 | E167: dle objednávky | F167: 20 ks v krabici | H167: 8595155056450 | I167: 39269097
A168: 18. Značení | B168: G0808651 | C168: Štítek pevný nelepicí KCIPR-S 15x27 stříbrný - bez popisu (24ks štítků na kartě) | D168: 84.75 | E168: dle objednávky | F168: 20 ks v krabici | H168: 8595155056467 | I168: 39269097
A169: 18. Značení | B169: G0808652 | C169: Štítek pevný nelepicí KCIPR-S 18x27 stříbrný - bez popisu (21ks štítků na kartě) | D169: 107.4 | E169: dle objednávky | F169: 20 ks v krabici | H169: 8595155056481 | I169: 39269097
A170: 18. Značení | B170: G0808653 | C170: Štítek pevný nelepicí KCIPR-S 27x27 stříbrný - bez popisu (15ks štítků na kartě) | D170: 104.35 | E170: dle objednávky | F170: 20 ks v krabici | H170: 8595155056498 | I170: 39269097
A171: 18. Značení | B171: G0808654 | C171: Štítek pevný nelepicí KCIPR-S 15x50 stříbrný - bez popisu (16ks štítků na kartě) | D171: 121.2 | E171: dle objednávky | F171: 20 ks v krabici | H171: 8595155056504 | I171: 39269097
A172: 18. Značení | B172: G0808655 | C172: Štítek pevný nelepicí KCIPR-S 15x67 stříbrný - bez popisu (8ks štítků na kartě) | D172: 106.4 | E172: dle objednávky | F172: 20 ks v krabici | H172: 8595155056511 | I172: 39269097
A173: 18. Značení | B173: G0858551 | C173: Štítek pevný nelepicí KCIPR-W 15x27 bílý - s popisem (24ks štítků na kartě) | D173: 84.75 | E173: dle objednávky | F173: - | H173: 8595155056528 | I173: 39269097
A174: 18. Značení | B174: G0858552 | C174: Štítek pevný nelepicí KCIPR-W 18x27 bílý - s popisem (21ks štítků na kartě) | D174: 107.4 | E174: dle objednávky | F174: - | H174: 8595155056535 | I174: 39269097
A175: 18. Značení | B175: G0858553 | C175: Štítek pevný nelepicí KCIPR-W 27x27 bílý - s popisem (15ks štítků na kartě) | D175: 104.35 | E175: dle objednávky | F175: - | H175: 8595155056542 | I175: 39269097
A176: 18. Značení | B176: G0858554 | C176: Štítek pevný nelepicí KCIPR-W 15x50 bílý - s popisem (16ks štítků na kartě) | D176: 121.2 | E176: dle objednávky | F176: - | H176: 8595155056559 | I176: 39269097
A177: 18. Značení | B177: G0858555 | C177: Štítek pevný nelepicí KCIPR-W 15x67 bílý - s popisem (8ks štítků na kartě) | D177: 106.4 | E177: dle objednávky | F177: - | H177: 8595155056566 | I177: 39269097
A178: 18. Značení | B178: G0858601 | C178: Štítek pevný nelepicí KCIPR-Y 15x27 žlutý - s popisem (24ks štítků na kartě) | D178: 84.75 | E178: dle objednávky | F178: - | H178: 8595155056573 | I178: 39269097
A179: 18. Značení | B179: G0858602 | C179: Štítek pevný nelepicí KCIPR-Y 18x27 žlutý - s popisem (21ks štítků na kartě) | D179: 107.4 | E179: dle objednávky | F179: - | H179: 8595155056580 | I179: 39269097
A180: 18. Značení | B180: G0858603 | C180: Štítek pevný nelepicí KCIPR-Y 27x27 žlutý - s popisem (15ks štítků na kartě) | D180: 104.35 | E180: dle objednávky | F180: - | H180: 8595155056597 | I180: 39269097
A181: 18. Značení | B181: G0858604 | C181: Štítek pevný nelepicí KCIPR-Y 15x50 žlutý - s popisem (16ks štítků na kartě) | D181: 121.2 | E181: dle objednávky | F181: - | H181: 8595155056603 | I181: 39269097
A182: 18. Značení | B182: G0858605 | C182: Štítek pevný nelepicí KCIPR-Y 15x67 žlutý - s popisem (8ks štítků na kartě) | D182: 106.4 | E182: dle objednávky | F182: - | H182: 8595155056610 | I182: 39269097
A183: 18. Značení | B183: G0858651 | C183: Štítek pevný nelepicí KCIPR-S 15x27 stříbrný - s popisem (24ks štítků na kartě) | D183: 84.75 | E183: dle objednávky | F183: - | H183: 8595155056627 | I183: 39269097
A184: 18. Značení | B184: G0858652 | C184: Štítek pevný nelepicí KCIPR-S 18x27 stříbrný - s popisem (21ks štítků na kartě) | D184: 107.4 | E184: dle objednávky | F184: - | H184: 8595155056634 | I184: 39269097
A185: 18. Značení | B185: G0858653 | C185: Štítek pevný nelepicí KCIPR-S 27x27 stříbrný - s popisem (15ks štítků na kartě) | D185: 104.35 | E185: dle objednávky | F185: - | H185: 8595155056641 | I185: 39269097
A186: 18. Značení | B186: G0858654 | C186: Štítek pevný nelepicí KCIPR-S 15x50 stříbrný - s popisem (16ks štítků na kartě) | D186: 121.2 | E186: dle objednávky | F186: - | H186: 8595155056658 | I186: 39269097
A187: 18. Značení | B187: G0858655 | C187: Štítek pevný nelepicí KCIPR-S 15x67 stříbrný - s popisem (8ks štítků na kartě) | D187: 106.4 | E187: dle objednávky | F187: - | H187: 8595155056665 | I187: 39269097
A188: 18. Značení | B188: G0808701 | C188: Štítek pevný lepicí KCIPA-W 10x17 bílý - bez popisu (78ks štítků na kartě) | D188: 337.9 | E188: dle objednávky | F188: 20 ks v krabici | H188: 8595155056672 | I188: 39269097
A189: 18. Značení | B189: G0808702 | C189: Štítek pevný lepicí KCIPA-W 9x12 bílý - bez popisu (120ks štítků na kartě) | D189: 337.4 | E189: dle objednávky | F189: 20 ks v krabici | H189: 8595155056689 | I189: 39269097
A190: 18. Značení | B190: G0808703 | C190: Štítek pevný lepicí KCIPA-W 6x15 bílý - bez popisu (154ks štítků na kartě) | D190: 415.35 | E190: dle objednávky | F190: 20 ks v krabici | H190: 8595155056696 | I190: 39269097
A191: 18. Značení | B191: G0808704 | C191: Štítek pevný lepicí KCIPA-W 9x15 bílý - bez popisu (105ks štítků na kartě) | D191: 377.6 | E191: dle objednávky | F191: 20 ks v krabici | H191: 8595155056702 | I191: 39269097
A192: 18. Značení | B192: G0808705 | C192: Štítek pevný lepicí KCIPA-W 8x20 bílý - bez popisu (80ks štítků na kartě) | D192: 370.1 | E192: dle objednávky | F192: 20 ks v krabici | H192: 8595155056719 | I192: 39269097
A193: 18. Značení | B193: G0808706 | C193: Štítek pevný lepicí KCIPA-W 9x35 bílý - bez popisu (45ks štítků na kartě) | D193: 320 | E193: dle objednávky | F193: 20 ks v krabici | H193: 8595155056726 | I193: 39269097
A194: 18. Značení | B194: G0808707 | C194: Štítek pevný lepicí KCIPA-W 9x50 bílý - bez popisu (30ks štítků na kartě) | D194: 326.1 | E194: dle objednávky | F194: 20 ks v krabici | H194: 8595155056733 | I194: 39269097
A195: 18. Značení | B195: G0808708 | C195: Štítek pevný lepicí KCIPA-W 8x27 bílý - bez popisu (48ks štítků na kartě) | D195: 353.15 | E195: dle objednávky | F195: 20 ks v krabici | H195: 8595155056740 | I195: 39269097
A196: 18. Značení | B196: G0808709 | C196: Štítek pevný lepicí KCIPA-W 12,5x27 bílý - bez popisu (30ks štítků na kartě) | D196: 355.55 | E196: dle objednávky | F196: 20 ks v krabici | H196: 8595155056757 | I196: 39269097
A197: 18. Značení | B197: G0808710 | C197: Štítek pevný lepicí KCIPA-W 15x27 bílý - bez popisu (27ks štítků na kartě) | D197: 361.95 | E197: dle objednávky | F197: 20 ks v krabici | H197: 8595155056764 | I197: 39269097
A198: 18. Značení | B198: G0808711 | C198: Štítek pevný lepicí KCIPA-W 18x27 bílý - bez popisu (21ks štítků na kartě) | D198: 307.25 | E198: dle objednávky | F198: 20 ks v krabici | H198: 8595155056771 | I198: 39269097
A199: 18. Značení | B199: G0808712 | C199: Štítek pevný lepicí KCIPA-W 27x27 bílý - bez popisu (15ks štítků na kartě) | D199: 318.8 | E199: dle objednávky | F199: 20 ks v krabici | H199: 8595155056788 | I199: 39269097
A200: 18. Značení | B200: G0808713 | C200: Štítek pevný lepicí KCIPA-W 18x35 bílý - bez popisu (21ks štítků na kartě) | D200: 326.1 | E200: dle objednávky | F200: 20 ks v krabici | H200: 8595155056795 | I200: 39269097
A201: 18. Značení | B201: G0808714 | C201: Štítek pevný lepicí KCIPA-W 15x50 bílý - bez popisu (18ks štítků na kartě) | D201: 288.4 | E201: dle objednávky | F201: 20 ks v krabici | H201: 8595155056801 | I201: 39269097
... 1626 more rows

Sheet recyklacni_prispevek
A2: Kategorie | B2: ID položky | C2: Název | D2: Cena výrobku bez příspěvku | E2: Recyklační příspěvek | F2: Prodejní cena bez DPH za 1 ks
A4: 1. Šroubové řadové svorky | B4: A124214 | C4: svorka EURO Z2,5/P3 (LN) LED ČV 12-24 | D4: 143.888 | E4: 0.012 | F4: 143.9
A5: 1. Šroubové řadové svorky | B5: A125214 | C5: svorka EURO Z2,5/P3 (LN) LED ZEL 12-24 | D5: 143.888 | E5: 0.012 | F5: 143.9
A6: 1. Šroubové řadové svorky | B6: A126214 | C6: svorka EURO Z2,5/P3 (LP) LED ČV 12-24 | D6: 143.888 | E6: 0.012 | F6: 143.9
A7: 1. Šroubové řadové svorky | B7: A127214 | C7: svorka EURO Z2,5/P3 (LP) LED ZEL 12-24 | D7: 143.888 | E7: 0.012 | F7: 143.9
A8: 1. Šroubové řadové svorky | B8: A183210 | C8: svorka EURO D4/P1-2 (s indikací LED) | D8: 191.581 | E8: 0.019 | F8: 191.6
A9: 1. Šroubové řadové svorky | B9: A681210 | C9: svorka RSP 4-LED | D9: 110.283 | E9: 0.017 | F9: 110.3
A10: 1. Šroubové řadové svorky | B10: A691210 | C10: svorka RSP 4-LED/24-48V | D10: 110.284 | E10: 0.016 | F10: 110.3
A11: 1. Šroubové řadové svorky | B11: A921110 | C11: svorka EB 2,5 U2/5 LD 3A 12-24V ŠE patrová | D11: 116.189 | E11: 0.011 | F11: 116.2
A12: 1. Šroubové řadové svorky | B12: A921115 | C12: svorka EB 2,5 U2/5 LD 3B 12-24V ŠE patrová | D12: 116.189 | E12: 0.011 | F12: 116.2
A13: 1. Šroubové řadové svorky | B13: A921120 | C13: svorka EB 2,5 U2/5 LD 3 230V ŠE patrová | D13: 116.189 | E13: 0.011 | F13: 116.2
A14: 1. Šroubové řadové svorky | B14: A921125 | C14: svorka EB 2,5 U2/5 LD A 12-24V ŠE patrová | D14: 116.188 | E14: 0.012 | F14: 116.2
A15: 1. Šroubové řadové svorky | B15: A921130 | C15: svorka EB 2,5 U2/5 LD B 12-24V ŠE patrová | D15: 116.188 | E15: 0.012 | F15: 116.2
A16: 1. Šroubové řadové svorky | B16: A921135 | C16: svorka EB 2,5 U2/5 LD 230V ŠE patrová | D16: 116.188 | E16: 0.012 | F16: 116.2
A17: 1. Šroubové řadové svorky | B17: A921140 | C17: svorka EB 2,5 U2/5 D A ŠE patrová | D17: 101.138 | E17: 0.012 | F17: 101.15
A18: 1. Šroubové řadové svorky | B18: A921145 | C18: svorka EB 2,5 U2/5 D B ŠE patrová | D18: 101.138 | E18: 0.012 | F18: 101.15
A19: 1. Šroubové řadové svorky | B19: A921210 | C19: svorka EB 4 U2/5 LD 3A 12-24V ŠE patrová | D19: 123.386 | E19: 0.014 | F19: 123.4
A20: 1. Šroubové řadové svorky | B20: A921215 | C20: svorka EB 4 U2/5 LD 3B 12-24V ŠE patrová | D20: 123.386 | E20: 0.014 | F20: 123.4
A21: 1. Šroubové řadové svorky | B21: A921220 | C21: svorka EB 4 U2/5 LD 3 230V ŠE patrová | D21: 123.386 | E21: 0.014 | F21: 123.4
A22: 1. Šroubové řadové svorky | B22: A921225 | C22: svorka EB 4 U2/5 LD A 12-24V ŠE patrová | D22: 123.384 | E22: 0.016 | F22: 123.4
A23: 1. Šroubové řadové svorky | B23: A921230 | C23: svorka EB 4 U2/5 LD B 12-24V ŠE patrová | D23: 123.384 | E23: 0.016 | F23: 123.4
A24: 1. Šroubové řadové svorky | B24: A921235 | C24: svorka EB 4 U2/5 LD 230V ŠE patrová | D24: 123.384 | E24: 0.016 | F24: 123.4
A25: 1. Šroubové řadové svorky | B25: A921240 | C25: svorka EB 4 U2/5 D A ŠE patrová | D25: 110.535 | E25: 0.015 | F25: 110.55
A26: 1. Šroubové řadové svorky | B26: A921245 | C26: svorka EB 4 U2/5 D B ŠE patrová | D26: 110.535 | E26: 0.015 | F26: 110.55
A28: 2. Bezšroubové řadové svorky | B28: A0307259 | C28: svorka push-in PYK 4 SLD/24V pojistková | D28: 117.731 | E28: 0.019 | F28: 117.75
A29: 2. Bezšroubové řadové svorky | B29: A0307269 | C29: svorka push-in PYK 4 SLD/220V pojistková | D29: 117.731 | E29: 0.019 | F29: 117.75
A30: 2. Bezšroubové řadové svorky | B30: A0307349 | C30: svorka push-in PYK 2,5-2 FLD/24V patrová | D30: 95.838 | E30: 0.012 | F30: 95.85
A31: 2. Bezšroubové řadové svorky | B31: A0307359 | C31: svorka push-in PYK 2,5-2 FLD/220V patrová | D31: 95.838 | E31: 0.012 | F31: 95.85
A32: 2. Bezšroubové řadové svorky | B32: A0307369 | C32: svorka push-in PYK 2,5 - 2 FD A patrová | D32: 92.839 | E32: 0.011 | F32: 92.85
A33: 2. Bezšroubové řadové svorky | B33: A0307379 | C33: svorka push-in PYK 2,5 - 2 FD B patrová | D33: 92.838 | E33: 0.012 | F33: 92.85
A34: 2. Bezšroubové řadové svorky | B34: A0307419 | C34: svorka push-in PYK 3 SLD (NPN) senzorová | D34: 111.79 | E34: 0.01 | F34: 111.8
A35: 2. Bezšroubové řadové svorky | B35: A0307429 | C35: svorka push-in PYK 3 SLD (PNP) senzorová | D35: 111.79 | E35: 0.01 | F35: 111.8
A37: 7. Stožárové výzbroje | B37: H115120 | C37: SV 6.16.5p, Dehn DCOR L 2P 275 | D37: 2298.727 | E37: 0.073 | F37: 2298.8
A38: 7. Stožárové výzbroje | B38: H125120 | C38: SV 9.16.5p, Dehn DCOR L 2P 275 | D38: 2443.377 | E38: 0.073 | F38: 2443.45
A39: 7. Stožárové výzbroje | B39: H413110 | C39: SV - D - 6.16.4 | D39: 633.535 | E39: 0.065 | F39: 633.6
A40: 7. Stožárové výzbroje | B40: H413120 | C40: SV - D - 6.16.5 | D40: 673.035 | E40: 0.065 | F40: 673.1
A41: 7. Stožárové výzbroje | B41: H415110 | C41: SV - A - 6.16.4p, Dehn DCOR L 2P 275 | D41: 2359.277 | E41: 0.073 | F41: 2359.35
A42: 7. Stožárové výzbroje | B42: H415120 | C42: SV - A - 6.16.5p, Dehn DCOR L 2P 275 | D42: 2390.427 | E42: 0.073 | F42: 2390.5
A43: 7. Stožárové výzbroje | B43: H423110 | C43: SV - D - 9.16.4 | D43: 734.135 | E43: 0.065 | F43: 734.2
A44: 7. Stožárové výzbroje | B44: H423120 | C44: SV - D - 9.16.5 | D44: 810.635 | E44: 0.065 | F44: 810.7
A45: 7. Stožárové výzbroje | B45: H425110 | C45: SV - A - 9.16.4p, Dehn DCOR L 2P 275 | D45: 2459.877 | E45: 0.073 | F45: 2459.95
A46: 7. Stožárové výzbroje | B46: H425120 | C46: SV - A - 9.16.5p, Dehn DCOR L 2P 275 | D46: 2546.727 | E46: 0.073 | F46: 2546.8
A47: 7. Stožárové výzbroje | B47: H611100 | C47: SV 6.16.5p,Saltek SP-T2+3-320/Y-CLT | D47: 2298.74 | E47: 0.06 | F47: 2298.8
A48: 7. Stožárové výzbroje | B48: H611102 | C48: SV 9.16.5p,Saltek SP-T2+3-320/Y-CLT | D48: 2443.39 | E48: 0.06 | F48: 2443.45
A49: 7. Stožárové výzbroje | B49: H611104 | C49: SV- A - 6.16.4p,Saltek SP-T2+3-320/Y-CLT | D49: 2359.29 | E49: 0.06 | F49: 2359.35
A50: 7. Stožárové výzbroje | B50: H611105 | C50: SV- A - 6.16.5p,Saltek SP-T2+3-320/Y-CLT | D50: 2390.44 | E50: 0.06 | F50: 2390.5
A51: 7. Stožárové výzbroje | B51: H611110 | C51: SV- A - 9.16.4p,Saltek SP-T2+3-320/Y-CLT | D51: 2459.89 | E51: 0.06 | F51: 2459.95
A52: 7. Stožárové výzbroje | B52: H611111 | C52: SV- A - 9.16.5p,Saltek SP-T2+3-320/Y-CLT | D52: 2546.74 | E52: 0.06 | F52: 2546.8
A53: 7. Stožárové výzbroje | B53: H611116 | C53: SI 8.35.4p,Saltek SP-T2+3-320/Y-CLT | D53: 3483.14 | E53: 0.06 | F53: 3483.2
A54: 7. Stožárové výzbroje | B54: H611117 | C54: SI- A - 8.35.4p,Saltek SP-T2+3-320/Y-CLT | D54: 3659.94 | E54: 0.06 | F54: 3660
A55: 7. Stožárové výzbroje | B55: H611118 | C55: SI- C - 8.35.4p,Saltek SP-T2+3-320/Y-CLT | D55: 3651.44 | E55: 0.06 | F55: 3651.5
A56: 7. Stožárové výzbroje | B56: H611203 | C56: SV 6.16.5p, Saltek CZ-275 CH | D56: 1887.56 | E56: 0.04 | F56: 1887.6
A57: 7. Stožárové výzbroje | B57: H611210 | C57: SV 9.16.5p, Saltek CZ-275 CH | D57: 2045.01 | E57: 0.04 | F57: 2045.05
A58: 7. Stožárové výzbroje | B58: H611214 | C58: SV - A - 6.16.4p, Saltek CZ-275 CH | D58: 1953.36 | E58: 0.04 | F58: 1953.4
A59: 7. Stožárové výzbroje | B59: H611215 | C59: SV - A - 6.16.5p, Saltek CZ-275 CH | D59: 1987.31 | E59: 0.04 | F59: 1987.35
A60: 7. Stožárové výzbroje | B60: H611217 | C60: SV - A - 9.16.4p, Saltek CZ-275 CH | D60: 2063.01 | E60: 0.04 | F60: 2063.05
A61: 7. Stožárové výzbroje | B61: H611218 | C61: SV - A - 9.16.5p, Saltek CZ-275 CH | D61: 2157.46 | E61: 0.04 | F61: 2157.5
A62: 7. Stožárové výzbroje | B62: H611220 | C62: SI 10.16.5p, Saltek CZ-275 CH | D62: 3045.96 | E62: 0.04 | F62: 3046
A63: 7. Stožárové výzbroje | B63: H611221 | C63: SI - V - 10.16.5p, Saltek CZ-275 CH | D63: 3141.31 | E63: 0.04 | F63: 3141.35
A64: 7. Stožárové výzbroje | B64: H845210 | C64: SI 8.35.4p, Dehn DG TT 2P 5 275 | D64: 3483.14 | E64: 0.06 | F64: 3483.2
A65: 7. Stožárové výzbroje | B65: H845211 | C65: SI - A - 8.35.4p, Dehn DG TT 2P 5 275 | D65: 3659.94 | E65: 0.06 | F65: 3660
A66: 7. Stožárové výzbroje | B66: H845213 | C66: SI - C - 8.35.4p, Dehn DG TT 2P 5 275 | D66: 3651.31 | E66: 0.19 | F66: 3651.5
A67: 7. Stožárové výzbroje | B67: H845214 | C67: SI 10.16.5p, Dehn DCOR L 2P 275 | D67: 3443.19 | E67: 0.06 | F67: 3443.25
A68: 7. Stožárové výzbroje | B68: H845215 | C68: SI - V - 10.16.5p, Dehn DCOR L 2P 275 | D68: 3538.64 | E68: 0.06 | F68: 3538.7
A69: 7. Stožárové výzbroje | B69: H846213 | C69: SI - C - 8.35.4 | D69: 1339.92 | E69: 0.13 | F69: 1340.05
A70: 7. Stožárové výzbroje | B70: H846214 | C70: SI - C - 8.35.4/2 | D70: 1482.84 | E70: 0.26 | F70: 1483.1
A72: 15. Instalační skříně, LED kontrolky | B72: K8030230.16 | C72: kontrolka LED 3 ČV 230V | D72: 56.644 | E72: 0.006 | F72: 56.65
A73: 15. Instalační skříně, LED kontrolky | B73: K8030230.25 | C73: kontrolka LED 3 ZEL 230V | D73: 56.644 | E73: 0.006 | F73: 56.65
A74: 15. Instalační skříně, LED kontrolky | B74: K8030230.26 | C74: kontrolka LED 3 ŽL 230V | D74: 56.644 | E74: 0.006 | F74: 56.65
A75: 15. Instalační skříně, LED kontrolky | B75: K8031224.16 | C75: kontrolka LED 3 ČV 12-24V AC/DC | D75: 56.644 | E75: 0.006 | F75: 56.65
A76: 15. Instalační skříně, LED kontrolky | B76: K8031224.25 | C76: kontrolka LED 3 ZEL 12-24V AC/DC | D76: 56.644 | E76: 0.006 | F76: 56.65
A77: 15. Instalační skříně, LED kontrolky | B77: K8031224.26 | C77: kontrolka LED 3 ŽL 12-24V AC/DC | D77: 56.644 | E77: 0.006 | F77: 56.65
A78: 15. Instalační skříně, LED kontrolky | B78: K8050230.16 | C78: kontrolka LED 5 ČV 230V | D78: 39.442 | E78: 0.008 | F78: 39.45
A79: 15. Instalační skříně, LED kontrolky | B79: K8050230.17 | C79: kontrolka LED 5 ZEL-ČV 230V | D79: 90.542 | E79: 0.008 | F79: 90.55
A80: 15. Instalační skříně, LED kontrolky | B80: K8050230.25 | C80: kontrolka LED 5 ZEL 230V | D80: 39.442 | E80: 0.008 | F80: 39.45
A81: 15. Instalační skříně, LED kontrolky | B81: K8050230.26 | C81: kontrolka LED 5 ŽL 230V | D81: 39.442 | E81: 0.008 | F81: 39.45
A82: 15. Instalační skříně, LED kontrolky | B82: K8051224.16 | C82: kontrolka LED 5 ČV 12-24V AC/DC | D82: 39.442 | E82: 0.008 | F82: 39.45
A83: 15. Instalační skříně, LED kontrolky | B83: K8051224.17 | C83: kontrolka LED 5 ZEL-ČV 12-24V AC/DC | D83: 90.542 | E83: 0.008 | F83: 90.55
A84: 15. Instalační skříně, LED kontrolky | B84: K8051224.25 | C84: kontrolka LED 5 ZEL 12-24V AC/DC | D84: 39.442 | E84: 0.008 | F84: 39.45
A85: 15. Instalační skříně, LED kontrolky | B85: K8051224.26 | C85: kontrolka LED 5 ŽL 12-24V AC/DC | D85: 39.442 | E85: 0.008 | F85: 39.45
A86: 15. Instalační skříně, LED kontrolky | B86: K8100230.16 | C86: kontrolka LED 10 ČV 230V | D86: 54.291 | E86: 0.009 | F86: 54.3
A87: 15. Instalační skříně, LED kontrolky | B87: K8100230.17 | C87: kontrolka LED 10 ZEL-ČV 230V | D87: 90.541 | E87: 0.009 | F87: 90.55
A88: 15. Instalační skříně, LED kontrolky | B88: K8100230.25 | C88: kontrolka LED 10 ZEL 230V | D88: 54.291 | E88: 0.009 | F88: 54.3
A89: 15. Instalační skříně, LED kontrolky | B89: K8100230.26 | C89: kontrolka LED 10 ŽL 230V | D89: 54.291 | E89: 0.009 | F89: 54.3
A90: 15. Instalační skříně, LED kontrolky | B90: K8101224.16 | C90: kontrolka LED 10 ČV 12-24V AC/DC | D90: 54.291 | E90: 0.009 | F90: 54.3
A91: 15. Instalační skříně, LED kontrolky | B91: K8101224.17 | C91: kontrolka LED 10 ZEL-ČV 12-24V AC/DC | D91: 90.541 | E91: 0.009 | F91: 90.55
A92: 15. Instalační skříně, LED kontrolky | B92: K8101224.25 | C92: kontrolka LED 10 ZEL 12-24V AC/DC | D92: 54.291 | E92: 0.009 | F92: 54.3
A93: 15. Instalační skříně, LED kontrolky | B93: K8101224.26 | C93: kontrolka LED 10 ŽL 12-24V AC/DC | D93: 54.291 | E93: 0.009 | F93: 54.3
A94: 15. Instalační skříně, LED kontrolky | B94: K8200230.16 | C94: kontrolka LED 20 ČV 230V | D94: 164.488 | E94: 0.012 | F94: 164.5
A95: 15. Instalační skříně, LED kontrolky | B95: K8200230.17 | C95: kontrolka LED 20 ZEL-ČV 230V | D95: 274.938 | E95: 0.012 | F95: 274.95
A96: 15. Instalační skříně, LED kontrolky | B96: K8200230.25 | C96: kontrolka LED 20 ZEL 230V | D96: 164.488 | E96: 0.012 | F96: 164.5
A97: 15. Instalační skříně, LED kontrolky | B97: K8200230.26 | C97: kontrolka LED 20 ŽL 230V | D97: 164.488 | E97: 0.012 | F97: 164.5
A98: 15. Instalační skříně, LED kontrolky | B98: K8201224.16 | C98: kontrolka LED 20 ČV 12-24V AC/DC | D98: 164.488 | E98: 0.012 | F98: 164.5
A99: 15. Instalační skříně, LED kontrolky | B99: K8201224.17 | C99: kontrolka LED 20 ZEL-ČV 12-24V AC/DC | D99: 274.938 | E99: 0.012 | F99: 274.95
A100: 15. Instalační skříně, LED kontrolky | B100: K8201224.25 | C100: kontrolka LED 20 ZEL 12-24V AC/DC | D100: 164.488 | E100: 0.012 | F100: 164.5
A101: 15. Instalační skříně, LED kontrolky | B101: K8201224.26 | C101: kontrolka LED 20 ŽL 12-24V AC/DC | D101: 164.488 | E101: 0.012 | F101: 164.5
A102: 15. Instalační skříně, LED kontrolky | B102: K8160230.16 | C102: Kontrolka LED KND 16 červená 230V | D102: 154.281 | E102: 0.019 | F102: 154.3
A103: 15. Instalační skříně, LED kontrolky | B103: K8160230.17 | C103: Kontrolka LED KND 16 zeleno-červená 230V | D103: 225.378 | E103: 0.022 | F103: 225.4
A104: 15. Instalační skříně, LED kontrolky | B104: K8160230.25 | C104: Kontrolka LED KND 16 zelená 230V | D104: 154.281 | E104: 0.019 | F104: 154.3
A105: 15. Instalační skříně, LED kontrolky | B105: K8160230.26 | C105: Kontrolka LED KND 16 žlutá 230V | D105: 154.281 | E105: 0.019 | F105: 154.3
A106: 15. Instalační skříně, LED kontrolky | B106: K8161224.16 | C106: Kontrolka LED KND 16 červená 12-24V AC/DC | D106: 154.283 | E106: 0.017 | F106: 154.3
A107: 15. Instalační skříně, LED kontrolky | B107: K8161224.17 | C107: Kontrolka LED KND 16 zeleno-červená 12-24V AC/DC | D107: 225.38 | E107: 0.02 | F107: 225.4
A108: 15. Instalační skříně, LED kontrolky | B108: K8161224.25 | C108: Kontrolka LED KND 16 zelená 12-24V AC/DC | D108: 154.283 | E108: 0.017 | F108: 154.3
A109: 15. Instalační skříně, LED kontrolky | B109: K8161224.26 | C109: Kontrolka LED KND 16 žlutá 12-24V AC/DC | D109: 154.281 | E109: 0.019 | F109: 154.3
A111: 17. Elektronické moduly | B111: A128001 | C111: RSE D R1A s ochran. a odděl. diodou | D111: 108.14 | E111: 0.01 | F111: 108.15
A112: 17. Elektronické moduly | B112: A128002 | C112: RSE D S250 mA s ochran. schottkyho diod | D112: 117.34 | E112: 0.01 | F112: 117.35
A113: 17. Elektronické moduly | B113: A128003 | C113: RSE LD R24V s LED 24 VDC červená | D113: 124.94 | E113: 0.01 | F113: 124.95
A114: 17. Elektronické moduly | B114: A128004 | C114: RSE LD G24V s LED 24 VDC zelená | D114: 124.94 | E114: 0.01 | F114: 124.95
A115: 17. Elektronické moduly | B115: A128005 | C115: RSE LD Y24V s LED 24 VDC žlutá | D115: 124.94 | E115: 0.01 | F115: 124.95
A116: 17. Elektronické moduly | B116: A128006 | C116: RSE LD B24V s LED 24 VDC modrá | D116: 128.89 | E116: 0.01 | F116: 128.9
A117: 17. Elektronické moduly | B117: A128007 | C117: RSE LD W24V s LED 24 VDC teple bílá | D117: 128.89 | E117: 0.01 | F117: 128.9
A118: 17. Elektronické moduly | B118: A128008 | C118: RSE LD C24V s LED 24 VDC stud. bílá | D118: 128.89 | E118: 0.01 | F118: 128.9
A119: 17. Elektronické moduly | B119: A128015 | C119: RSE PC 50mA s PTC 50 mA | D119: 122.34 | E119: 0.01 | F119: 122.35
A120: 17. Elektronické moduly | B120: A128016 | C120: RSE PC 100mA s PTC 100 mA | D120: 122.34 | E120: 0.01 | F120: 122.35
A121: 17. Elektronické moduly | B121: A128017 | C121: RSE PC 200mA s PTC 200 mA | D121: 121.54 | E121: 0.01 | F121: 121.55
A122: 17. Elektronické moduly | B122: A128018 | C122: RSE PC 300mA s PTC 300 mA | D122: 131.74 | E122: 0.01 | F122: 131.75
A123: 17. Elektronické moduly | B123: A128019 | C123: RSE PC 500mA s PTC 500 mA | D123: 132.79 | E123: 0.01 | F123: 132.8
A124: 17. Elektronické moduly | B124: A128020 | C124: RSE PC 1000mA s PTC 1000 mA | D124: 133.54 | E124: 0.01 | F124: 133.55
A125: 17. Elektronické moduly | B125: A128022 | C125: RSE PC 1500mA s PTC 1500 mA | D125: 137.54 | E125: 0.01 | F125: 137.55
A126: 17. Elektronické moduly | B126: A128023 | C126: RSE PC 2000mA s PTC 2000 mA | D126: 140.09 | E126: 0.01 | F126: 140.1
A127: 17. Elektronické moduly | B127: A128024 | C127: RSE PC 3000mA s PTC 3000 mA | D127: 141.69 | E127: 0.01 | F127: 141.7
A128: 17. Elektronické moduly | B128: A128025 | C128: RSE PC L50mA s PTC a LED | D128: 132.79 | E128: 0.01 | F128: 132.8
A129: 17. Elektronické moduly | B129: A128026 | C129: RSE PC L100mA s PTC a LED | D129: 134.39 | E129: 0.01 | F129: 134.4
A130: 17. Elektronické moduly | B130: A128027 | C130: RSE PC L200mA s PTC a LED | D130: 135.99 | E130: 0.01 | F130: 136
A131: 17. Elektronické moduly | B131: A128028 | C131: RSE PC L300mA s PTC a LED | D131: 142.24 | E131: 0.01 | F131: 142.25
A132: 17. Elektronické moduly | B132: A128029 | C132: RSE PC L500mA s PTC a LED | D132: 143.29 | E132: 0.01 | F132: 143.3
A133: 17. Elektronické moduly | B133: A128030 | C133: RSE PC L1000mA s PTC a LED | D133: 147.99 | E133: 0.01 | F133: 148
A134: 17. Elektronické moduly | B134: A128032 | C134: RSE PC L1500mA s PTC a LED | D134: 147.99 | E134: 0.01 | F134: 148
A135: 17. Elektronické moduly | B135: A128033 | C135: RSE PC L2000mA s PTC a LED | D135: 150.59 | E135: 0.01 | F135: 150.6
A136: 17. Elektronické moduly | B136: A128034 | C136: RSE PC L3000mA s PTC a LED | D136: 152.19 | E136: 0.01 | F136: 152.2
A137: 17. Elektronické moduly | B137: A128035 | C137: RSE TL 5V s obousměrným transilem | D137: 148.54 | E137: 0.01 | F137: 148.55
A138: 17. Elektronické moduly | B138: A128036 | C138: RSE TL 15V s obousměrným transilem | D138: 148.54 | E138: 0.01 | F138: 148.55
A139: 17. Elektronické moduly | B139: A128041 | C139: RSE TL 400V s obousměrným transilem | D139: 153.74 | E139: 0.01 | F139: 153.75
A140: 17. Elektronické moduly | B140: A128042 | C140: RSE TL 440V s obousměrným transilem | D140: 153.74 | E140: 0.01 | F140: 153.75
A141: 17. Elektronické moduly | B141: A128201 | C141: RSE 4D R1A s usměrňovacím můstkem | D141: 204.532 | E141: 0.018 | F141: 204.55
A142: 17. Elektronické moduly | B142: A128202 | C142: RSE 4D S250mA s schott. usměr. můstkem | D142: 195.332 | E142: 0.018 | F142: 195.35
A143: 17. Elektronické moduly | B143: A128203 | C143: RSE KT U24V s galvan. odděl. +24VDC | D143: 361.382 | E143: 0.018 | F143: 361.4
A144: 17. Elektronické moduly | B144: A128206 | C144: RSE KT G 8A - 30V DC, 30V DC(ovl.) | D144: 325.232 | E144: 0.018 | F144: 325.25
A145: 17. Elektronické moduly | B145: A128207 | C145: RSE KT G 15A - 30V DC, 30V DC(ovl.) | D145: 334.632 | E145: 0.018 | F145: 334.65
A146: 17. Elektronické moduly | B146: A128207.2 | C146: RSE KT G 20A - 30V DC, 30V DC(ovl.) | D146: 403.232 | E146: 0.018 | F146: 403.25
A147: 17. Elektronické moduly | B147: A128207.3 | C147: RSE KT G 8A - 30V DC, 60V DC(ovl.) | D147: 408.432 | E147: 0.018 | F147: 408.45
A148: 17. Elektronické moduly | B148: A128207.4 | C148: RSE KT G 15A - 30V DC, 60V DC(ovl.) | D148: 434.682 | E148: 0.018 | F148: 434.7
A149: 17. Elektronické moduly | B149: A128207.5 | C149: RSE KT G 20A - 30V DC, 60V DC(ovl.) | D149: 489.682 | E149: 0.018 | F149: 489.7
A150: 17. Elektronické moduly | B150: A128208 | C150: RSE KT U 3A - 30V DC, 30V DC(ovl.) | D150: 327.282 | E150: 0.018 | F150: 327.3
A151: 17. Elektronické moduly | B151: A128209 | C151: RSE KT U 8A - 30V DC, 30V DC(ovl.) | D151: 333.632 | E151: 0.018 | F151: 333.65
A152: 17. Elektronické moduly | B152: A128210 | C152: RSE SSR AC1A se spín. 250 V AC/1 A | D152: 484.432 | E152: 0.018 | F152: 484.45
A153: 17. Elektronické moduly | B153: A128214 | C153: RSE KT DC 3A - 30V DC, 30V DC(ovl.) | D153: 576.082 | E153: 0.018 | F153: 576.1
A154: 17. Elektronické moduly | B154: A128215 | C154: RSE KT DC 8A - 30V DC, 30V DC(ovl.) | D154: 578.132 | E154: 0.018 | F154: 578.15
A155: 17. Elektronické moduly | B155: A128216 | C155: RSE KT DC 15A - 30V DC, 30V DC(ovl.) | D155: 668.682 | E155: 0.018 | F155: 668.7
A156: 17. Elektronické moduly | B156: A128216.2 | C156: RSE KT DC 20A - 30V DC, 30V DC(ovl.) | D156: 714.832 | E156: 0.018 | F156: 714.85
A157: 17. Elektronické moduly | B157: A128216.3 | C157: RSE KT DC 8A - 60V DC, 30V DC(ovl.) | D157: 717.432 | E157: 0.018 | F157: 717.45
A158: 17. Elektronické moduly | B158: A128216.4 | C158: RSE KT DC15A - 60V DC, 30V DC(ovl.) | D158: 743.632 | E158: 0.018 | F158: 743.65
A159: 17. Elektronické moduly | B159: A128216.5 | C159: RSE KT DC 20A - 60V DC, 30V DC(ovl.) | D159: 793.332 | E159: 0.018 | F159: 793.35
A160: 17. Elektronické moduly | B160: A128216.6 | C160: RSE KT DC 2A - 200V DC, 30V DC(ovl.) | D160: 740.982 | E160: 0.018 | F160: 741
A161: 17. Elektronické moduly | B161: A128216.7 | C161: RSE KT DC 1A - 600V DC, 30V DC(ovl.) | D161: 748.882 | E161: 0.018 | F161: 748.9
A162: 17. Elektronické moduly | B162: A128217 | C162: RSE KT DCB 8A - 30V AC/DC, 30V DC(ovl.) | D162: 631.282 | E162: 0.018 | F162: 631.3
A163: 17. Elektronické moduly | B163: A128217.1 | C163: RSE KT DCB 3A - 30V AC/DC, 30V DC(ovl.) | D163: 576.082 | E163: 0.018 | F163: 576.1
A164: 17. Elektronické moduly | B164: A128218 | C164: RSE KT DCB 15A - 30V AC/DC, 30V DC(ovl.) | D164: 772.382 | E164: 0.018 | F164: 772.4
A165: 17. Elektronické moduly | B165: A128218.2 | C165: RSE KT DCB 20A - 30V AC/DC, 30V DC(ovl.) | D165: 864.032 | E165: 0.018 | F165: 864.05
A166: 17. Elektronické moduly | B166: A128218.3 | C166: RSE KT DCB 8A - 60V AC/DC, 30V DC(ovl.) | D166: 903.332 | E166: 0.018 | F166: 903.35
A167: 17. Elektronické moduly | B167: A128218.4 | C167: RSE KT DCB 15A - 60V AC/DC, 30V DC(ovl.) | D167: 934.732 | E167: 0.018 | F167: 934.75
A168: 17. Elektronické moduly | B168: A128218.5 | C168: RSE KT DCB 20A - 60V AC/DC, 30V DC(ovl.) | D168: 1008.032 | E168: 0.018 | F168: 1008.05
A169: 17. Elektronické moduly | B169: A128218.6 | C169: RSE KT DCB 2A - 200V AC/DC, 30V DC(ovl.) | D169: 908.582 | E169: 0.018 | F169: 908.6
A170: 17. Elektronické moduly | B170: A128218.7 | C170: RSE KT DCB 1A - 600V AC/DC, 30V DC(ovl.) | D170: 832.682 | E170: 0.018 | F170: 832.7
A171: 17. Elektronické moduly | B171: A128219 | C171: RSE SZ 5V s DC/DC 5VDC s trafem | D171: 746.232 | E171: 0.018 | F171: 746.25
A172: 17. Elektronické moduly | B172: A128220 | C172: RSE SZ 12V s DC/DC 12VDC s trafem | D172: 815.632 | E172: 0.018 | F172: 815.65
A173: 17. Elektronické moduly | B173: A128221 | C173: RSE SZ 15V s DC/DC 15VDC s trafem | D173: 824.782 | E173: 0.018 | F173: 824.8
A174: 17. Elektronické moduly | B174: A128222 | C174: RSE SZ 24V s DC/DC 24VDC s trafem | D174: 868.232 | E174: 0.018 | F174: 868.25
A175: 17. Elektronické moduly | B175: A128223 | C175: RSE SZ 10V s DC/DC 10VDC s trafem | D175: 784.432 | E175: 0.018 | F175: 784.45
A176: 17. Elektronické moduly | B176: A128230 | C176: RSE R120 TL | D176: 124.982 | E176: 0.018 | F176: 125
A177: 17. Elektronické moduly | B177: A128250 | C177: RSE B-RCDD | D177: 148.782 | E177: 0.018 | F177: 148.8
A178: 17. Elektronické moduly | B178: A129001 | C178: RSE GO U10V – Galvan. oddělovač unip. 10 | D178: 1008.032 | E178: 0.018 | F178: 1008.05
A179: 17. Elektronické moduly | B179: A129002 | C179: RSE SBD-10 | D179: 929.482 | E179: 0.018 | F179: 929.5
A180: 17. Elektronické moduly | B180: A129003 | C180: RSE SBD-20 | D180: 1015.882 | E180: 0.018 | F180: 1015.9
A181: 17. Elektronické moduly | B181: S113111 | C181: svorka s varistorem RSA 4 AV - 250V | D181: 84.99 | E181: 0.01 | F181: 85
A182: 17. Elektronické moduly | B182: S123211 | C182: svorka s varistorem RSA 4 AV-24V | D182: 84.99 | E182: 0.01 | F182: 85
A183: 17. Elektronické moduly | B183: S213011 | C183: varistor s můstky RSA 4 AV - 250 | D183: 50.79 | E183: 0.01 | F183: 50.8
A184: 17. Elektronické moduly | B184: S223011 | C184: varistor s můstky RSA 4 AV - 24 | D184: 50.79 | E184: 0.01 | F184: 50.8

Sheet Doprava
B3: 9. Cena přepravy zboží na území ČR smluvním dopravcem prodávajícího (ceny bez DPH):
B4: při objednávce do 10.000,- Kč (po slevě a bez DPH)
B5: 120,-Kč (cena za jeden balík o váze do 30 kg)
B6: při objednávce nad 10.000,- Kč (po slevě a bez DPH)
B7: zdarma
B8: zboží délky 2m (například DIN lišty TS, kabelové žlaby,…)
B9: Doprava bude účtována dle skutečných přepravních nákladů. Na tyto položky se nevztahují výše uvedené limity.
B10: dobírka
B11: 50,-Kč (K zásilkám, které jsou zasílány na dobírku, je k ceně dopravy účtováno doběrečné v ceně 50,-Kč.)
B12: balení
B13: Ke zboží, které bude odesíláno na nevratné paletě, bude dodatečně účtováno dopravné (formou přefakturace nevratné palety) ve výši 290,- Kč.

Sheet List1 (hidden)
A1: 1. Šroubové řadové svorky
A2: 2. Bezšroubové řadové svorky
A3: 3. Koncové svěrky
A4: 4. Univerzální řadové svorky ETB, UTB, UTB-S | G4: 4. Univerzální řadové svorky
A5: 5. Distribuční bloky, odbočovací a zkušební svorkovnice
A6: 6. Rozbočovací svorky
A7: 7. Silové svorky BNP, V-TŘMENY, V-PRAPORCE
A8: 8. Stožárové výzbroje
A9: 9. Ekvipotenciální svorkovnice, zemnicí svorky
A10: 10. Průchozí izolované svorky a stoupačkové svorkovnice
A11: 11. Sběrnicové svorky
A12: 12. Průchodky, vývodky a průchodkové desky
A13: 13. Konektory
A14: 14. Krabicové svorky
A15: 15. Rozváděčové příslušenství
A16: 16. Doplňující materiál
A17: 17. Elektronické moduly
A18: 18. Značení

Sheet obchodni_podminky (hidden)
B4: Obchodní podmínky 2021
B6: Základní informace
B7: · Obchodní firma: ELEKTRO, v. d. v Bečově nad Teplou (dále prodávající)
B8: · Sídlo: Tovární 128, CZ-364 64 Bečov nad Teplou
B9: · IČO: 00028886, DIČ: CZ00028886, práv. osoba zapsaná v obchodním rejstříku u Krajského soudu v Plzni, odd. Dr.XXVI, vl. 248
B10: · Tel.spojení - spojovatelka: (+420) 353 361 111
B11: · Tel.spojení - prodej: (+420) 353 361 126
B12: · Fax.spojení - prodej: (+420) 353 361 122
B13: · Adresa pro doručování elektronické pošty: sekretariat@elektrobecov.cz
B14: · Adresa pro doručování elektronických objednávek: odbyt@elektrobecov.cz
B15: · Oficiální internetové stránky firmy: www.elektrobecov.cz
B16: 2. Obchodní informace
B17: Tyto obchodní podmínky výrobního družstva Elektro, výrobní družstvo v Bečově nad Teplou (dále jen Prodávající), upravují v souladu s ust. § 1751 odst. 1 zákona č. 89/2012 Sb., občanský zákoník, vzájemná práva a povinnosti smluvních stran vzniklé v souvislosti nebo na základě kupní smlouvy, uzavřené mezi prodávajícím a jeho odběrateli (dále jen Kupující).
B18: Všechny dodávky a služby poskytované podnikatelům ve smyslu § 420 a násl. občanského zákoníku, se řídí těmito Obchodními podmínkami. Tyto Obchodní podmínky jsou nedílnou součástí smluv uzavíraných mezi Prodávajícím a Kupujícími při dodávkách zboží a poskytovaných služeb. Při uzavření smlouvy kupující prohlašuje, že se seznámil s těmito Obchodními podmínkami a souhlasí s nimi. V rámci nabídky zboží a služeb je vždy proveden výslovný odkaz na aktuální znění těchto Obchodních podmínek.
B19: Tyto Obchodní podmínky jsou platné v celém rozsahu, pokud některá jejich ustanovení nejsou upravena vlastní Smlouvou jinak. V případě rozporu mezi zněním Smlouvy a Obchodními podmínkami, platí ustanovení Smlouvy.
B20: Zbožím se ve smyslu těchto Obchodních podmínek rozumí materiál, výrobky nebo související služby specifikované v platném katalogu nebo v písemné nabídce Prodávajícího.
B21: Informace o zboží a ceně, uváděné Prodávajícím jsou závazné s výjimkou zjevné chyby. Ceny jsou prezentovány bez DPH, a to bez nákladů na doručení (přepravu) zboží.
B22: Přijetí nabídky s dodatkem nebo odchylkou se nepovažuje za přijetí nabídky, ale za protinávrh kupujícího.
B23: Potvrzení obsahu smlouvy, uzavřené v jiné než písemné formě, které vykazuje odchylky od skutečně ujednaného obsahu smlouvy, nemá právní účinky.
B24: 3. Objednávka zboží
B25: · Objednávka musí obsahovat identifikační údaje kupujícího včetně IČ, DIČ, adresy sídla kupujícího, čitelného jména, příjmení a funkce osoby, která objednávku podepsala.
B26: · Objednávky zákazníků jsou potvrzovány výhradně na vyžádání zákazníka, při nákupu přes elektronický obchod pak automaticky.
B27: · Prodávající si vyhrazuje právo zaokrouhlit množství objednaných výrobků na dodávku celého balení, tzn. množství v ceníku uvedeného jako BALENÍ VÝROBKŮ STANDARDNÍ.
B28: · Prodávající preferuje dodávku zboží koncovým uživatelům přes síť velkoobchodních distributorů, avšak i přímé dodávky jsou za splnění určitých podmínek možné.
B29: 4. Ceny výrobků, ceník
B30: · V ceníku jsou uvedeny ceny bez DPH.
B31: · Objednací číslo výrobku, název výrobku, cena za kus či jiné standardní dodací množství, balení standardní, balení velké, hmotnost výrobku, EAN a celní kód, jsou údaje uvedené u jednotlivých položek.
B32: · Ceník výrobků je veřejně přístupný v elektronické podobě na internetových stránkách prodávajícího -www.elektrobecov.cz
B33: · Ceník výrobků je aktualizován a vydáván zpravidla k 1. lednu příslušného kalendářního roku, eventuálně kdykoli, vyžadují-li to okolnosti.
B34: · Prodávající nezaručuje platnost cen po celou dobu kalendářního roku a vyhrazuje si právo ceny kdykoli během roku změnit v souvislosti se změnou ceníku.
B35: · Ceník v nové verzi je vyvěšen na internetové stránce www.elektrobecov.cz minimálně tři dny před zahájením jeho platnosti.
B36: · Ceník v nové verzi je automaticky elektronicky zasílán obchodním partnerům.
B37: · Ceník v tištěné verzi není vydáván.
B38: 5. Slevy
B39: · Prodávající poskytuje slevy na odebrané zboží z fakturované částky bez DPH.
B40: · Pro přiznání slevy je rozhodující posouzení množství odebíraného zboží, platební kázně, doby splatnosti, pravidelnost odběrů s přihlédnutím na výši objednávek a skladbu odebíraného sortimentu.
B41: · Pro koncové uživatele jsou platné ceny uvedené v ceníku, případné slevy nejsou vyloučeny a jsou přiznány po individuálním posouzení.
B42: 6. Platební podmínky
B43: · Prodávající na objednané a dodané zboží vystaví kupujícímu řádný daňový doklad (fakturu). Splatnost daňového dokladu (faktury) je stanovena na základě individuální dohody prodávajícího s kupujícím s tím, že standardní lhůta splatnosti daňového dokladu je 15 kalendářních dnů.
B44: · U zákazníků, se kterými není uzavřena kupní smlouva, je zboží automaticky zasíláno na dobírku.
B45: · Při prodlení kupujícího s úhradou faktur za předchozí dodávky zboží, vyhrazuje si Prodávající právo pozastavit další dodávky zboží Kupujícímu, a to po dobu trvání jeho prodlení s úhradou dodávkových faktur prodávajícího po lhůtě splatnosti. Z tohoto důvodu může prodávající expedici zboží dle nové objednávky kupujícího odložit, aniž by byl povinen na tuto skutečnost kupujícího upozornit.
B46: 7. Doručování - expedice zboží
B47: · Pokud kupující u jednotlivých druhů zboží neuvádí jinou lhůtu k dodání, zboží, které je na skladě, je expedováno (tzn. předáno dopravci) v pracovní dny, zpravidla do 24, max. do 48 hodin od objednání zboží kupujícím.
B48: · Zboží, které není momentálně na expedičním skladě, zboží atypické, či zboží v objednaném množství větším než je běžné, je odesíláno v nejbližším možném termínu, tato doba zpravidla nepřesáhne 5 pracovních dnů.
B49: · Při prodlení kupujícího v platbě předchozích objednávek lze očekávat prodlení v dodávce (viz platební podmínky).
B50: · Prodávající, ELEKTRO, v. d. Bečov n. T., jako tuzemský výrobce většiny nabízeného elektromateriálu, zaručuje svým zákazníkům nadstandardní rychlost dodání a zejména téměř 100% kompletnost dodávek zboží v jedné zásilce (jedna objednávka = jedna dodací zásilka).
B51: · Prodávající dodá zboží kupujícímu kompletní. Kupující je povinen zboží převzít a zaplatit. Kupujícímu se doporučuje, aby si zboží při převzetí co nejdříve překontroloval.
B52: · Doklady ke zboží, zejména daňový doklad, dodací list popřípadě certifikáty, odešle prodávající kupujícímu ihned po převzetí zboží, nejpozději však do tří dnů od převzetí zboží kupujícím.
B53: · Nepřevezme-li kupující zboží v dohodnuté době vlastním zaviněním, je povinen prodávajícímu zaplatit poplatek za uskladnění za každý den prodlení ve výši 50,- Kč, maximálně však 1.000,- Kč.
B54: 8. Přeprava zboží
B55: · Standardní přeprava zboží ke kupujícímu je zajištěna prostřednictvím smluvních dopravců Prodávajícího.
B56: · Dodací lhůta od doby expedice až k doručení k zákazníkovi je zpravidla 24 - 48 hodin v pracovních dnech (týká se objednávek, jejichž zboží nepřesahuje celkovou hmotnost 50 kg). Tyto zásilky jsou baleny v kompaktních kartonových krabicích o hmotnosti závisející na skladbě objednaného zboží, nejvýše však do hmotnosti 50 kg. Všechny kartonové krabice jsou staženy PP páskou s tepelně svařenými konci.
B57: · Objednávky většího objemu jsou zasílány na paletách. Dodací lhůta je 24 - 48 hodin v pracovních dnech od expedice.
B58: · Při doručení zásilky, jejíž obal je zjevně porušený, důrazně doporučujeme nepřejímat zásilku bez zápisu o poškození v přepravním listu dopravce, nebo překontrolovat obsah poškozené zásilky za přítomnosti dopravce.
B59: · Prodávající nepřebírá žádnou odpovědnost za zpoždění a poškození dodávek zboží, způsobených dopravcem, nicméně pokud je zápis o poškození ze strany kupujícího v přepravním listu sepsán, reklamaci s dopravcem prodávající řeší.
B60: · Nestandardní přepravou se rozumí osobní přímý odběr zboží Kupujícím (zákazníkem) či odvoz zboží prodávajícím. Tento případ přepravy je řešen individuálně.
B61: · Obaly - Zboží je běžně expedováno v nevratných obalech (kartonech). Pokud je zboží přepravováno v obalech vratných (např. Euro paletách), vrátí tyto obaly příjemce přímo dopravci.
B62: 9. Cena přepravy zboží na území ČR smluvním dopravcem prodávajícího (ceny bez DPH):
B63: při objednávce do 5000,- Kč (po slevě a bez DPH)
B64: 110,-Kč (cena za jeden balík o váze do 30 kg)
B65: při objednávce do 5000,- Kč (po slevě a bez DPH)
B66: 90,-Kč (cena za zásilku o objemu do 3 kg)
B67: při objednávce nad 5000,- Kč (po slevě a bez DPH)
B68: zdarma
B69: dobírka
B70: 30,-Kč (K zásilkám, které jsou zasílány na dobírku, je k ceně dopravy účtováno doběrečné v ceně 30,-Kč. Při převzetí zásilky na dobírku lze platbu realizovat pouze v hotovosti.)
B72: Pozn. : u TH lišt délky 2m bude doprava účtována dle skutečných přepravních nákladů. Na tyto položky se nevztahují výše uvedené limity.
B73: Ceny přepravy mimo území ČR budou kalkulovány na základě váhy a dopravní vzdálenosti.
B74: 10. Záruka za jakost zboží
B75: · Prodávající odpovídá za to, že dodané zboží má vlastnosti a parametry uvedené v katalogu, technické dokumentaci Prodávajícího či v technických normách.
B76: · Prodávající neodpovídá za vady vzniklé v důsledku nesprávného zacházení se zbožím, nesprávným užíváním, neodborným a nesprávným zpracováním zboží, neodbornou manipulací se zbožím nebo nevhodným skladováním.
B77: · Případné poskytnutí Záruky Prodávajícím za jakost prodávaného zboží (za jeho funkčnost a způsobilost k obvyklému užívání) se řídí právním řádem České republiky, a to zejména občanským zákoníkem.
B78: 11. Reklamace a vracení zboží
B79: · Kupující je povinen bez zbytečného odkladu si zboží po jeho dodání a převzetí řádně prohlédnout a zkontrolovat, zda nedošlo k jeho poškození při přepravě či zda zboží nevykazuje zjevné množstevní nebo kvalitativní vady. Pokud Kupující nesplní tuto prevenční povinnost, neodpovídá Prodávající za případnou škodu vzniklou kupujícímu pozdějším zjištěním zjevných vad dodávky zboží
B80: · Kupující je povinen uplatnit reklamaci vad zboží u prodávajícího bez zbytečného odkladu od zjištění vady dodávky, a to v době dvaceti čtyř měsíců od převzetí zboží. Reklamace vad zboží musí být uplatněna písemně a musí obsahovat:
B81: · Číslo faktury, dodacího listu, druh reklamovaného zboží, podrobný popis vady, požadavky na způsob vyřízení reklamace (reklamační nárok).
B82: · Kupující je povinen v písemné reklamaci sdělit prodávajícímu, jaký reklamační nárok uplatňuje, nebo tak musí učinit bez zbytečného odkladu po oznámení vady. Změna volby reklamačního nároku bez souhlasu prodávajícího je možná jen tehdy, žádal-li kupující opravu vady, která se ukáže být neodstranitelná.
B83: · Kupující je povinen prokázat nákup zboží (nejlépe dodacím listem). Lhůta pro vyřízení reklamace běží od předání/doručení reklamovaného zboží prodávajícímu. Kupující je povinen dodat reklamované zboží prodávajícímu k posouzení zabalené ve vhodném obalu, aby nedošlo k jeho poškození při přepravě a mělo by být čisté a kompletní.
B84: · Prodávající je povinen bezodkladně, nejpozději do pěti pracovních dnů, rozhodnout o reklamaci, případně o tom, že je k rozhodnutí potřebné odborné posouzení. Informaci o nutnosti odborného posouzení reklamované vady, prodávající kupujícímu v této lhůtě sdělí. Reklamaci, včetně odstranění vady, prodávající vyřídí bez zbytečného odkladu, nejpozději do 30 dnů od jejího uplatnění, pokud se s kupujícím písemně nedohodnou na delší lhůtě. Po uplynutí této lhůty má kupující stejná práva, jako by se jednalo o podstatné porušení smlouvy. Odmítne-li prodávající odstranit vadu věci, může kupující požadovat přiměřenou slevu z ceny nebo odstoupit od smlouvy.
B85: · V případě oprávněné reklamace, prodávající po vzájemné dohodě, umožní kupujícímu vrácení odebraného vadného zboží. Podmínkou pro vrácení zboží je, že zboží nebude poškozené a zašpiněné. Zboží musí splňovat kritéria a shodu s aktuálně prodávaným sortimentem zboží. Záruka se prodlužuje o dobu od uplatnění reklamace do jejího vyřízení nebo do doby, kdy byl kupující povinen si věc vyzvednout. Dojde-li k výměně zboží nebo jeho části, uplatní se odpovědnost prodávajícího za vady zboží jako by šlo o koupi nového zboží nebo jeho části.
B86: 12. Množstevní odchylka
B87: · Na výrobky ze skupiny stáčecích konektorů dodávaných v provedení multipack, na výrobky ze skupiny ochranných profilů dodávaných ve svitku 100 m a na uzemňovací Cu a nerez svitky se vztahuje dodatek povolené odchylky + - 3 %. Hmotnostní či množstevní povolená odchylka se vztahuje i na nekatalogové zboží, zejména na dodávku šroubů a dalšího spojovacího materiálu.
B88: 13. Ochrana osobních údajů
B89: · Prodávající zpracovává identifikační a kontaktní údaje pouze v nezbytném rozsahu pro plnění smlouvy (vyřízení Vaší objednávky), zasílání obchodních sdělení (přímý marketing).
B90: · Kupující souhlasí s tím, aby osobní údaje byly prodávajícím zpracovávány a uchovávány v nezbytném rozsahu, a to v souladu se zákonem o ochraně osobních údajů (č. 101/2000 Sb.) a Obecným nařízením o ochraně osobních údajů (GDPR) 2016/679/EU). Kupující má právo být informován, jaké údaje o něm prodávající eviduje, a je oprávněn tyto údaje měnit, případně písemně vyslovit nesouhlas se způsobem a účelem jejich zpracovávání.
B91: · Prodávající prohlašuje, že zabezpečení osobních údajů při jejich zpracování v rámci smluvního vztahu mezi Prodávajícím a Kupujícím, plně odpovídá požadavkům a podmínkám stanoveným zákonem o ochraně osobních údajů č. 101/2000 Sb., a Nařízení EU o ochraně osobních údajů (GDPR) 2016/679/EU.
B92: · Kupující je oprávněn požadovat, aby Prodávající ukončil zasílání obchodních sdělení, a to na elektronickou adresu získanou v souvislosti s plněním smlouvy, aniž by mu tím vznikly jakékoliv náklady.
B93: 14. Řešení sporů
B94: · Vzájemné spory se Prodávající a Kupující zavazují řešit dohodou. Pokud uzavření dohody nebude možné, spory budou řešeny, na návrh jedné ze stran sporu, příslušnými obecnými soudy České republiky.
B95: 15. Závěrečná ustanovení
B96: · Prodávající si vyhrazuje právo tyto Obchodní podmínky měnit, doplňovat nebo je zrušit vydáním Obchodních podmínek nových, přičemž vztahy mezi Kupujícím a Prodávajícím se budou řídit Obchodními podmínkami platnými ke dni uzavření smlouvy mezi Kupujícím a Prodávajícím.
B97: · Tyto Obchodní podmínky nabývají účinnosti dnem 1.2.2021 a jsou k dispozici na webových stránkách družstva Elektro, v. d. v Bečově nad Teplou.
